Workbook

Sheet Info

Sheet Trial (hidden)

Sheet Instructions (hidden)
A1: Excel Skills | Google Adwords - Monthly Statistics Template
A2: Instructions
A3: www.excel-skills.com
A5: This template enables users to analyse their monthly Google Ads data on an overall, campaign, ad group and device level. The template can be used for any Ads account by adding all the relevant campaigns & ad group names to the template and copying the monthly Ads data from an Excel extract of their Ads account. The template includes a lot of automated calculations & charts which make it easy to spot trends in the data.
A7: The following sheets are included in the template:
A8: Set-up - enter a report date & maintain the list of devices. The report date determines the reporting periods which are included on the other sheets. You can therefore compile the reports on all the sheets in this template for any date range by simply changing the date at the top of this sheet. Devices can be added to the list boxes on the other sheets by inserting them in a new row above the "End of list" item.
A9: Data - create a report by using the Reports feature in Google Ads and export your report data to Excel before copying & pasting your data onto this sheet. The columns that need to be included in the report are exactly the same as our column headings and the columns need to be included in the report in the same sequence as they are included on this sheet. The campaign & ad group data on this sheet is automatically updated in the calculations & charts on the other sheets in this template.
A10: Campaigns - include all your Ads campaigns on this sheet by adding the campaign name in column A. All the calculations in the columns with light blue column headings are automated. You can select a device at the top of the sheet and select the values to display (cost, clicks, cost per click, click through rate, conversions, conversion rates, revenue, return on investment & more). The data on this sheet provides a monthly analysis of Ads campaign data for a 12-month period based on the report date which is entered on the Setup sheet.
A11: AdGroups - include all your Ads ad groups in column A and link the ad groups to campaigns in column B. All the calculations in the columns with light blue column headings are automated. You can select a device at the top of the sheet and select the values to display (cost, clicks, cost per click, click through rate, conversions, conversion rates, revenue, return on investment & more). The data on this sheet provides a monthly analysis of Ads ad group data for a 12-month period based on the report date which is entered on the Setup sheet.
A12: CamCharts - select a campaign & device at the top of the sheet in order to analyse your Ads campaign data. You can also clear these input cells in order to view all campaign or device data. All the calculations & charts on this sheet are fully automated. The campaigns which are included in the list box at the top of the sheet are based on the contents of the Campaigns sheet and the dates are based on the report date which is specified on the Setup sheet.
A13: AgCharts - select an ad group & device at the top of the sheet in order to analyse your Ads ad group data. Only the ad groups that are associated with the campaign which is currently selected on the CamCharts sheet will be available for selection. You can also clear these input cells in order to view all ad group or device data (for the selected campaign). All the calculations & charts on this sheet are fully automated. The ad groups which are included in the list box at the top of the sheet are based on the contents of the AdGroups sheet and the campaign which has been selected on the CamCharts sheet. The dates are based on the report date which is specified on the Setup sheet.
A15: Set-up
A17: All the date ranges which are included on the reports in this template are based on the Report Date specified in cell B4 on the Setup sheet. The date entered here represents the end date of the date range whether it is a 12-month or other period of analysis.
A19: The Setup sheet also includes a list of devices which can be edited by simply inserting a new row anywhere above the "End of list" row and adding a new entry in column A. All the entries in the list will be included automatically in the device selection cells on the other sheets.
A21: Data
A23: All monthly AdWords data needs to be included on this sheet. The easiest way of including your monthly data is by creating the appropriate report through the Google Ads account interface and then exporting the data to Excel before copying the data from the Excel extract onto this sheet. The report needs to be created so that the columns are included in exactly the same sequence as the columns on the Data sheet although you can add columns or move columns so that the sequence between your extract file and the columns on the Data sheet are the same.
A25: Note: The Google Ads fields which you need to add to your report will have the exact same field names as the column headings included on the Data sheet. The Month, Campaign, Ad Group and Device columns need to be added to the Row section of the report and the other fields need to be added to the Columns section.
A27: The Ads report can be extracted as an Excel or CSV file and downloaded. When you then open the report, you will be able to copy the data onto the Data sheet in this template. Note that some columns may contain a currency symbol which may result in the data in that column being interpreted as text instead of values by Excel. We therefore recommend removing all currency symbols from your Google data (Control + H for Replace and then replace currency text with nothing for the entire data selection).
A29: Note: All the columns on the Data sheet have been included in an Excel table. This feature is extremely useful when entering or copying data in a table format because the cell range to which the table refers is automatically extended when you add data to the table. The table also extends automatically to include the copied data as long as you copy the data into the first blank row below the table.
A31: Campaigns
A33: All the campaign names that form part of your Google Ads account need to be included in column A on the Campaigns sheet. The easiest way of adding all the campaign names is by extracting the data from Ads and copying the names into column A. This is the only user input data that needs to be added to the sheet - all the columns with light blue column headings contain formulas which are automatically calculated.
A35: Note: All the columns on the Campaigns sheet have been included in an Excel table. The table feature is extremely useful when entering or copying data in a table format because the calculated columns (columns with light blue column headings) are automatically extended when you add data to the table. The table also extends automatically to include the copied data as long as you copy the data into the first blank row below the table.
A37: New campaign names can therefore be added to the Campaigns sheet by simply entering or copying the new campaign names into the first blank cell in column A. The Excel table will then automatically extend to include the new campaign name and the formulas in all the other columns will be included in the new row automatically.
A39: The totals for the selected metric (the values selected from the list box at the top of the sheet) & device are included in row 4 and the reporting periods included in row 5 are based on the report date entered on the Setup sheet.
A41: Note: If you want to extend the default 12-month reporting period, you can do so by copying the formulas from the last column - this includes the formulas which have been added to the Excel table as well as the formulas in the two rows above the column heading (totals and months). You also then need to add a new column heading.
A43: You can select any of a number of value metrics to be displayed on the Campaigns sheet. These include clicks, impressions, click through rates (CTR), costs, cost per click (CPC), conversions, cost per conversion, conversion rates, revenue and return on investment (ROI). The appropriate metrics can be selected from the list box in cell L2 at the top of the sheet. If the contents of the list box are deleted, the calculations default to display costs.
A45: You can also view the calculations for the selected metric for all devices or a selected device. The device can be selected from the list box in cell J2 and the contents of this list box can be cleared in order to display campaign data for all devices. The device list which is included in the list box can be maintained on the Setup sheet.
A47: When you add new campaigns to your Ads account, the campaign names need to be added to the Campaigns sheet in order for the overall calculations to be accurate. If you neglect to add all the new campaign names to the sheet, the overall Ads data will not include all campaigns and therefore not be accurate.
A49: We have therefore built in a completeness check which compares the overall costs on the Campaigns sheet to the calculated overall costs of all the campaigns added to the Data sheet. If the costs do not match, it means that there is a campaign name which has not been added to the Campaigns sheet. This calculation is not displayed on the sheet but has been added as a conditional formatting formula.
A51: Note: If the completeness check reveals that there is a campaign name missing, the campaign name heading in cell A6 will be highlighted in red. This indicates that there is a campaign name missing and that you need to review the Data sheet to determine which campaign name has not been added to the Campaigns sheet. Once you add the campaign name(s), the red highlighting will be removed automatically.
A53: We have also used conditional formatting rules to format the data on the Campaigns sheet with the appropriate number formatting. This means that where a metric is displayed which is a percentage, the values on the Campaigns sheet will automatically be displayed as percentages.
A55: Note: If some rows are displayed as percentages and some as decimal values, it indicates that the conditional formatting rules are not correct. You then need to open the Conditional Formatting - Manage Rules feature from the Home tab on the ribbon and review the cell selections. The rules which relate to the data below the column headings need to be applied to all the rows that contain data. You therefore may need to extend the cell range to include all the rows.
A57: Analysing Campaign Data
A59: The data on the Campaigns sheet enables users to compare monthly Google Ads statistics for all campaigns by selecting the appropriate values that you want to compare from the list box at the top of the sheet. You can also view statistics for all devices by clearing the device list box or view statistics for a specific device by selecting the appropriate device from the list box.
A61: If you then want to analyse the data for a specific campaign in more detail, you can go to the CamCharts sheet and select the appropriate campaign from the list box at the top of the sheet. If you want to analyse data for all campaigns, simply clear the Campaign list box.
A63: Note: The 14-month reporting period which is included on the sheet is based on the report date specified on the Setup sheet. If you want to change this date range, all you need to do is enter a new date on the Setup sheet.
A65: Note: If you want to extend the default 14-month period, we recommend adding the appropriate number of rows in the middle of the current data section (say in row 10). Then copy all the formulas from row 6 and paste them into the rows from row 7 and up to the row above the total row. This will ensure that all the formulas are added correctly and that you do not need to extend the chart source data ranges manually.
A67: The CamCharts sheet also contains a device list box at the top of the sheet which can be used to analyse Ads data for a selected device. If this list box is cleared, the campaign data for all devices will be displayed.
A69: Note: Aside from the list box selections at the top of the sheet, the CamCharts sheet requires no user input - all the calculations on this sheet as well as all the charts which have been included below the calculations are fully automated.
A71: Note: The column headings in row 4 on the CamCharts sheet are used as the names of the value metrics on the other sheets in this template and should therefore not be changed. If you change any of these column headings, the affected cell will be highlighted in red in order to remind you that the column headings cannot be changed. Simply undo your changes in order to have the red highlighting removed automatically.
A73: Ad Groups
A75: All the ad group names that form part of your Google Ads account need to be included in column A on the AdGroups sheet and each ad group needs to be linked to a campaign by including the appropriate campaign name in column B. The easiest way of adding all the ad group & campaign names is by extracting the data from Ads and copying the data into columns A & B. This is the only user input data that needs to be added to the sheet - all the columns with light blue column headings contain formulas which are automatically calculated.
A77: Note: All the columns on the AdGroups sheet have been included in an Excel table. The table feature is extremely useful when entering or copying data in a table format because the calculated columns (columns with light blue column headings) are automatically extended when you add data to the table. The table also extends automatically to include the copied data as long as you copy the data into the first blank row below the Excel table.
A79: New ad groups can therefore be added to the AdGroups sheet by simply entering or copying the new ad groups into the first blank cell in column A. The Excel table will then automatically extend to include the new ad groups and the formulas in all the other columns will be included in the new row automatically.
A81: The totals for the selected metric (the values that are selected from the list box at the top of the sheet) & device are included in row 4 and the reporting periods which are included in row 5 are based on the report date entered on the Setup sheet.
A83: Note: If you want to extend the default 12-month reporting period, you can do so by copying the formulas from the last column - this includes the formulas which have been added to the Excel table as well as the formulas in the two rows above the column heading (totals and months). You also then need to add a new column heading.
A85: You can select any of a number of value metrics to be displayed on the AdGroups sheet. These include clicks, impressions, click through rates (CTR), costs, cost per click (CPC), conversions, cost per conversion, conversion rates, revenue and return on investment (ROI). The appropriate metrics can be selected from the list box in cell K2 at the top of the sheet. If the contents of the list box are deleted, the calculations default to display costs.
A87: You can also view the calculations for the selected metric for all devices or a selected device. The device can be selected from the list box in cell I2 and the contents of this list box can be cleared in order to display ad group data for all devices. The device list which is included in the list box can be maintained on the Setup sheet.
A89: When you add new ad groups to your Ads account, the ad group names need to be added to the AdGroups sheet in order for the overall calculations to be accurate. If you neglect to add all the new ad group names to the sheet, the overall Ads data will not include all ad groups and therefore not be accurate.
A91: We have therefore built in a completeness check which compares the overall costs on the AdGroups sheet to the calculated overall costs of all the ad groups that have been added to the Data sheet. If the costs do not match, it means that there is an ad group name which has not been added to the AdGroups sheet. This calculation is not displayed on the sheet but has been added as a conditional formatting formula.
A93: Note: If the above completeness check reveals that there is an ad group name missing, the ad group & campaign name headings in cells A6 & B6 will be highlighted in red. This indicates that there is an ad group name missing and that you need to review the Data sheet to determine which ad group name has not been added to the AdGroups sheet. Once you add the appropriate ad group name(s), the red highlighting will be removed automatically.
A95: We have also used conditional formatting rules to format the data on the AdGroups sheet with the appropriate number formatting. This means that where a metric is displayed which is a percentage, the values on the AdGroups sheet will automatically be displayed as percentages.
A97: Note: If some rows are displayed as percentages and some as decimal values, it indicates that the conditional formatting rules are not correct. You then need to open the Conditional Formatting - Manage Rules feature from the Home tab on the ribbon and review the cell selections. The rules that relate to the data below the column headings need to be applied to all the rows that contain data. You therefore may need to extend the cell range to include all the rows.
A99: Analysing Ad Group Data
A101: The data on the AdGroups sheet enables users to compare monthly AdWords statistics for all ad groups by selecting the appropriate values that you want to compare from the list box at the top of the sheet. You can also view statistics for all devices by clearing the device list box or view statistics for a specific device by selecting the appropriate device from the list box.
A103: If you then want to analyse the data for a specific ad group in more detail, you can go to the AgCharts sheet and select the appropriate ad group from the list box at the top of the sheet. If you want to analyse data for all ad groups linked to the selected campaign, simply clear the Ad Groups list box.
A105: Note: The campaign name which is reflected at the top of the AgCharts sheet is based on the campaign which has been selected on the CamCharts sheet. Only the ad groups which have been linked to this campaign on the AdGroups sheet will be available for selection from the Ad Groups list box. If the selected campaign is indicated with an asterisk (*), it means that no campaign has been selected on the CamCharts sheet and that all ad groups will therefore be available for selection.
A107: Note: We recommend reviewing campaign data on the CamCharts sheet first and to then drill down in more detail by selecting the appropriate campaign on the CamCharts sheet before opening the AgCharts sheet to review ad group data. Start by clearing the Ad Group list box at the top of the sheet to display data for the entire campaign and then select the available ad groups one at a time in order to view the individual ad group data.
A109: Note: If the Ad Group list box at the top of the sheet is highlighted in red, it means that the currently selected ad group is not linked to the active campaign (the campaign that is currently selected on the CamCharts sheet). You can simply delete the ad group in order to remove the red highlighting and to display all ad group data for the active campaign before selecting the linked ad groups individually from the list box.
A111: Note: The 14-month reporting period which is included on the sheet is based on the report date which is specified on the Setup sheet. If you want to change this date range, all you need to do is enter a new date on the Setup sheet.
A113: Note: If you want to extend the default 14-month period, we recommend adding the appropriate number of rows in the middle of the current data section (say in row 10). Then copy all the formulas from row 6 and paste them into the rows from row 7 and up to the row above the total row. This will ensure that all the formulas are added correctly and that you do not need to extend the chart source data ranges manually.
A115: The AgCharts sheet also contains a device list box at the top of the sheet which can be used to analyse AdWords data for a selected device. If this list box is cleared, the ad group data for all devices will be displayed.
A117: Note: Aside from the list box selections at the top of the sheet, the AgCharts sheet requires no user input - all the calculations on this sheet as well as all the charts that have been included below the calculations are fully automated.
A119: Note: The column headings in row 4 on the AgCharts sheet are used as the names of the value metrics on the other sheets in this template and should therefore not be changed. If you change any of these column headings, the affected cell will be highlighted in red in order to remind you that the column headings cannot be changed. Simply undo your changes in order to have the red highlighting removed automatically.
A121: Help & Customization
A123: If you experience any difficulty while using this template and you are not able to find the appropriate guidance in these instructions, please e-mail us at support@excel-skills.com for assistance. This template has been designed with flexibility in mind to ensure that it can be used in most business environments. If however you need an Excel based template that is customized specifically for your business requirements, please e-mail our Support function and provide a brief explanation of your requirements.
A125: © Copyright
A127: This template remains the intellectual property of www.excel-skills.com and is protected by international copyright laws. Any publication or distribution of this template outside the scope of the permitted use of the template is expressly prohibited. In terms of the permitted use of this template, only the distribution of the template to persons within the same organisation as the registered user or persons outside the organisation who can reasonably be expected to require access to the template as a direct result of the use of the template by the registered user is allowed. Subsequent distribution of the template by parties outside of the organisation is however expressly prohibited and represents an infringement of international copyright laws.

Sheet Setup (hidden)
A1: Google Adwords - Monthly Statistics
A2: Setup
A3: © www.excel-skills.com
A4: Report Date | B4: 2021-04-30
A6: Device List
A7: Desktop
A8: Mobile
A9: Tablet
A10: Other
A11: End of list

Sheet Data (hidden)
A1: Google Adwords - Monthly Statistics
A2: Import Data
A3: © www.excel-skills.com
A4: Month | B4: Campaign | C4: Ad Group | D4: Device | E4: Clicks | F4: Impressions | G4: Cost | H4: Conversions | I4: Total Conv. Value
A5: 2020-01-01 | B5: Campaign 1 | C5: Ad Group 1.1 | D5: Desktop | E5: 80 | F5: 9758 | G5: 24.74 | H5: 19 | I5: 741
A6: 2020-01-01 | B6: Campaign 1 | C6: Ad Group 1.1 | D6: Mobile | E6: 34 | F6: 2927 | G6: 13.61 | H6: 8 | I6: 356
A7: 2020-01-01 | B7: Campaign 1 | C7: Ad Group 1.1 | D7: Tablet | E7: 40 | F7: 3900 | G7: 12 | H7: 5 | I7: 180
A8: 2020-01-01 | B8: Campaign 1 | C8: Ad Group 1.2 | D8: Desktop | E8: 6 | F8: 122 | G8: 9.6 | H8: 1 | I8: 35
A9: 2020-01-01 | B9: Campaign 1 | C9: Ad Group 1.2 | D9: Mobile | E9: 3 | F9: 37 | G9: 5.28 | H9: 0 | I9: 17
A10: 2020-01-01 | B10: Campaign 1 | C10: Ad Group 1.2 | D10: Tablet | E10: 0 | F10: 120 | G10: 0 | H10: 0 | I10: 0
A11: 2020-01-01 | B11: Campaign 1 | C11: Ad Group 1.3 | D11: Desktop | E11: 38 | F11: 1596 | G11: 15.34 | H11: 7 | I11: 263
A12: 2020-01-01 | B12: Campaign 1 | C12: Ad Group 1.3 | D12: Mobile | E12: 16 | F12: 479 | G12: 8.44 | H12: 3 | I12: 126
A13: 2020-01-01 | B13: Campaign 1 | C13: Ad Group 1.3 | D13: Tablet | E13: 0 | F13: 580 | G13: 0 | H13: 0 | I13: 0
A14: 2020-01-01 | B14: Campaign 2 | C14: Ad Group 2.1 | D14: Desktop | E14: 44 | F14: 484 | G14: 74.66 | H14: 5 | I14: 173
A15: 2020-01-01 | B15: Campaign 2 | C15: Ad Group 2.1 | D15: Mobile | E15: 19 | F15: 145 | G15: 41.06 | H15: 2 | I15: 83
A16: 2020-01-01 | B16: Campaign 2 | C16: Ad Group 2.1 | D16: Tablet | E16: 0 | F16: 160 | G16: 0 | H16: 0 | I16: 0
A17: 2020-01-01 | B17: Campaign 2 | C17: Ad Group 2.2 | D17: Desktop | E17: 88 | F17: 2210 | G17: 51.24 | H17: 14 | I17: 504
A18: 2020-01-01 | B18: Campaign 2 | C18: Ad Group 2.2 | D18: Mobile | E18: 38 | F18: 663 | G18: 28.18 | H18: 6 | I18: 242
A19: 2020-01-01 | B19: Campaign 2 | C19: Ad Group 2.2 | D19: Tablet | E19: 40 | F19: 1460 | G19: 24.6 | H19: 6 | I19: 216
A20: 2020-01-01 | B20: Campaign 3 | C20: Ad Group 3.1 | D20: Desktop | E20: 4 | F20: 22 | G20: 8.08 | H20: 0 | I20: 0
A21: 2020-01-01 | B21: Campaign 3 | C21: Ad Group 3.1 | D21: Mobile | E21: 2 | F21: 7 | G21: 4.44 | H21: 0 | I21: 0
A22: 2020-01-01 | B22: Campaign 4 | C22: Ad Group 4.1 | D22: Desktop | E22: 0 | F22: 172 | G22: 0 | H22: 0 | I22: 0
A23: 2020-01-01 | B23: Campaign 4 | C23: Ad Group 4.1 | D23: Tablet | E23: 0 | F23: 40 | G23: 0 | H23: 0 | I23: 0
A24: 2020-01-01 | B24: Campaign 4 | C24: Ad Group 4.2 | D24: Desktop | E24: 4 | F24: 66 | G24: 14.36 | H24: 0 | I24: 0
A25: 2020-01-01 | B25: Campaign 4 | C25: Ad Group 4.2 | D25: Tablet | E25: 0 | F25: 80 | G25: 0 | H25: 0 | I25: 0
A26: 2020-01-01 | B26: Campaign 4 | C26: Ad Group 4.3 | D26: Desktop | E26: 26 | F26: 648 | G26: 30.74 | H26: 4 | I26: 144
A27: 2020-01-01 | B27: Campaign 4 | C27: Ad Group 4.3 | D27: Tablet | E27: 0 | F27: 440 | G27: 0 | H27: 0 | I27: 0
A28: 2020-01-01 | B28: Campaign 5 | C28: Ad Group 5.1 | D28: Desktop | E28: 0 | F28: 50 | G28: 0 | H28: 0 | I28: 0
A29: 2020-01-01 | B29: Campaign 5 | C29: Ad Group 5.1 | D29: Mobile | E29: 0 | F29: 15 | G29: 0 | H29: 0 | I29: 0
A30: 2020-01-01 | B30: Campaign 5 | C30: Ad Group 5.2 | D30: Desktop | E30: 2 | F30: 78 | G30: 9.9 | H30: 0 | I30: 0
A31: 2020-01-01 | B31: Campaign 5 | C31: Ad Group 5.2 | D31: Mobile | E31: 1 | F31: 23 | G31: 5.45 | H31: 0 | I31: 0
A32: 2020-01-01 | B32: Campaign 5 | C32: Ad Group 5.2 | D32: Tablet | E32: 0 | F32: 40 | G32: 0 | H32: 0 | I32: 0
A33: 2020-01-01 | B33: Campaign 5 | C33: Ad Group 5.3 | D33: Desktop | E33: 2 | F33: 28 | G33: 3.4 | H33: 0 | I33: 0
A34: 2020-01-01 | B34: Campaign 5 | C34: Ad Group 5.3 | D34: Mobile | E34: 1 | F34: 8 | G34: 1.87 | H34: 0 | I34: 0
A35: 2020-01-01 | B35: Campaign 5 | C35: Ad Group 5.3 | D35: Tablet | E35: 0 | F35: 20 | G35: 0 | H35: 0 | I35: 0
A36: 2020-02-01 | B36: Campaign 1 | C36: Ad Group 1.1 | D36: Desktop | E36: 238 | F36: 23744 | G36: 77.04 | H36: 51 | I36: 1989
A37: 2020-02-01 | B37: Campaign 1 | C37: Ad Group 1.1 | D37: Mobile | E37: 102 | F37: 7123 | G37: 42.37 | H37: 20 | I37: 955
A38: 2020-02-01 | B38: Campaign 1 | C38: Ad Group 1.1 | D38: Tablet | E38: 80 | F38: 9340 | G38: 24 | H38: 10 | I38: 345
A39: 2020-02-01 | B39: Campaign 1 | C39: Ad Group 1.2 | D39: Desktop | E39: 30 | F39: 272 | G39: 70.9 | H39: 3 | I39: 99
A40: 2020-02-01 | B40: Campaign 1 | C40: Ad Group 1.2 | D40: Mobile | E40: 13 | F40: 82 | G40: 39 | H40: 1 | I40: 48
A41: 2020-02-01 | B41: Campaign 1 | C41: Ad Group 1.2 | D41: Tablet | E41: 0 | F41: 20 | G41: 0 | H41: 0 | I41: 0
A42: 2020-02-01 | B42: Campaign 1 | C42: Ad Group 1.3 | D42: Desktop | E42: 140 | F42: 5234 | G42: 80.04 | H42: 21 | I42: 756
A43: 2020-02-01 | B43: Campaign 1 | C43: Ad Group 1.3 | D43: Mobile | E43: 60 | F43: 1570 | G43: 44.02 | H43: 8 | I43: 363
A44: 2020-02-01 | B44: Campaign 1 | C44: Ad Group 1.3 | D44: Tablet | E44: 0 | F44: 1780 | G44: 0 | H44: 0 | I44: 0
A45: 2020-02-01 | B45: Campaign 2 | C45: Ad Group 2.1 | D45: Desktop | E45: 150 | F45: 1938 | G45: 214.6 | H45: 15 | I45: 518
A46: 2020-02-01 | B46: Campaign 2 | C46: Ad Group 2.1 | D46: Mobile | E46: 65 | F46: 581 | G46: 118.03 | H46: 6 | I46: 249
A47: 2020-02-01 | B47: Campaign 2 | C47: Ad Group 2.1 | D47: Tablet | E47: 120 | F47: 820 | G47: 123.8 | H47: 14 | I47: 483
A48: 2020-02-01 | B48: Campaign 2 | C48: Ad Group 2.2 | D48: Desktop | E48: 224 | F48: 6194 | G48: 132.26 | H48: 35 | I48: 1260
A49: 2020-02-01 | B49: Campaign 2 | C49: Ad Group 2.2 | D49: Mobile | E49: 96 | F49: 1858 | G49: 72.74 | H49: 14 | I49: 605
A50: 2020-02-01 | B50: Campaign 2 | C50: Ad Group 2.2 | D50: Tablet | E50: 140 | F50: 3780 | G50: 118 | H50: 20 | I50: 720
A51: 2020-02-01 | B51: Campaign 3 | C51: Ad Group 3.1 | D51: Desktop | E51: 48 | F51: 194 | G51: 173.6 | H51: 3 | I51: 99
A52: 2020-02-01 | B52: Campaign 3 | C52: Ad Group 3.1 | D52: Mobile | E52: 21 | F52: 58 | G52: 95.48 | H52: 1 | I52: 48
A53: 2020-02-01 | B53: Campaign 3 | C53: Ad Group 3.1 | D53: Tablet | E53: 0 | F53: 40 | G53: 0 | H53: 0 | I53: 0
A54: 2020-02-01 | B54: Campaign 4 | C54: Ad Group 4.1 | D54: Desktop | E54: 30 | F54: 2152 | G54: 5.1 | H54: 5 | I54: 180
A55: 2020-02-01 | B55: Campaign 4 | C55: Ad Group 4.1 | D55: Tablet | E55: 0 | F55: 860 | G55: 0 | H55: 0 | I55: 0
A56: 2020-02-01 | B56: Campaign 4 | C56: Ad Group 4.2 | D56: Desktop | E56: 64 | F56: 1248 | G56: 211.54 | H56: 4 | I56: 132
A57: 2020-02-01 | B57: Campaign 4 | C57: Ad Group 4.2 | D57: Tablet | E57: 40 | F57: 620 | G57: 102.2 | H57: 3 | I57: 99
A58: 2020-02-01 | B58: Campaign 4 | C58: Ad Group 4.3 | D58: Desktop | E58: 238 | F58: 10422 | G58: 232.02 | H58: 33 | I58: 1188
A59: 2020-02-01 | B59: Campaign 4 | C59: Ad Group 4.3 | D59: Tablet | E59: 260 | F59: 6280 | G59: 212 | H59: 35 | I59: 1260
A60: 2020-02-01 | B60: Campaign 5 | C60: Ad Group 5.1 | D60: Desktop | E60: 2 | F60: 488 | G60: 0.34 | H60: 0 | I60: 0
A61: 2020-02-01 | B61: Campaign 5 | C61: Ad Group 5.1 | D61: Mobile | E61: 1 | F61: 146 | G61: 0.19 | H61: 0 | I61: 0
A62: 2020-02-01 | B62: Campaign 5 | C62: Ad Group 5.1 | D62: Tablet | E62: 0 | F62: 280 | G62: 0 | H62: 0 | I62: 0
A63: 2020-02-01 | B63: Campaign 5 | C63: Ad Group 5.2 | D63: Desktop | E63: 38 | F63: 920 | G63: 181.96 | H63: 7 | I63: 263
A64: 2020-02-01 | B64: Campaign 5 | C64: Ad Group 5.2 | D64: Mobile | E64: 16 | F64: 276 | G64: 100.08 | H64: 3 | I64: 126
A65: 2020-02-01 | B65: Campaign 5 | C65: Ad Group 5.2 | D65: Tablet | E65: 0 | F65: 560 | G65: 0 | H65: 0 | I65: 0
A66: 2020-02-01 | B66: Campaign 5 | C66: Ad Group 5.3 | D66: Desktop | E66: 28 | F66: 682 | G66: 50.28 | H66: 6 | I66: 234
A67: 2020-02-01 | B67: Campaign 5 | C67: Ad Group 5.3 | D67: Mobile | E67: 12 | F67: 205 | G67: 27.65 | H67: 2 | I67: 112
A68: 2020-02-01 | B68: Campaign 5 | C68: Ad Group 5.3 | D68: Tablet | E68: 0 | F68: 360 | G68: 0 | H68: 0 | I68: 0
A69: 2020-03-01 | B69: Campaign 1 | C69: Ad Group 1.1 | D69: Desktop | E69: 132 | F69: 12936 | G69: 39.48 | H69: 20 | I69: 720
A70: 2020-03-01 | B70: Campaign 1 | C70: Ad Group 1.1 | D70: Mobile | E70: 57 | F70: 3881 | G70: 21.71 | H70: 8 | I70: 346
A71: 2020-03-01 | B71: Campaign 1 | C71: Ad Group 1.1 | D71: Tablet | E71: 20 | F71: 7980 | G71: 3 | H71: 3 | I71: 108
A72: 2020-03-01 | B72: Campaign 1 | C72: Ad Group 1.2 | D72: Desktop | E72: 14 | F72: 302 | G72: 25.7 | H72: 1 | I72: 33
A73: 2020-03-01 | B73: Campaign 1 | C73: Ad Group 1.2 | D73: Mobile | E73: 6 | F73: 91 | G73: 14.14 | H73: 0 | I73: 16
A74: 2020-03-01 | B74: Campaign 1 | C74: Ad Group 1.2 | D74: Tablet | E74: 0 | F74: 40 | G74: 0 | H74: 0 | I74: 0
A75: 2020-03-01 | B75: Campaign 1 | C75: Ad Group 1.3 | D75: Desktop | E75: 258 | F75: 7308 | G75: 297.7 | H75: 34 | I75: 1173
A76: 2020-03-01 | B76: Campaign 1 | C76: Ad Group 1.3 | D76: Mobile | E76: 111 | F76: 2192 | G76: 163.74 | H76: 14 | I76: 563
A77: 2020-03-01 | B77: Campaign 1 | C77: Ad Group 1.3 | D77: Tablet | E77: 40 | F77: 3260 | G77: 28.4 | H77: 6 | I77: 216
A78: 2020-03-01 | B78: Campaign 2 | C78: Ad Group 2.1 | D78: Desktop | E78: 124 | F78: 2130 | G78: 174.04 | H78: 12 | I78: 396
A79: 2020-03-01 | B79: Campaign 2 | C79: Ad Group 2.1 | D79: Mobile | E79: 53 | F79: 639 | G79: 95.72 | H79: 5 | I79: 190
A80: 2020-03-01 | B80: Campaign 2 | C80: Ad Group 2.1 | D80: Tablet | E80: 120 | F80: 1340 | G80: 257.2 | H80: 12 | I80: 414
A81: 2020-03-01 | B81: Campaign 2 | C81: Ad Group 2.2 | D81: Desktop | E81: 278 | F81: 5624 | G81: 231.82 | H81: 35 | I81: 1208
A82: 2020-03-01 | B82: Campaign 2 | C82: Ad Group 2.2 | D82: Mobile | E82: 120 | F82: 1687 | G82: 127.5 | H82: 14 | I82: 580
A83: 2020-03-01 | B83: Campaign 2 | C83: Ad Group 2.2 | D83: Tablet | E83: 40 | F83: 3300 | G83: 41.4 | H83: 6 | I83: 216
A84: 2020-03-01 | B84: Campaign 3 | C84: Ad Group 3.1 | D84: Desktop | E84: 58 | F84: 200 | G84: 167.96 | H84: 3 | I84: 95
A85: 2020-03-01 | B85: Campaign 3 | C85: Ad Group 3.1 | D85: Mobile | E85: 25 | F85: 60 | G85: 92.38 | H85: 1 | I85: 46
A86: 2020-03-01 | B86: Campaign 3 | C86: Ad Group 3.1 | D86: Tablet | E86: 0 | F86: 40 | G86: 0 | H86: 0 | I86: 0
A87: 2020-03-01 | B87: Campaign 4 | C87: Ad Group 4.1 | D87: Desktop | E87: 20 | F87: 1178 | G87: 4.28 | H87: 3 | I87: 32
A88: 2020-03-01 | B88: Campaign 4 | C88: Ad Group 4.1 | D88: Tablet | E88: 0 | F88: 600 | G88: 0 | H88: 0 | I88: 0
A89: 2020-03-01 | B89: Campaign 4 | C89: Ad Group 4.2 | D89: Desktop | E89: 48 | F89: 1082 | G89: 157.82 | H89: 3 | I89: 99
A90: 2020-03-01 | B90: Campaign 4 | C90: Ad Group 4.2 | D90: Tablet | E90: 20 | F90: 700 | G90: 56.8 | H90: 1 | I90: 33
A91: 2020-03-01 | B91: Campaign 4 | C91: Ad Group 4.3 | D91: Desktop | E91: 276 | F91: 10382 | G91: 340.02 | H91: 35 | I91: 1208
A92: 2020-03-01 | B92: Campaign 4 | C92: Ad Group 4.3 | D92: Tablet | E92: 40 | F92: 4600 | G92: 36.2 | H92: 5 | I92: 180
A93: 2020-03-01 | B93: Campaign 5 | C93: Ad Group 5.1 | D93: Desktop | E93: 4 | F93: 382 | G93: 0.64 | H93: 1 | I93: 36
A94: 2020-03-01 | B94: Campaign 5 | C94: Ad Group 5.1 | D94: Mobile | E94: 2 | F94: 115 | G94: 0.35 | H94: 0 | I94: 17
A95: 2020-03-01 | B95: Campaign 5 | C95: Ad Group 5.1 | D95: Tablet | E95: 0 | F95: 660 | G95: 0 | H95: 0 | I95: 0
A96: 2020-03-01 | B96: Campaign 5 | C96: Ad Group 5.2 | D96: Desktop | E96: 44 | F96: 996 | G96: 218.64 | H96: 6 | I96: 207
A97: 2020-03-01 | B97: Campaign 5 | C97: Ad Group 5.2 | D97: Mobile | E97: 19 | F97: 299 | G97: 120.25 | H97: 2 | I97: 99
A98: 2020-03-01 | B98: Campaign 5 | C98: Ad Group 5.2 | D98: Tablet | E98: 20 | F98: 520 | G98: 122.6 | H98: 2 | I98: 69
A99: 2020-03-01 | B99: Campaign 5 | C99: Ad Group 5.3 | D99: Desktop | E99: 52 | F99: 812 | G99: 141.46 | H99: 7 | I99: 252
A100: 2020-03-01 | B100: Campaign 5 | C100: Ad Group 5.3 | D100: Mobile | E100: 22 | F100: 244 | G100: 77.8 | H100: 3 | I100: 121
A101: 2020-03-01 | B101: Campaign 5 | C101: Ad Group 5.3 | D101: Tablet | E101: 40 | F101: 1020 | G101: 71 | H101: 10 | I101: 390
A102: 2020-04-01 | B102: Campaign 1 | C102: Ad Group 1.1 | D102: Desktop | E102: 206 | F102: 15248 | G102: 78.92 | H102: 43 | I102: 1677
A103: 2020-04-01 | B103: Campaign 1 | C103: Ad Group 1.1 | D103: Mobile | E103: 89 | F103: 4574 | G103: 43.41 | H103: 17 | I103: 805
A104: 2020-04-01 | B104: Campaign 1 | C104: Ad Group 1.1 | D104: Tablet | E104: 20 | F104: 8760 | G104: 8.6 | H104: 4 | I104: 150
A105: 2020-04-01 | B105: Campaign 1 | C105: Ad Group 1.2 | D105: Desktop | E105: 20 | F105: 218 | G105: 32.36 | H105: 2 | I105: 66
A106: 2020-04-01 | B106: Campaign 1 | C106: Ad Group 1.2 | D106: Mobile | E106: 9 | F106: 65 | G106: 17.8 | H106: 1 | I106: 32
A107: 2020-04-01 | B107: Campaign 1 | C107: Ad Group 1.2 | D107: Tablet | E107: 0 | F107: 80 | G107: 0 | H107: 0 | I107: 0
A108: 2020-04-01 | B108: Campaign 1 | C108: Ad Group 1.3 | D108: Desktop | E108: 248 | F108: 7694 | G108: 314.2 | H108: 33 | I108: 1188
A109: 2020-04-01 | B109: Campaign 1 | C109: Ad Group 1.3 | D109: Mobile | E109: 107 | F109: 2308 | G109: 172.81 | H109: 13 | I109: 570
A110: 2020-04-01 | B110: Campaign 1 | C110: Ad Group 1.3 | D110: Tablet | E110: 40 | F110: 3560 | G110: 47.6 | H110: 5 | I110: 180
A111: 2020-04-01 | B111: Campaign 2 | C111: Ad Group 2.1 | D111: Desktop | E111: 228 | F111: 2166 | G111: 343.36 | H111: 22 | I111: 759
A112: 2020-04-01 | B112: Campaign 2 | C112: Ad Group 2.1 | D112: Mobile | E112: 98 | F112: 650 | G112: 188.85 | H112: 9 | I112: 364
A113: 2020-04-01 | B113: Campaign 2 | C113: Ad Group 2.1 | D113: Tablet | E113: 40 | F113: 960 | G113: 72.4 | H113: 5 | I113: 173
A114: 2020-04-01 | B114: Campaign 2 | C114: Ad Group 2.2 | D114: Desktop | E114: 324 | F114: 7122 | G114: 326.74 | H114: 40 | I114: 1380
A115: 2020-04-01 | B115: Campaign 2 | C115: Ad Group 2.2 | D115: Mobile | E115: 139 | F115: 2137 | G115: 179.71 | H115: 16 | I115: 662
A116: 2020-04-01 | B116: Campaign 2 | C116: Ad Group 2.2 | D116: Tablet | E116: 160 | F116: 3780 | G116: 186 | H116: 22 | I116: 792
A117: 2020-04-01 | B117: Campaign 3 | C117: Ad Group 3.1 | D117: Desktop | E117: 36 | F117: 220 | G117: 93.78 | H117: 2 | I117: 66
A118: 2020-04-01 | B118: Campaign 3 | C118: Ad Group 3.1 | D118: Mobile | E118: 15 | F118: 66 | G118: 51.58 | H118: 1 | I118: 32
A119: 2020-04-01 | B119: Campaign 3 | C119: Ad Group 3.1 | D119: Tablet | E119: 40 | F119: 80 | G119: 147.4 | H119: 2 | I119: 63
A120: 2020-04-01 | B120: Campaign 4 | C120: Ad Group 4.1 | D120: Desktop | E120: 36 | F120: 1766 | G120: 12.84 | H120: 6 | I120: 216
A121: 2020-04-01 | B121: Campaign 4 | C121: Ad Group 4.1 | D121: Tablet | E121: 20 | F121: 1060 | G121: 19.2 | H121: 3 | I121: 108
A122: 2020-04-01 | B122: Campaign 4 | C122: Ad Group 4.2 | D122: Desktop | E122: 66 | F122: 1136 | G122: 172.56 | H122: 4 | I122: 132
A123: 2020-04-01 | B123: Campaign 4 | C123: Ad Group 4.2 | D123: Tablet | E123: 20 | F123: 640 | G123: 113 | H123: 2 | I123: 66
A124: 2020-04-01 | B124: Campaign 4 | C124: Ad Group 4.3 | D124: Desktop | E124: 270 | F124: 10322 | G124: 332.82 | H124: 38 | I124: 1368
A125: 2020-04-01 | B125: Campaign 4 | C125: Ad Group 4.3 | D125: Tablet | E125: 100 | F125: 4960 | G125: 157 | H125: 17 | I125: 612
A126: 2020-04-01 | B126: Campaign 5 | C126: Ad Group 5.1 | D126: Desktop | E126: 42 | F126: 1432 | G126: 85.9 | H126: 7 | I126: 263
A127: 2020-04-01 | B127: Campaign 5 | C127: Ad Group 5.1 | D127: Mobile | E127: 18 | F127: 430 | G127: 47.25 | H127: 3 | I127: 126
A128: 2020-04-01 | B128: Campaign 5 | C128: Ad Group 5.1 | D128: Tablet | E128: 0 | F128: 860 | G128: 0 | H128: 0 | I128: 0
A129: 2020-04-01 | B129: Campaign 5 | C129: Ad Group 5.2 | D129: Desktop | E129: 54 | F129: 1092 | G129: 309.18 | H129: 6 | I129: 207
A130: 2020-04-01 | B130: Campaign 5 | C130: Ad Group 5.2 | D130: Mobile | E130: 23 | F130: 328 | G130: 170.05 | H130: 2 | I130: 99
A131: 2020-04-01 | B131: Campaign 5 | C131: Ad Group 5.2 | D131: Tablet | E131: 60 | F131: 1040 | G131: 256.6 | H131: 8 | I131: 288
A132: 2020-04-01 | B132: Campaign 5 | C132: Ad Group 5.3 | D132: Desktop | E132: 64 | F132: 1168 | G132: 224.58 | H132: 8 | I132: 288
A133: 2020-04-01 | B133: Campaign 5 | C133: Ad Group 5.3 | D133: Mobile | E133: 28 | F133: 350 | G133: 123.52 | H133: 3 | I133: 138
A134: 2020-04-01 | B134: Campaign 5 | C134: Ad Group 5.3 | D134: Tablet | E134: 80 | F134: 1260 | G134: 349.4 | H134: 11 | I134: 396
A135: 2020-05-01 | B135: Campaign 1 | C135: Ad Group 1.1 | D135: Desktop | E135: 370 | F135: 23888 | G135: 270.82 | H135: 76 | I135: 2964
A136: 2020-05-01 | B136: Campaign 1 | C136: Ad Group 1.1 | D136: Mobile | E136: 159 | F136: 7166 | G136: 148.95 | H136: 30 | I136: 1423
A137: 2020-05-01 | B137: Campaign 1 | C137: Ad Group 1.1 | D137: Tablet | E137: 180 | F137: 15100 | G137: 139.8 | H137: 38 | I137: 1482
A138: 2020-05-01 | B138: Campaign 1 | C138: Ad Group 1.2 | D138: Desktop | E138: 20 | F138: 236 | G138: 35.72 | H138: 2 | I138: 66
A139: 2020-05-01 | B139: Campaign 1 | C139: Ad Group 1.2 | D139: Mobile | E139: 9 | F139: 71 | G139: 19.65 | H139: 1 | I139: 32
A140: 2020-05-01 | B140: Campaign 1 | C140: Ad Group 1.2 | D140: Tablet | E140: 20 | F140: 180 | G140: 64.2 | H140: 2 | I140: 69
A141: 2020-05-01 | B141: Campaign 1 | C141: Ad Group 1.3 | D141: Desktop | E141: 182 | F141: 6264 | G141: 242.06 | H141: 25 | I141: 900
A142: 2020-05-01 | B142: Campaign 1 | C142: Ad Group 1.3 | D142: Mobile | E142: 78 | F142: 1879 | G142: 133.13 | H142: 10 | I142: 432
A143: 2020-05-01 | B143: Campaign 1 | C143: Ad Group 1.3 | D143: Tablet | E143: 80 | F143: 3380 | G143: 90.4 | H143: 12 | I143: 432
A144: 2020-05-01 | B144: Campaign 2 | C144: Ad Group 2.1 | D144: Desktop | E144: 164 | F144: 1858 | G144: 318.54 | H144: 14 | I144: 462
A145: 2020-05-01 | B145: Campaign 2 | C145: Ad Group 2.1 | D145: Mobile | E145: 71 | F145: 557 | G145: 175.2 | H145: 6 | I145: 222
A146: 2020-05-01 | B146: Campaign 2 | C146: Ad Group 2.1 | D146: Tablet | E146: 60 | F146: 820 | G146: 106.6 | H146: 6 | I146: 207
A147: 2020-05-01 | B147: Campaign 2 | C147: Ad Group 2.2 | D147: Desktop | E147: 432 | F147: 8106 | G147: 650.44 | H147: 48 | I147: 1656
A148: 2020-05-01 | B148: Campaign 2 | C148: Ad Group 2.2 | D148: Mobile | E148: 186 | F148: 2432 | G148: 357.74 | H148: 19 | I148: 795
A149: 2020-05-01 | B149: Campaign 2 | C149: Ad Group 2.2 | D149: Tablet | E149: 140 | F149: 5420 | G149: 212.2 | H149: 19 | I149: 684
A150: 2020-05-01 | B150: Campaign 3 | C150: Ad Group 3.1 | D150: Desktop | E150: 48 | F150: 178 | G150: 200.42 | H150: 3 | I150: 99
A151: 2020-05-01 | B151: Campaign 3 | C151: Ad Group 3.1 | D151: Mobile | E151: 21 | F151: 53 | G151: 110.23 | H151: 1 | I151: 48
A152: 2020-05-01 | B152: Campaign 3 | C152: Ad Group 3.1 | D152: Tablet | E152: 0 | F152: 60 | G152: 0 | H152: 0 | I152: 0
A153: 2020-05-01 | B153: Campaign 4 | C153: Ad Group 4.1 | D153: Desktop | E153: 132 | F153: 8314 | G153: 111.26 | H153: 21 | I153: 756
A154: 2020-05-01 | B154: Campaign 4 | C154: Ad Group 4.1 | D154: Tablet | E154: 40 | F154: 5160 | G154: 53.2 | H154: 7 | I154: 252
A155: 2020-05-01 | B155: Campaign 4 | C155: Ad Group 4.2 | D155: Desktop | E155: 66 | F155: 1250 | G155: 174.84 | H155: 4 | I155: 132
A156: 2020-05-01 | B156: Campaign 4 | C156: Ad Group 4.2 | D156: Tablet | E156: 20 | F156: 580 | G156: 55 | H156: 2 | I156: 66
A157: 2020-05-01 | B157: Campaign 4 | C157: Ad Group 4.3 | D157: Desktop | E157: 220 | F157: 7096 | G157: 303.96 | H157: 29 | I157: 1044
A158: 2020-05-01 | B158: Campaign 4 | C158: Ad Group 4.3 | D158: Tablet | E158: 40 | F158: 4220 | G158: 46.8 | H158: 6 | I158: 216
A159: 2020-05-01 | B159: Campaign 5 | C159: Ad Group 5.1 | D159: Desktop | E159: 176 | F159: 5494 | G159: 637.4 | H159: 26 | I159: 936
A160: 2020-05-01 | B160: Campaign 5 | C160: Ad Group 5.1 | D160: Mobile | E160: 76 | F160: 1648 | G160: 350.57 | H160: 10 | I160: 449
A161: 2020-05-01 | B161: Campaign 5 | C161: Ad Group 5.1 | D161: Tablet | E161: 300 | F161: 6860 | G161: 1100.8 | H161: 45 | I161: 1620
A162: 2020-05-01 | B162: Campaign 5 | C162: Ad Group 5.2 | D162: Desktop | E162: 64 | F162: 1062 | G162: 416.18 | H162: 6 | I162: 207
A163: 2020-05-01 | B163: Campaign 5 | C163: Ad Group 5.2 | D163: Mobile | E163: 28 | F163: 319 | G163: 228.9 | H163: 2 | I163: 99
A164: 2020-05-01 | B164: Campaign 5 | C164: Ad Group 5.2 | D164: Tablet | E164: 60 | F164: 1000 | G164: 438.6 | H164: 7 | I164: 242
A165: 2020-05-01 | B165: Campaign 5 | C165: Ad Group 5.3 | D165: Desktop | E165: 72 | F165: 1430 | G165: 355.84 | H165: 8 | I165: 276
A166: 2020-05-01 | B166: Campaign 5 | C166: Ad Group 5.3 | D166: Mobile | E166: 31 | F166: 429 | G166: 195.71 | H166: 3 | I166: 132
A167: 2020-05-01 | B167: Campaign 5 | C167: Ad Group 5.3 | D167: Tablet | E167: 80 | F167: 1240 | G167: 389.8 | H167: 11 | I167: 396
A168: 2020-06-01 | B168: Campaign 1 | C168: Ad Group 1.1 | D168: Desktop | E168: 810 | F168: 40352 | G168: 514.98 | H168: 143 | I168: 5363
A169: 2020-06-01 | B169: Campaign 1 | C169: Ad Group 1.1 | D169: Mobile | E169: 348 | F169: 12106 | G169: 283.24 | H169: 57 | I169: 2574
A170: 2020-06-01 | B170: Campaign 1 | C170: Ad Group 1.1 | D170: Tablet | E170: 320 | F170: 22460 | G170: 157 | H170: 54 | I170: 2025
A171: 2020-06-01 | B171: Campaign 1 | C171: Ad Group 1.2 | D171: Desktop | E171: 26 | F171: 224 | G171: 54.94 | H171: 2 | I171: 66
A172: 2020-06-01 | B172: Campaign 1 | C172: Ad Group 1.2 | D172: Mobile | E172: 11 | F172: 67 | G172: 30.22 | H172: 1 | I172: 32
A173: 2020-06-01 | B173: Campaign 1 | C173: Ad Group 1.2 | D173: Tablet | E173: 0 | F173: 80 | G173: 0 | H173: 0 | I173: 0
A174: 2020-06-01 | B174: Campaign 1 | C174: Ad Group 1.3 | D174: Desktop | E174: 292 | F174: 7430 | G174: 327.9 | H174: 38 | I174: 1368
A175: 2020-06-01 | B175: Campaign 1 | C175: Ad Group 1.3 | D175: Mobile | E175: 126 | F175: 2229 | G175: 180.35 | H175: 15 | I175: 657
A176: 2020-06-01 | B176: Campaign 1 | C176: Ad Group 1.3 | D176: Tablet | E176: 160 | F176: 3500 | G176: 220.8 | H176: 23 | I176: 828
A177: 2020-06-01 | B177: Campaign 2 | C177: Ad Group 2.1 | D177: Desktop | E177: 222 | F177: 1788 | G177: 412.7 | H177: 18 | I177: 594
A178: 2020-06-01 | B178: Campaign 2 | C178: Ad Group 2.1 | D178: Mobile | E178: 95 | F178: 536 | G178: 226.99 | H178: 7 | I178: 285
A179: 2020-06-01 | B179: Campaign 2 | C179: Ad Group 2.1 | D179: Tablet | E179: 100 | F179: 940 | G179: 76.4 | H179: 12 | I179: 414
A180: 2020-06-01 | B180: Campaign 2 | C180: Ad Group 2.2 | D180: Desktop | E180: 630 | F180: 8888 | G180: 881.22 | H180: 66 | I180: 2277
A181: 2020-06-01 | B181: Campaign 2 | C181: Ad Group 2.2 | D181: Mobile | E181: 271 | F181: 2666 | G181: 484.67 | H181: 26 | I181: 1093
A182: 2020-06-01 | B182: Campaign 2 | C182: Ad Group 2.2 | D182: Tablet | E182: 160 | F182: 4840 | G182: 185.8 | H182: 21 | I182: 725
A183: 2020-06-01 | B183: Campaign 3 | C183: Ad Group 3.1 | D183: Desktop | E183: 74 | F183: 220 | G183: 276.72 | H183: 4 | I183: 126
A184: 2020-06-01 | B184: Campaign 3 | C184: Ad Group 3.1 | D184: Mobile | E184: 32 | F184: 66 | G184: 152.2 | H184: 2 | I184: 60
A185: 2020-06-01 | B185: Campaign 3 | C185: Ad Group 3.1 | D185: Tablet | E185: 20 | F185: 80 | G185: 15.4 | H185: 1 | I185: 32
A186: 2020-06-01 | B186: Campaign 4 | C186: Ad Group 4.1 | D186: Desktop | E186: 262 | F186: 16252 | G186: 236.36 | H186: 40 | I186: 1440
A187: 2020-06-01 | B187: Campaign 4 | C187: Ad Group 4.1 | D187: Tablet | E187: 80 | F187: 9120 | G187: 78.8 | H187: 12 | I187: 432
A188: 2020-06-01 | B188: Campaign 4 | C188: Ad Group 4.2 | D188: Desktop | E188: 110 | F188: 1192 | G188: 271.3 | H188: 7 | I188: 231
A189: 2020-06-01 | B189: Campaign 4 | C189: Ad Group 4.2 | D189: Tablet | E189: 0 | F189: 560 | G189: 0 | H189: 0 | I189: 0
A190: 2020-06-01 | B190: Campaign 4 | C190: Ad Group 4.3 | D190: Desktop | E190: 356 | F190: 8438 | G190: 495.74 | H190: 45 | I190: 1553
A191: 2020-06-01 | B191: Campaign 4 | C191: Ad Group 4.3 | D191: Tablet | E191: 280 | F191: 5580 | G191: 454 | H191: 36 | I191: 1242
A192: 2020-06-01 | B192: Campaign 5 | C192: Ad Group 5.1 | D192: Desktop | E192: 334 | F192: 7008 | G192: 999.3 | H192: 45 | I192: 1620
A193: 2020-06-01 | B193: Campaign 5 | C193: Ad Group 5.1 | D193: Mobile | E193: 144 | F193: 2102 | G193: 549.62 | H193: 18 | I193: 778
A194: 2020-06-01 | B194: Campaign 5 | C194: Ad Group 5.1 | D194: Tablet | E194: 300 | F194: 6500 | G194: 1073.8 | H194: 40 | I194: 1440
A195: 2020-06-01 | B195: Campaign 5 | C195: Ad Group 5.2 | D195: Desktop | E195: 74 | F195: 1192 | G195: 492.66 | H195: 7 | I195: 242
A196: 2020-06-01 | B196: Campaign 5 | C196: Ad Group 5.2 | D196: Mobile | E196: 32 | F196: 358 | G196: 270.96 | H196: 3 | I196: 116
A197: 2020-06-01 | B197: Campaign 5 | C197: Ad Group 5.2 | D197: Tablet | E197: 40 | F197: 520 | G197: 198.8 | H197: 4 | I197: 138
A198: 2020-06-01 | B198: Campaign 5 | C198: Ad Group 5.3 | D198: Desktop | E198: 112 | F198: 1516 | G198: 456.78 | H198: 11 | I198: 380
A199: 2020-06-01 | B199: Campaign 5 | C199: Ad Group 5.3 | D199: Mobile | E199: 48 | F199: 455 | G199: 251.23 | H199: 4 | I199: 182
A200: 2020-06-01 | B200: Campaign 5 | C200: Ad Group 5.3 | D200: Tablet | E200: 100 | F200: 800 | G200: 409.2 | H200: 10 | I200: 345
... 329 more rows

Sheet Campaigns (hidden)
A1: Google Adwords - Monthly Statistics | J1: Device: | L1: Select values to display:
A2: Campaigns | D2: =IF(AND($L$2="Cost",$K$2="*"),IF(ROUND(SUM(OFFSET($B$6,1,0,CampCount,COLUMN($M$5)-1)),2)=ROUND(SUMIFS(GCost,GDate,"<="&$B$5,GDate,">="&DATE(YEAR($M$5),MONTH($M$5),1)),2),"ok","error!"),"ok") -> ok | E2: =IF(ISERROR(FIND("*",$H$2)),"error!",MID($H$2,FIND("*",$H$2)+1,LEN($H$2)-FIND("*",$H$2))) -> N0 | F2: =IF(ISERROR(FIND("-",$H$2)),"error!",MID($H$2,1,FIND("-",$H$2)-1)) -> Cost | G2: =IF(ISERROR(FIND("-",$H$2)),"error!",IF(ISERROR(FIND("*",$H$2)),"error!",MID($H$2,FIND("-",$H$2)+1,FIND("*",$H$2)-1-FIND("-",$H$2)))) -> None | H2: =IF(ISNA(MATCH($L$2,CTypeList,0)),"Cost-None*N0",OFFSET(CamCharts!$A$4,-1,MATCH($L$2,CTypeList,0),1,1)) -> Cost-None*N0 | K2: =IF(ISBLANK($J$2),"*",$J$2) -> * | L2: Cost
A3: © www.excel-skills.com
A4: =IF(ISBLANK($L$2),"Total Cost: ","Total "&$L$2&": ") -> Total Cost: | B4: =IF($G$2="None",SUMIFS(INDIRECT("G"&$F$2),GDate,"<="&B$5,GDate,">="&DATE(YEAR(B$5),MONTH(B$5),1),GDevice,$K$2),IF(SUMIFS(INDIRECT("G"&$G$2),GDate,"<="&B$5,GDate,">="&DATE(YEAR(B$5),MONTH(B$5),1),GDevice,$K$2)=0,0,SUMIFS(INDIRECT("G"&$F$2),GDate,"<="&B$5,GDate,">="&DATE(YEAR(B$5),MONTH(B$5),1),GDevice,$K$2)/SUMIFS(INDIRECT("G"&$G$2),GDate,"<="&B$5,GDate,">="&DATE(YEAR(B$5),MONTH(B$5),1),GDevice,$K$2))) -> 4545.26 | C4: =IF($G$2="None",SUMIFS(INDIRECT("G"&$F$2),GDate,"<="&C$5,GDate,">="&DATE(YEAR(C$5),MONTH(C$5),1),GDevice,$K$2),IF(SUMIFS(INDIRECT("G"&$G$2),GDate,"<="&C$5,GDate,">="&DATE(YEAR(C$5),MONTH(C$5),1),GDevice,$K$2)=0,0,SUMIFS(INDIRECT("G"&$F$2),GDate,"<="&C$5,GDate,">="&DATE(YEAR(C$5),MONTH(C$5),1),GDevice,$K$2)/SUMIFS(INDIRECT("G"&$G$2),GDate,"<="&C$5,GDate,">="&DATE(YEAR(C$5),MONTH(C$5),1),GDevice,$K$2))) -> 6045.99 | D4: =IF($G$2="None",SUMIFS(INDIRECT("G"&$F$2),GDate,"<="&D$5,GDate,">="&DATE(YEAR(D$5),MONTH(D$5),1),GDevice,$K$2),IF(SUMIFS(INDIRECT("G"&$G$2),GDate,"<="&D$5,GDate,">="&DATE(YEAR(D$5),MONTH(D$5),1),GDevice,$K$2)=0,0,SUMIFS(INDIRECT("G"&$F$2),GDate,"<="&D$5,GDate,">="&DATE(YEAR(D$5),MONTH(D$5),1),GDevice,$K$2)/SUMIFS(INDIRECT("G"&$G$2),GDate,"<="&D$5,GDate,">="&DATE(YEAR(D$5),MONTH(D$5),1),GDevice,$K$2))) -> 6306.68 | E4: =IF($G$2="None",SUMIFS(INDIRECT("G"&$F$2),GDate,"<="&E$5,GDate,">="&DATE(YEAR(E$5),MONTH(E$5),1),GDevice,$K$2),IF(SUMIFS(INDIRECT("G"&$G$2),GDate,"<="&E$5,GDate,">="&DATE(YEAR(E$5),MONTH(E$5),1),GDevice,$K$2)=0,0,SUMIFS(INDIRECT("G"&$F$2),GDate,"<="&E$5,GDate,">="&DATE(YEAR(E$5),MONTH(E$5),1),GDevice,$K$2)/SUMIFS(INDIRECT("G"&$G$2),GDate,"<="&E$5,GDate,">="&DATE(YEAR(E$5),MONTH(E$5),1),GDevice,$K$2))) -> 6638.18 | F4: =IF($G$2="None",SUMIFS(INDIRECT("G"&$F$2),GDate,"<="&F$5,GDate,">="&DATE(YEAR(F$5),MONTH(F$5),1),GDevice,$K$2),IF(SUMIFS(INDIRECT("G"&$G$2),GDate,"<="&F$5,GDate,">="&DATE(YEAR(F$5),MONTH(F$5),1),GDevice,$K$2)=0,0,SUMIFS(INDIRECT("G"&$F$2),GDate,"<="&F$5,GDate,">="&DATE(YEAR(F$5),MONTH(F$5),1),GDevice,$K$2)/SUMIFS(INDIRECT("G"&$G$2),GDate,"<="&F$5,GDate,">="&DATE(YEAR(F$5),MONTH(F$5),1),GDevice,$K$2))) -> 4116.46 | G4: =IF($G$2="None",SUMIFS(INDIRECT("G"&$F$2),GDate,"<="&G$5,GDate,">="&DATE(YEAR(G$5),MONTH(G$5),1),GDevice,$K$2),IF(SUMIFS(INDIRECT("G"&$G$2),GDate,"<="&G$5,GDate,">="&DATE(YEAR(G$5),MONTH(G$5),1),GDevice,$K$2)=0,0,SUMIFS(INDIRECT("G"&$F$2),GDate,"<="&G$5,GDate,">="&DATE(YEAR(G$5),MONTH(G$5),1),GDevice,$K$2)/SUMIFS(INDIRECT("G"&$G$2),GDate,"<="&G$5,GDate,">="&DATE(YEAR(G$5),MONTH(G$5),1),GDevice,$K$2))) -> 7953.91 | H4: =IF($G$2="None",SUMIFS(INDIRECT("G"&$F$2),GDate,"<="&H$5,GDate,">="&DATE(YEAR(H$5),MONTH(H$5),1),GDevice,$K$2),IF(SUMIFS(INDIRECT("G"&$G$2),GDate,"<="&H$5,GDate,">="&DATE(YEAR(H$5),MONTH(H$5),1),GDevice,$K$2)=0,0,SUMIFS(INDIRECT("G"&$F$2),GDate,"<="&H$5,GDate,">="&DATE(YEAR(H$5),MONTH(H$5),1),GDevice,$K$2)/SUMIFS(INDIRECT("G"&$G$2),GDate,"<="&H$5,GDate,">="&DATE(YEAR(H$5),MONTH(H$5),1),GDevice,$K$2))) -> 9987.42 | I4: =IF($G$2="None",SUMIFS(INDIRECT("G"&$F$2),GDate,"<="&I$5,GDate,">="&DATE(YEAR(I$5),MONTH(I$5),1),GDevice,$K$2),IF(SUMIFS(INDIRECT("G"&$G$2),GDate,"<="&I$5,GDate,">="&DATE(YEAR(I$5),MONTH(I$5),1),GDevice,$K$2)=0,0,SUMIFS(INDIRECT("G"&$F$2),GDate,"<="&I$5,GDate,">="&DATE(YEAR(I$5),MONTH(I$5),1),GDevice,$K$2)/SUMIFS(INDIRECT("G"&$G$2),GDate,"<="&I$5,GDate,">="&DATE(YEAR(I$5),MONTH(I$5),1),GDevice,$K$2))) -> 8527.4 | J4: =IF($G$2="None",SUMIFS(INDIRECT("G"&$F$2),GDate,"<="&J$5,GDate,">="&DATE(YEAR(J$5),MONTH(J$5),1),GDevice,$K$2),IF(SUMIFS(INDIRECT("G"&$G$2),GDate,"<="&J$5,GDate,">="&DATE(YEAR(J$5),MONTH(J$5),1),GDevice,$K$2)=0,0,SUMIFS(INDIRECT("G"&$F$2),GDate,"<="&J$5,GDate,">="&DATE(YEAR(J$5),MONTH(J$5),1),GDevice,$K$2)/SUMIFS(INDIRECT("G"&$G$2),GDate,"<="&J$5,GDate,">="&DATE(YEAR(J$5),MONTH(J$5),1),GDevice,$K$2))) -> 8309.03 | K4: =IF($G$2="None",SUMIFS(INDIRECT("G"&$F$2),GDate,"<="&K$5,GDate,">="&DATE(YEAR(K$5),MONTH(K$5),1),GDevice,$K$2),IF(SUMIFS(INDIRECT("G"&$G$2),GDate,"<="&K$5,GDate,">="&DATE(YEAR(K$5),MONTH(K$5),1),GDevice,$K$2)=0,0,SUMIFS(INDIRECT("G"&$F$2),GDate,"<="&K$5,GDate,">="&DATE(YEAR(K$5),MONTH(K$5),1),GDevice,$K$2)/SUMIFS(INDIRECT("G"&$G$2),GDate,"<="&K$5,GDate,">="&DATE(YEAR(K$5),MONTH(K$5),1),GDevice,$K$2))) -> 8025.64 | L4: =IF($G$2="None",SUMIFS(INDIRECT("G"&$F$2),GDate,"<="&L$5,GDate,">="&DATE(YEAR(L$5),MONTH(L$5),1),GDevice,$K$2),IF(SUMIFS(INDIRECT("G"&$G$2),GDate,"<="&L$5,GDate,">="&DATE(YEAR(L$5),MONTH(L$5),1),GDevice,$K$2)=0,0,SUMIFS(INDIRECT("G"&$F$2),GDate,"<="&L$5,GDate,">="&DATE(YEAR(L$5),MONTH(L$5),1),GDevice,$K$2)/SUMIFS(INDIRECT("G"&$G$2),GDate,"<="&L$5,GDate,">="&DATE(YEAR(L$5),MONTH(L$5),1),GDevice,$K$2))) -> 10720.08 | M4: =IF($G$2="None",SUMIFS(INDIRECT("G"&$F$2),GDate,"<="&M$5,GDate,">="&DATE(YEAR(M$5),MONTH(M$5),1),GDevice,$K$2),IF(SUMIFS(INDIRECT("G"&$G$2),GDate,"<="&M$5,GDate,">="&DATE(YEAR(M$5),MONTH(M$5),1),GDevice,$K$2)=0,0,SUMIFS(INDIRECT("G"&$F$2),GDate,"<="&M$5,GDate,">="&DATE(YEAR(M$5),MONTH(M$5),1),GDevice,$K$2)/SUMIFS(INDIRECT("G"&$G$2),GDate,"<="&M$5,GDate,">="&DATE(YEAR(M$5),MONTH(M$5),1),GDevice,$K$2))) -> 8134.96
A5: Month: | B5: =DATE(YEAR(Setup!$B$4),MONTH(Setup!$B$4)+1,0) -> 2021-04-30 | C5: =DATE(YEAR(B5),MONTH(B5),0) -> 2021-03-31 | D5: =DATE(YEAR(C5),MONTH(C5),0) -> 2021-02-28 | E5: 2021-01-31 | F5: 2020-12-31 | G5: 2020-11-30 | H5: 2020-10-31 | I5: 2020-09-30 | J5: 2020-08-31 | K5: 2020-07-31 | L5: 2020-06-30 | M5: 2020-05-31
A6: Campaign Name | B6: Period1 | C6: Period2 | D6: Period3 | E6: Period4 | F6: Period5 | G6: Period6 | H6: Period7 | I6: Period8 | J6: Period9 | K6: Period10 | L6: Period11 | M6: Period12
A7: Campaign 1 | B7: =IF($G$2="None",SUMIFS(INDIRECT("G"&$F$2),GDate,"<="&B$5,GDate,">="&DATE(YEAR(B$5),MONTH(B$5),1),GCampaign,$A7,GDevice,$K$2),IF(SUMIFS(INDIRECT("G"&$G$2),GDate,"<="&B$5,GDate,">="&DATE(YEAR(B$5),MONTH(B$5),1),GCampaign,$A7,GDevice,$K$2)=0,0,SUMIFS(INDIRECT("G"&$F$2),GDate,"<="&B$5,GDate,">="&DATE(YEAR(B$5),MONTH(B$5),1),GCampaign,$A7,GDevice,$K$2)/SUMIFS(INDIRECT("G"&$G$2),GDate,"<="&B$5,GDate,">="&DATE(YEAR(B$5),MONTH(B$5),1),GCampaign,$A7,GDevice,$K$2))) -> 787.94 | C7: =IF($G$2="None",SUMIFS(INDIRECT("G"&$F$2),GDate,"<="&C$5,GDate,">="&DATE(YEAR(C$5),MONTH(C$5),1),GCampaign,$A7,GDevice,$K$2),IF(SUMIFS(INDIRECT("G"&$G$2),GDate,"<="&C$5,GDate,">="&DATE(YEAR(C$5),MONTH(C$5),1),GCampaign,$A7,GDevice,$K$2)=0,0,SUMIFS(INDIRECT("G"&$F$2),GDate,"<="&C$5,GDate,">="&DATE(YEAR(C$5),MONTH(C$5),1),GCampaign,$A7,GDevice,$K$2)/SUMIFS(INDIRECT("G"&$G$2),GDate,"<="&C$5,GDate,">="&DATE(YEAR(C$5),MONTH(C$5),1),GCampaign,$A7,GDevice,$K$2))) -> 1094.59 | D7: =IF($G$2="None",SUMIFS(INDIRECT("G"&$F$2),GDate,"<="&D$5,GDate,">="&DATE(YEAR(D$5),MONTH(D$5),1),GCampaign,$A7,GDevice,$K$2),IF(SUMIFS(INDIRECT("G"&$G$2),GDate,"<="&D$5,GDate,">="&DATE(YEAR(D$5),MONTH(D$5),1),GCampaign,$A7,GDevice,$K$2)=0,0,SUMIFS(INDIRECT("G"&$F$2),GDate,"<="&D$5,GDate,">="&DATE(YEAR(D$5),MONTH(D$5),1),GCampaign,$A7,GDevice,$K$2)/SUMIFS(INDIRECT("G"&$G$2),GDate,"<="&D$5,GDate,">="&DATE(YEAR(D$5),MONTH(D$5),1),GCampaign,$A7,GDevice,$K$2))) -> 945.3 | E7: =IF($G$2="None",SUMIFS(INDIRECT("G"&$F$2),GDate,"<="&E$5,GDate,">="&DATE(YEAR(E$5),MONTH(E$5),1),GCampaign,$A7,GDevice,$K$2),IF(SUMIFS(INDIRECT("G"&$G$2),GDate,"<="&E$5,GDate,">="&DATE(YEAR(E$5),MONTH(E$5),1),GCampaign,$A7,GDevice,$K$2)=0,0,SUMIFS(INDIRECT("G"&$F$2),GDate,"<="&E$5,GDate,">="&DATE(YEAR(E$5),MONTH(E$5),1),GCampaign,$A7,GDevice,$K$2)/SUMIFS(INDIRECT("G"&$G$2),GDate,"<="&E$5,GDate,">="&DATE(YEAR(E$5),MONTH(E$5),1),GCampaign,$A7,GDevice,$K$2))) -> 1176.62 | F7: =IF($G$2="None",SUMIFS(INDIRECT("G"&$F$2),GDate,"<="&F$5,GDate,">="&DATE(YEAR(F$5),MONTH(F$5),1),GCampaign,$A7,GDevice,$K$2),IF(SUMIFS(INDIRECT("G"&$G$2),GDate,"<="&F$5,GDate,">="&DATE(YEAR(F$5),MONTH(F$5),1),GCampaign,$A7,GDevice,$K$2)=0,0,SUMIFS(INDIRECT("G"&$F$2),GDate,"<="&F$5,GDate,">="&DATE(YEAR(F$5),MONTH(F$5),1),GCampaign,$A7,GDevice,$K$2)/SUMIFS(INDIRECT("G"&$G$2),GDate,"<="&F$5,GDate,">="&DATE(YEAR(F$5),MONTH(F$5),1),GCampaign,$A7,GDevice,$K$2))) -> 582.25 | G7: =IF($G$2="None",SUMIFS(INDIRECT("G"&$F$2),GDate,"<="&G$5,GDate,">="&DATE(YEAR(G$5),MONTH(G$5),1),GCampaign,$A7,GDevice,$K$2),IF(SUMIFS(INDIRECT("G"&$G$2),GDate,"<="&G$5,GDate,">="&DATE(YEAR(G$5),MONTH(G$5),1),GCampaign,$A7,GDevice,$K$2)=0,0,SUMIFS(INDIRECT("G"&$F$2),GDate,"<="&G$5,GDate,">="&DATE(YEAR(G$5),MONTH(G$5),1),GCampaign,$A7,GDevice,$K$2)/SUMIFS(INDIRECT("G"&$G$2),GDate,"<="&G$5,GDate,">="&DATE(YEAR(G$5),MONTH(G$5),1),GCampaign,$A7,GDevice,$K$2))) -> 1442.97 | H7: =IF($G$2="None",SUMIFS(INDIRECT("G"&$F$2),GDate,"<="&H$5,GDate,">="&DATE(YEAR(H$5),MONTH(H$5),1),GCampaign,$A7,GDevice,$K$2),IF(SUMIFS(INDIRECT("G"&$G$2),GDate,"<="&H$5,GDate,">="&DATE(YEAR(H$5),MONTH(H$5),1),GCampaign,$A7,GDevice,$K$2)=0,0,SUMIFS(INDIRECT("G"&$F$2),GDate,"<="&H$5,GDate,">="&DATE(YEAR(H$5),MONTH(H$5),1),GCampaign,$A7,GDevice,$K$2)/SUMIFS(INDIRECT("G"&$G$2),GDate,"<="&H$5,GDate,">="&DATE(YEAR(H$5),MONTH(H$5),1),GCampaign,$A7,GDevice,$K$2))) -> 2558.18 | I7: =IF($G$2="None",SUMIFS(INDIRECT("G"&$F$2),GDate,"<="&I$5,GDate,">="&DATE(YEAR(I$5),MONTH(I$5),1),GCampaign,$A7,GDevice,$K$2),IF(SUMIFS(INDIRECT("G"&$G$2),GDate,"<="&I$5,GDate,">="&DATE(YEAR(I$5),MONTH(I$5),1),GCampaign,$A7,GDevice,$K$2)=0,0,SUMIFS(INDIRECT("G"&$F$2),GDate,"<="&I$5,GDate,">="&DATE(YEAR(I$5),MONTH(I$5),1),GCampaign,$A7,GDevice,$K$2)/SUMIFS(INDIRECT("G"&$G$2),GDate,"<="&I$5,GDate,">="&DATE(YEAR(I$5),MONTH(I$5),1),GCampaign,$A7,GDevice,$K$2))) -> 1916.15 | J7: =IF($G$2="None",SUMIFS(INDIRECT("G"&$F$2),GDate,"<="&J$5,GDate,">="&DATE(YEAR(J$5),MONTH(J$5),1),GCampaign,$A7,GDevice,$K$2),IF(SUMIFS(INDIRECT("G"&$G$2),GDate,"<="&J$5,GDate,">="&DATE(YEAR(J$5),MONTH(J$5),1),GCampaign,$A7,GDevice,$K$2)=0,0,SUMIFS(INDIRECT("G"&$F$2),GDate,"<="&J$5,GDate,">="&DATE(YEAR(J$5),MONTH(J$5),1),GCampaign,$A7,GDevice,$K$2)/SUMIFS(INDIRECT("G"&$G$2),GDate,"<="&J$5,GDate,">="&DATE(YEAR(J$5),MONTH(J$5),1),GCampaign,$A7,GDevice,$K$2))) -> 1868.33 | K7: =IF($G$2="None",SUMIFS(INDIRECT("G"&$F$2),GDate,"<="&K$5,GDate,">="&DATE(YEAR(K$5),MONTH(K$5),1),GCampaign,$A7,GDevice,$K$2),IF(SUMIFS(INDIRECT("G"&$G$2),GDate,"<="&K$5,GDate,">="&DATE(YEAR(K$5),MONTH(K$5),1),GCampaign,$A7,GDevice,$K$2)=0,0,SUMIFS(INDIRECT("G"&$F$2),GDate,"<="&K$5,GDate,">="&DATE(YEAR(K$5),MONTH(K$5),1),GCampaign,$A7,GDevice,$K$2)/SUMIFS(INDIRECT("G"&$G$2),GDate,"<="&K$5,GDate,">="&DATE(YEAR(K$5),MONTH(K$5),1),GCampaign,$A7,GDevice,$K$2))) -> 1873.56 | L7: =IF($G$2="None",SUMIFS(INDIRECT("G"&$F$2),GDate,"<="&L$5,GDate,">="&DATE(YEAR(L$5),MONTH(L$5),1),GCampaign,$A7,GDevice,$K$2),IF(SUMIFS(INDIRECT("G"&$G$2),GDate,"<="&L$5,GDate,">="&DATE(YEAR(L$5),MONTH(L$5),1),GCampaign,$A7,GDevice,$K$2)=0,0,SUMIFS(INDIRECT("G"&$F$2),GDate,"<="&L$5,GDate,">="&DATE(YEAR(L$5),MONTH(L$5),1),GCampaign,$A7,GDevice,$K$2)/SUMIFS(INDIRECT("G"&$G$2),GDate,"<="&L$5,GDate,">="&DATE(YEAR(L$5),MONTH(L$5),1),GCampaign,$A7,GDevice,$K$2))) -> 1769.43 | M7: =IF($G$2="None",SUMIFS(INDIRECT("G"&$F$2),GDate,"<="&M$5,GDate,">="&DATE(YEAR(M$5),MONTH(M$5),1),GCampaign,$A7,GDevice,$K$2),IF(SUMIFS(INDIRECT("G"&$G$2),GDate,"<="&M$5,GDate,">="&DATE(YEAR(M$5),MONTH(M$5),1),GCampaign,$A7,GDevice,$K$2)=0,0,SUMIFS(INDIRECT("G"&$F$2),GDate,"<="&M$5,GDate,">="&DATE(YEAR(M$5),MONTH(M$5),1),GCampaign,$A7,GDevice,$K$2)/SUMIFS(INDIRECT("G"&$G$2),GDate,"<="&M$5,GDate,">="&DATE(YEAR(M$5),MONTH(M$5),1),GCampaign,$A7,GDevice,$K$2))) -> 1144.73
A8: Campaign 2 | B8: =IF($G$2="None",SUMIFS(INDIRECT("G"&$F$2),GDate,"<="&B$5,GDate,">="&DATE(YEAR(B$5),MONTH(B$5),1),GCampaign,$A8,GDevice,$K$2),IF(SUMIFS(INDIRECT("G"&$G$2),GDate,"<="&B$5,GDate,">="&DATE(YEAR(B$5),MONTH(B$5),1),GCampaign,$A8,GDevice,$K$2)=0,0,SUMIFS(INDIRECT("G"&$F$2),GDate,"<="&B$5,GDate,">="&DATE(YEAR(B$5),MONTH(B$5),1),GCampaign,$A8,GDevice,$K$2)/SUMIFS(INDIRECT("G"&$G$2),GDate,"<="&B$5,GDate,">="&DATE(YEAR(B$5),MONTH(B$5),1),GCampaign,$A8,GDevice,$K$2))) -> 1521.62 | C8: =IF($G$2="None",SUMIFS(INDIRECT("G"&$F$2),GDate,"<="&C$5,GDate,">="&DATE(YEAR(C$5),MONTH(C$5),1),GCampaign,$A8,GDevice,$K$2),IF(SUMIFS(INDIRECT("G"&$G$2),GDate,"<="&C$5,GDate,">="&DATE(YEAR(C$5),MONTH(C$5),1),GCampaign,$A8,GDevice,$K$2)=0,0,SUMIFS(INDIRECT("G"&$F$2),GDate,"<="&C$5,GDate,">="&DATE(YEAR(C$5),MONTH(C$5),1),GCampaign,$A8,GDevice,$K$2)/SUMIFS(INDIRECT("G"&$G$2),GDate,"<="&C$5,GDate,">="&DATE(YEAR(C$5),MONTH(C$5),1),GCampaign,$A8,GDevice,$K$2))) -> 1649.82 | D8: =IF($G$2="None",SUMIFS(INDIRECT("G"&$F$2),GDate,"<="&D$5,GDate,">="&DATE(YEAR(D$5),MONTH(D$5),1),GCampaign,$A8,GDevice,$K$2),IF(SUMIFS(INDIRECT("G"&$G$2),GDate,"<="&D$5,GDate,">="&DATE(YEAR(D$5),MONTH(D$5),1),GCampaign,$A8,GDevice,$K$2)=0,0,SUMIFS(INDIRECT("G"&$F$2),GDate,"<="&D$5,GDate,">="&DATE(YEAR(D$5),MONTH(D$5),1),GCampaign,$A8,GDevice,$K$2)/SUMIFS(INDIRECT("G"&$G$2),GDate,"<="&D$5,GDate,">="&DATE(YEAR(D$5),MONTH(D$5),1),GCampaign,$A8,GDevice,$K$2))) -> 1456.69 | E8: =IF($G$2="None",SUMIFS(INDIRECT("G"&$F$2),GDate,"<="&E$5,GDate,">="&DATE(YEAR(E$5),MONTH(E$5),1),GCampaign,$A8,GDevice,$K$2),IF(SUMIFS(INDIRECT("G"&$G$2),GDate,"<="&E$5,GDate,">="&DATE(YEAR(E$5),MONTH(E$5),1),GCampaign,$A8,GDevice,$K$2)=0,0,SUMIFS(INDIRECT("G"&$F$2),GDate,"<="&E$5,GDate,">="&DATE(YEAR(E$5),MONTH(E$5),1),GCampaign,$A8,GDevice,$K$2)/SUMIFS(INDIRECT("G"&$G$2),GDate,"<="&E$5,GDate,">="&DATE(YEAR(E$5),MONTH(E$5),1),GCampaign,$A8,GDevice,$K$2))) -> 1115 | F8: =IF($G$2="None",SUMIFS(INDIRECT("G"&$F$2),GDate,"<="&F$5,GDate,">="&DATE(YEAR(F$5),MONTH(F$5),1),GCampaign,$A8,GDevice,$K$2),IF(SUMIFS(INDIRECT("G"&$G$2),GDate,"<="&F$5,GDate,">="&DATE(YEAR(F$5),MONTH(F$5),1),GCampaign,$A8,GDevice,$K$2)=0,0,SUMIFS(INDIRECT("G"&$F$2),GDate,"<="&F$5,GDate,">="&DATE(YEAR(F$5),MONTH(F$5),1),GCampaign,$A8,GDevice,$K$2)/SUMIFS(INDIRECT("G"&$G$2),GDate,"<="&F$5,GDate,">="&DATE(YEAR(F$5),MONTH(F$5),1),GCampaign,$A8,GDevice,$K$2))) -> 650.99 | G8: =IF($G$2="None",SUMIFS(INDIRECT("G"&$F$2),GDate,"<="&G$5,GDate,">="&DATE(YEAR(G$5),MONTH(G$5),1),GCampaign,$A8,GDevice,$K$2),IF(SUMIFS(INDIRECT("G"&$G$2),GDate,"<="&G$5,GDate,">="&DATE(YEAR(G$5),MONTH(G$5),1),GCampaign,$A8,GDevice,$K$2)=0,0,SUMIFS(INDIRECT("G"&$F$2),GDate,"<="&G$5,GDate,">="&DATE(YEAR(G$5),MONTH(G$5),1),GCampaign,$A8,GDevice,$K$2)/SUMIFS(INDIRECT("G"&$G$2),GDate,"<="&G$5,GDate,">="&DATE(YEAR(G$5),MONTH(G$5),1),GCampaign,$A8,GDevice,$K$2))) -> 1599.98 | H8: =IF($G$2="None",SUMIFS(INDIRECT("G"&$F$2),GDate,"<="&H$5,GDate,">="&DATE(YEAR(H$5),MONTH(H$5),1),GCampaign,$A8,GDevice,$K$2),IF(SUMIFS(INDIRECT("G"&$G$2),GDate,"<="&H$5,GDate,">="&DATE(YEAR(H$5),MONTH(H$5),1),GCampaign,$A8,GDevice,$K$2)=0,0,SUMIFS(INDIRECT("G"&$F$2),GDate,"<="&H$5,GDate,">="&DATE(YEAR(H$5),MONTH(H$5),1),GCampaign,$A8,GDevice,$K$2)/SUMIFS(INDIRECT("G"&$G$2),GDate,"<="&H$5,GDate,">="&DATE(YEAR(H$5),MONTH(H$5),1),GCampaign,$A8,GDevice,$K$2))) -> 1720.14 | I8: =IF($G$2="None",SUMIFS(INDIRECT("G"&$F$2),GDate,"<="&I$5,GDate,">="&DATE(YEAR(I$5),MONTH(I$5),1),GCampaign,$A8,GDevice,$K$2),IF(SUMIFS(INDIRECT("G"&$G$2),GDate,"<="&I$5,GDate,">="&DATE(YEAR(I$5),MONTH(I$5),1),GCampaign,$A8,GDevice,$K$2)=0,0,SUMIFS(INDIRECT("G"&$F$2),GDate,"<="&I$5,GDate,">="&DATE(YEAR(I$5),MONTH(I$5),1),GCampaign,$A8,GDevice,$K$2)/SUMIFS(INDIRECT("G"&$G$2),GDate,"<="&I$5,GDate,">="&DATE(YEAR(I$5),MONTH(I$5),1),GCampaign,$A8,GDevice,$K$2))) -> 1408.53 | J8: =IF($G$2="None",SUMIFS(INDIRECT("G"&$F$2),GDate,"<="&J$5,GDate,">="&DATE(YEAR(J$5),MONTH(J$5),1),GCampaign,$A8,GDevice,$K$2),IF(SUMIFS(INDIRECT("G"&$G$2),GDate,"<="&J$5,GDate,">="&DATE(YEAR(J$5),MONTH(J$5),1),GCampaign,$A8,GDevice,$K$2)=0,0,SUMIFS(INDIRECT("G"&$F$2),GDate,"<="&J$5,GDate,">="&DATE(YEAR(J$5),MONTH(J$5),1),GCampaign,$A8,GDevice,$K$2)/SUMIFS(INDIRECT("G"&$G$2),GDate,"<="&J$5,GDate,">="&DATE(YEAR(J$5),MONTH(J$5),1),GCampaign,$A8,GDevice,$K$2))) -> 1958.95 | K8: =IF($G$2="None",SUMIFS(INDIRECT("G"&$F$2),GDate,"<="&K$5,GDate,">="&DATE(YEAR(K$5),MONTH(K$5),1),GCampaign,$A8,GDevice,$K$2),IF(SUMIFS(INDIRECT("G"&$G$2),GDate,"<="&K$5,GDate,">="&DATE(YEAR(K$5),MONTH(K$5),1),GCampaign,$A8,GDevice,$K$2)=0,0,SUMIFS(INDIRECT("G"&$F$2),GDate,"<="&K$5,GDate,">="&DATE(YEAR(K$5),MONTH(K$5),1),GCampaign,$A8,GDevice,$K$2)/SUMIFS(INDIRECT("G"&$G$2),GDate,"<="&K$5,GDate,">="&DATE(YEAR(K$5),MONTH(K$5),1),GCampaign,$A8,GDevice,$K$2))) -> 1420.68 | L8: =IF($G$2="None",SUMIFS(INDIRECT("G"&$F$2),GDate,"<="&L$5,GDate,">="&DATE(YEAR(L$5),MONTH(L$5),1),GCampaign,$A8,GDevice,$K$2),IF(SUMIFS(INDIRECT("G"&$G$2),GDate,"<="&L$5,GDate,">="&DATE(YEAR(L$5),MONTH(L$5),1),GCampaign,$A8,GDevice,$K$2)=0,0,SUMIFS(INDIRECT("G"&$F$2),GDate,"<="&L$5,GDate,">="&DATE(YEAR(L$5),MONTH(L$5),1),GCampaign,$A8,GDevice,$K$2)/SUMIFS(INDIRECT("G"&$G$2),GDate,"<="&L$5,GDate,">="&DATE(YEAR(L$5),MONTH(L$5),1),GCampaign,$A8,GDevice,$K$2))) -> 2267.78 | M8: =IF($G$2="None",SUMIFS(INDIRECT("G"&$F$2),GDate,"<="&M$5,GDate,">="&DATE(YEAR(M$5),MONTH(M$5),1),GCampaign,$A8,GDevice,$K$2),IF(SUMIFS(INDIRECT("G"&$G$2),GDate,"<="&M$5,GDate,">="&DATE(YEAR(M$5),MONTH(M$5),1),GCampaign,$A8,GDevice,$K$2)=0,0,SUMIFS(INDIRECT("G"&$F$2),GDate,"<="&M$5,GDate,">="&DATE(YEAR(M$5),MONTH(M$5),1),GCampaign,$A8,GDevice,$K$2)/SUMIFS(INDIRECT("G"&$G$2),GDate,"<="&M$5,GDate,">="&DATE(YEAR(M$5),MONTH(M$5),1),GCampaign,$A8,GDevice,$K$2))) -> 1820.72
A9: Campaign 3 | B9: =IF($G$2="None",SUMIFS(INDIRECT("G"&$F$2),GDate,"<="&B$5,GDate,">="&DATE(YEAR(B$5),MONTH(B$5),1),GCampaign,$A9,GDevice,$K$2),IF(SUMIFS(INDIRECT("G"&$G$2),GDate,"<="&B$5,GDate,">="&DATE(YEAR(B$5),MONTH(B$5),1),GCampaign,$A9,GDevice,$K$2)=0,0,SUMIFS(INDIRECT("G"&$F$2),GDate,"<="&B$5,GDate,">="&DATE(YEAR(B$5),MONTH(B$5),1),GCampaign,$A9,GDevice,$K$2)/SUMIFS(INDIRECT("G"&$G$2),GDate,"<="&B$5,GDate,">="&DATE(YEAR(B$5),MONTH(B$5),1),GCampaign,$A9,GDevice,$K$2))) -> 210.09 | C9: =IF($G$2="None",SUMIFS(INDIRECT("G"&$F$2),GDate,"<="&C$5,GDate,">="&DATE(YEAR(C$5),MONTH(C$5),1),GCampaign,$A9,GDevice,$K$2),IF(SUMIFS(INDIRECT("G"&$G$2),GDate,"<="&C$5,GDate,">="&DATE(YEAR(C$5),MONTH(C$5),1),GCampaign,$A9,GDevice,$K$2)=0,0,SUMIFS(INDIRECT("G"&$F$2),GDate,"<="&C$5,GDate,">="&DATE(YEAR(C$5),MONTH(C$5),1),GCampaign,$A9,GDevice,$K$2)/SUMIFS(INDIRECT("G"&$G$2),GDate,"<="&C$5,GDate,">="&DATE(YEAR(C$5),MONTH(C$5),1),GCampaign,$A9,GDevice,$K$2))) -> 232.38 | D9: =IF($G$2="None",SUMIFS(INDIRECT("G"&$F$2),GDate,"<="&D$5,GDate,">="&DATE(YEAR(D$5),MONTH(D$5),1),GCampaign,$A9,GDevice,$K$2),IF(SUMIFS(INDIRECT("G"&$G$2),GDate,"<="&D$5,GDate,">="&DATE(YEAR(D$5),MONTH(D$5),1),GCampaign,$A9,GDevice,$K$2)=0,0,SUMIFS(INDIRECT("G"&$F$2),GDate,"<="&D$5,GDate,">="&DATE(YEAR(D$5),MONTH(D$5),1),GCampaign,$A9,GDevice,$K$2)/SUMIFS(INDIRECT("G"&$G$2),GDate,"<="&D$5,GDate,">="&DATE(YEAR(D$5),MONTH(D$5),1),GCampaign,$A9,GDevice,$K$2))) -> 109.65 | E9: =IF($G$2="None",SUMIFS(INDIRECT("G"&$F$2),GDate,"<="&E$5,GDate,">="&DATE(YEAR(E$5),MONTH(E$5),1),GCampaign,$A9,GDevice,$K$2),IF(SUMIFS(INDIRECT("G"&$G$2),GDate,"<="&E$5,GDate,">="&DATE(YEAR(E$5),MONTH(E$5),1),GCampaign,$A9,GDevice,$K$2)=0,0,SUMIFS(INDIRECT("G"&$F$2),GDate,"<="&E$5,GDate,">="&DATE(YEAR(E$5),MONTH(E$5),1),GCampaign,$A9,GDevice,$K$2)/SUMIFS(INDIRECT("G"&$G$2),GDate,"<="&E$5,GDate,">="&DATE(YEAR(E$5),MONTH(E$5),1),GCampaign,$A9,GDevice,$K$2))) -> 308.88 | F9: =IF($G$2="None",SUMIFS(INDIRECT("G"&$F$2),GDate,"<="&F$5,GDate,">="&DATE(YEAR(F$5),MONTH(F$5),1),GCampaign,$A9,GDevice,$K$2),IF(SUMIFS(INDIRECT("G"&$G$2),GDate,"<="&F$5,GDate,">="&DATE(YEAR(F$5),MONTH(F$5),1),GCampaign,$A9,GDevice,$K$2)=0,0,SUMIFS(INDIRECT("G"&$F$2),GDate,"<="&F$5,GDate,">="&DATE(YEAR(F$5),MONTH(F$5),1),GCampaign,$A9,GDevice,$K$2)/SUMIFS(INDIRECT("G"&$G$2),GDate,"<="&F$5,GDate,">="&DATE(YEAR(F$5),MONTH(F$5),1),GCampaign,$A9,GDevice,$K$2))) -> 262.69 | G9: =IF($G$2="None",SUMIFS(INDIRECT("G"&$F$2),GDate,"<="&G$5,GDate,">="&DATE(YEAR(G$5),MONTH(G$5),1),GCampaign,$A9,GDevice,$K$2),IF(SUMIFS(INDIRECT("G"&$G$2),GDate,"<="&G$5,GDate,">="&DATE(YEAR(G$5),MONTH(G$5),1),GCampaign,$A9,GDevice,$K$2)=0,0,SUMIFS(INDIRECT("G"&$F$2),GDate,"<="&G$5,GDate,">="&DATE(YEAR(G$5),MONTH(G$5),1),GCampaign,$A9,GDevice,$K$2)/SUMIFS(INDIRECT("G"&$G$2),GDate,"<="&G$5,GDate,">="&DATE(YEAR(G$5),MONTH(G$5),1),GCampaign,$A9,GDevice,$K$2))) -> 420.17 | H9: =IF($G$2="None",SUMIFS(INDIRECT("G"&$F$2),GDate,"<="&H$5,GDate,">="&DATE(YEAR(H$5),MONTH(H$5),1),GCampaign,$A9,GDevice,$K$2),IF(SUMIFS(INDIRECT("G"&$G$2),GDate,"<="&H$5,GDate,">="&DATE(YEAR(H$5),MONTH(H$5),1),GCampaign,$A9,GDevice,$K$2)=0,0,SUMIFS(INDIRECT("G"&$F$2),GDate,"<="&H$5,GDate,">="&DATE(YEAR(H$5),MONTH(H$5),1),GCampaign,$A9,GDevice,$K$2)/SUMIFS(INDIRECT("G"&$G$2),GDate,"<="&H$5,GDate,">="&DATE(YEAR(H$5),MONTH(H$5),1),GCampaign,$A9,GDevice,$K$2))) -> 272.35 | I9: =IF($G$2="None",SUMIFS(INDIRECT("G"&$F$2),GDate,"<="&I$5,GDate,">="&DATE(YEAR(I$5),MONTH(I$5),1),GCampaign,$A9,GDevice,$K$2),IF(SUMIFS(INDIRECT("G"&$G$2),GDate,"<="&I$5,GDate,">="&DATE(YEAR(I$5),MONTH(I$5),1),GCampaign,$A9,GDevice,$K$2)=0,0,SUMIFS(INDIRECT("G"&$F$2),GDate,"<="&I$5,GDate,">="&DATE(YEAR(I$5),MONTH(I$5),1),GCampaign,$A9,GDevice,$K$2)/SUMIFS(INDIRECT("G"&$G$2),GDate,"<="&I$5,GDate,">="&DATE(YEAR(I$5),MONTH(I$5),1),GCampaign,$A9,GDevice,$K$2))) -> 406.38 | J9: =IF($G$2="None",SUMIFS(INDIRECT("G"&$F$2),GDate,"<="&J$5,GDate,">="&DATE(YEAR(J$5),MONTH(J$5),1),GCampaign,$A9,GDevice,$K$2),IF(SUMIFS(INDIRECT("G"&$G$2),GDate,"<="&J$5,GDate,">="&DATE(YEAR(J$5),MONTH(J$5),1),GCampaign,$A9,GDevice,$K$2)=0,0,SUMIFS(INDIRECT("G"&$F$2),GDate,"<="&J$5,GDate,">="&DATE(YEAR(J$5),MONTH(J$5),1),GCampaign,$A9,GDevice,$K$2)/SUMIFS(INDIRECT("G"&$G$2),GDate,"<="&J$5,GDate,">="&DATE(YEAR(J$5),MONTH(J$5),1),GCampaign,$A9,GDevice,$K$2))) -> 415.25 | K9: =IF($G$2="None",SUMIFS(INDIRECT("G"&$F$2),GDate,"<="&K$5,GDate,">="&DATE(YEAR(K$5),MONTH(K$5),1),GCampaign,$A9,GDevice,$K$2),IF(SUMIFS(INDIRECT("G"&$G$2),GDate,"<="&K$5,GDate,">="&DATE(YEAR(K$5),MONTH(K$5),1),GCampaign,$A9,GDevice,$K$2)=0,0,SUMIFS(INDIRECT("G"&$F$2),GDate,"<="&K$5,GDate,">="&DATE(YEAR(K$5),MONTH(K$5),1),GCampaign,$A9,GDevice,$K$2)/SUMIFS(INDIRECT("G"&$G$2),GDate,"<="&K$5,GDate,">="&DATE(YEAR(K$5),MONTH(K$5),1),GCampaign,$A9,GDevice,$K$2))) -> 478.04 | L9: =IF($G$2="None",SUMIFS(INDIRECT("G"&$F$2),GDate,"<="&L$5,GDate,">="&DATE(YEAR(L$5),MONTH(L$5),1),GCampaign,$A9,GDevice,$K$2),IF(SUMIFS(INDIRECT("G"&$G$2),GDate,"<="&L$5,GDate,">="&DATE(YEAR(L$5),MONTH(L$5),1),GCampaign,$A9,GDevice,$K$2)=0,0,SUMIFS(INDIRECT("G"&$F$2),GDate,"<="&L$5,GDate,">="&DATE(YEAR(L$5),MONTH(L$5),1),GCampaign,$A9,GDevice,$K$2)/SUMIFS(INDIRECT("G"&$G$2),GDate,"<="&L$5,GDate,">="&DATE(YEAR(L$5),MONTH(L$5),1),GCampaign,$A9,GDevice,$K$2))) -> 444.32 | M9: =IF($G$2="None",SUMIFS(INDIRECT("G"&$F$2),GDate,"<="&M$5,GDate,">="&DATE(YEAR(M$5),MONTH(M$5),1),GCampaign,$A9,GDevice,$K$2),IF(SUMIFS(INDIRECT("G"&$G$2),GDate,"<="&M$5,GDate,">="&DATE(YEAR(M$5),MONTH(M$5),1),GCampaign,$A9,GDevice,$K$2)=0,0,SUMIFS(INDIRECT("G"&$F$2),GDate,"<="&M$5,GDate,">="&DATE(YEAR(M$5),MONTH(M$5),1),GCampaign,$A9,GDevice,$K$2)/SUMIFS(INDIRECT("G"&$G$2),GDate,"<="&M$5,GDate,">="&DATE(YEAR(M$5),MONTH(M$5),1),GCampaign,$A9,GDevice,$K$2))) -> 310.65
A10: Campaign 4 | B10: =IF($G$2="None",SUMIFS(INDIRECT("G"&$F$2),GDate,"<="&B$5,GDate,">="&DATE(YEAR(B$5),MONTH(B$5),1),GCampaign,$A10,GDevice,$K$2),IF(SUMIFS(INDIRECT("G"&$G$2),GDate,"<="&B$5,GDate,">="&DATE(YEAR(B$5),MONTH(B$5),1),GCampaign,$A10,GDevice,$K$2)=0,0,SUMIFS(INDIRECT("G"&$F$2),GDate,"<="&B$5,GDate,">="&DATE(YEAR(B$5),MONTH(B$5),1),GCampaign,$A10,GDevice,$K$2)/SUMIFS(INDIRECT("G"&$G$2),GDate,"<="&B$5,GDate,">="&DATE(YEAR(B$5),MONTH(B$5),1),GCampaign,$A10,GDevice,$K$2))) -> 427.8 | C10: =IF($G$2="None",SUMIFS(INDIRECT("G"&$F$2),GDate,"<="&C$5,GDate,">="&DATE(YEAR(C$5),MONTH(C$5),1),GCampaign,$A10,GDevice,$K$2),IF(SUMIFS(INDIRECT("G"&$G$2),GDate,"<="&C$5,GDate,">="&DATE(YEAR(C$5),MONTH(C$5),1),GCampaign,$A10,GDevice,$K$2)=0,0,SUMIFS(INDIRECT("G"&$F$2),GDate,"<="&C$5,GDate,">="&DATE(YEAR(C$5),MONTH(C$5),1),GCampaign,$A10,GDevice,$K$2)/SUMIFS(INDIRECT("G"&$G$2),GDate,"<="&C$5,GDate,">="&DATE(YEAR(C$5),MONTH(C$5),1),GCampaign,$A10,GDevice,$K$2))) -> 1170.06 | D10: =IF($G$2="None",SUMIFS(INDIRECT("G"&$F$2),GDate,"<="&D$5,GDate,">="&DATE(YEAR(D$5),MONTH(D$5),1),GCampaign,$A10,GDevice,$K$2),IF(SUMIFS(INDIRECT("G"&$G$2),GDate,"<="&D$5,GDate,">="&DATE(YEAR(D$5),MONTH(D$5),1),GCampaign,$A10,GDevice,$K$2)=0,0,SUMIFS(INDIRECT("G"&$F$2),GDate,"<="&D$5,GDate,">="&DATE(YEAR(D$5),MONTH(D$5),1),GCampaign,$A10,GDevice,$K$2)/SUMIFS(INDIRECT("G"&$G$2),GDate,"<="&D$5,GDate,">="&DATE(YEAR(D$5),MONTH(D$5),1),GCampaign,$A10,GDevice,$K$2))) -> 1284.46 | E10: =IF($G$2="None",SUMIFS(INDIRECT("G"&$F$2),GDate,"<="&E$5,GDate,">="&DATE(YEAR(E$5),MONTH(E$5),1),GCampaign,$A10,GDevice,$K$2),IF(SUMIFS(INDIRECT("G"&$G$2),GDate,"<="&E$5,GDate,">="&DATE(YEAR(E$5),MONTH(E$5),1),GCampaign,$A10,GDevice,$K$2)=0,0,SUMIFS(INDIRECT("G"&$F$2),GDate,"<="&E$5,GDate,">="&DATE(YEAR(E$5),MONTH(E$5),1),GCampaign,$A10,GDevice,$K$2)/SUMIFS(INDIRECT("G"&$G$2),GDate,"<="&E$5,GDate,">="&DATE(YEAR(E$5),MONTH(E$5),1),GCampaign,$A10,GDevice,$K$2))) -> 1619.1 | F10: =IF($G$2="None",SUMIFS(INDIRECT("G"&$F$2),GDate,"<="&F$5,GDate,">="&DATE(YEAR(F$5),MONTH(F$5),1),GCampaign,$A10,GDevice,$K$2),IF(SUMIFS(INDIRECT("G"&$G$2),GDate,"<="&F$5,GDate,">="&DATE(YEAR(F$5),MONTH(F$5),1),GCampaign,$A10,GDevice,$K$2)=0,0,SUMIFS(INDIRECT("G"&$F$2),GDate,"<="&F$5,GDate,">="&DATE(YEAR(F$5),MONTH(F$5),1),GCampaign,$A10,GDevice,$K$2)/SUMIFS(INDIRECT("G"&$G$2),GDate,"<="&F$5,GDate,">="&DATE(YEAR(F$5),MONTH(F$5),1),GCampaign,$A10,GDevice,$K$2))) -> 1037.32 | G10: =IF($G$2="None",SUMIFS(INDIRECT("G"&$F$2),GDate,"<="&G$5,GDate,">="&DATE(YEAR(G$5),MONTH(G$5),1),GCampaign,$A10,GDevice,$K$2),IF(SUMIFS(INDIRECT("G"&$G$2),GDate,"<="&G$5,GDate,">="&DATE(YEAR(G$5),MONTH(G$5),1),GCampaign,$A10,GDevice,$K$2)=0,0,SUMIFS(INDIRECT("G"&$F$2),GDate,"<="&G$5,GDate,">="&DATE(YEAR(G$5),MONTH(G$5),1),GCampaign,$A10,GDevice,$K$2)/SUMIFS(INDIRECT("G"&$G$2),GDate,"<="&G$5,GDate,">="&DATE(YEAR(G$5),MONTH(G$5),1),GCampaign,$A10,GDevice,$K$2))) -> 1656.64 | H10: =IF($G$2="None",SUMIFS(INDIRECT("G"&$F$2),GDate,"<="&H$5,GDate,">="&DATE(YEAR(H$5),MONTH(H$5),1),GCampaign,$A10,GDevice,$K$2),IF(SUMIFS(INDIRECT("G"&$G$2),GDate,"<="&H$5,GDate,">="&DATE(YEAR(H$5),MONTH(H$5),1),GCampaign,$A10,GDevice,$K$2)=0,0,SUMIFS(INDIRECT("G"&$F$2),GDate,"<="&H$5,GDate,">="&DATE(YEAR(H$5),MONTH(H$5),1),GCampaign,$A10,GDevice,$K$2)/SUMIFS(INDIRECT("G"&$G$2),GDate,"<="&H$5,GDate,">="&DATE(YEAR(H$5),MONTH(H$5),1),GCampaign,$A10,GDevice,$K$2))) -> 2072.24 | I10: =IF($G$2="None",SUMIFS(INDIRECT("G"&$F$2),GDate,"<="&I$5,GDate,">="&DATE(YEAR(I$5),MONTH(I$5),1),GCampaign,$A10,GDevice,$K$2),IF(SUMIFS(INDIRECT("G"&$G$2),GDate,"<="&I$5,GDate,">="&DATE(YEAR(I$5),MONTH(I$5),1),GCampaign,$A10,GDevice,$K$2)=0,0,SUMIFS(INDIRECT("G"&$F$2),GDate,"<="&I$5,GDate,">="&DATE(YEAR(I$5),MONTH(I$5),1),GCampaign,$A10,GDevice,$K$2)/SUMIFS(INDIRECT("G"&$G$2),GDate,"<="&I$5,GDate,">="&DATE(YEAR(I$5),MONTH(I$5),1),GCampaign,$A10,GDevice,$K$2))) -> 1870.22 | J10: =IF($G$2="None",SUMIFS(INDIRECT("G"&$F$2),GDate,"<="&J$5,GDate,">="&DATE(YEAR(J$5),MONTH(J$5),1),GCampaign,$A10,GDevice,$K$2),IF(SUMIFS(INDIRECT("G"&$G$2),GDate,"<="&J$5,GDate,">="&DATE(YEAR(J$5),MONTH(J$5),1),GCampaign,$A10,GDevice,$K$2)=0,0,SUMIFS(INDIRECT("G"&$F$2),GDate,"<="&J$5,GDate,">="&DATE(YEAR(J$5),MONTH(J$5),1),GCampaign,$A10,GDevice,$K$2)/SUMIFS(INDIRECT("G"&$G$2),GDate,"<="&J$5,GDate,">="&DATE(YEAR(J$5),MONTH(J$5),1),GCampaign,$A10,GDevice,$K$2))) -> 1463.74 | K10: =IF($G$2="None",SUMIFS(INDIRECT("G"&$F$2),GDate,"<="&K$5,GDate,">="&DATE(YEAR(K$5),MONTH(K$5),1),GCampaign,$A10,GDevice,$K$2),IF(SUMIFS(INDIRECT("G"&$G$2),GDate,"<="&K$5,GDate,">="&DATE(YEAR(K$5),MONTH(K$5),1),GCampaign,$A10,GDevice,$K$2)=0,0,SUMIFS(INDIRECT("G"&$F$2),GDate,"<="&K$5,GDate,">="&DATE(YEAR(K$5),MONTH(K$5),1),GCampaign,$A10,GDevice,$K$2)/SUMIFS(INDIRECT("G"&$G$2),GDate,"<="&K$5,GDate,">="&DATE(YEAR(K$5),MONTH(K$5),1),GCampaign,$A10,GDevice,$K$2))) -> 1571.42 | L10: =IF($G$2="None",SUMIFS(INDIRECT("G"&$F$2),GDate,"<="&L$5,GDate,">="&DATE(YEAR(L$5),MONTH(L$5),1),GCampaign,$A10,GDevice,$K$2),IF(SUMIFS(INDIRECT("G"&$G$2),GDate,"<="&L$5,GDate,">="&DATE(YEAR(L$5),MONTH(L$5),1),GCampaign,$A10,GDevice,$K$2)=0,0,SUMIFS(INDIRECT("G"&$F$2),GDate,"<="&L$5,GDate,">="&DATE(YEAR(L$5),MONTH(L$5),1),GCampaign,$A10,GDevice,$K$2)/SUMIFS(INDIRECT("G"&$G$2),GDate,"<="&L$5,GDate,">="&DATE(YEAR(L$5),MONTH(L$5),1),GCampaign,$A10,GDevice,$K$2))) -> 1536.2 | M10: =IF($G$2="None",SUMIFS(INDIRECT("G"&$F$2),GDate,"<="&M$5,GDate,">="&DATE(YEAR(M$5),MONTH(M$5),1),GCampaign,$A10,GDevice,$K$2),IF(SUMIFS(INDIRECT("G"&$G$2),GDate,"<="&M$5,GDate,">="&DATE(YEAR(M$5),MONTH(M$5),1),GCampaign,$A10,GDevice,$K$2)=0,0,SUMIFS(INDIRECT("G"&$F$2),GDate,"<="&M$5,GDate,">="&DATE(YEAR(M$5),MONTH(M$5),1),GCampaign,$A10,GDevice,$K$2)/SUMIFS(INDIRECT("G"&$G$2),GDate,"<="&M$5,GDate,">="&DATE(YEAR(M$5),MONTH(M$5),1),GCampaign,$A10,GDevice,$K$2))) -> 745.06
A11: Campaign 5 | B11: =IF($G$2="None",SUMIFS(INDIRECT("G"&$F$2),GDate,"<="&B$5,GDate,">="&DATE(YEAR(B$5),MONTH(B$5),1),GCampaign,$A11,GDevice,$K$2),IF(SUMIFS(INDIRECT("G"&$G$2),GDate,"<="&B$5,GDate,">="&DATE(YEAR(B$5),MONTH(B$5),1),GCampaign,$A11,GDevice,$K$2)=0,0,SUMIFS(INDIRECT("G"&$F$2),GDate,"<="&B$5,GDate,">="&DATE(YEAR(B$5),MONTH(B$5),1),GCampaign,$A11,GDevice,$K$2)/SUMIFS(INDIRECT("G"&$G$2),GDate,"<="&B$5,GDate,">="&DATE(YEAR(B$5),MONTH(B$5),1),GCampaign,$A11,GDevice,$K$2))) -> 1597.81 | C11: =IF($G$2="None",SUMIFS(INDIRECT("G"&$F$2),GDate,"<="&C$5,GDate,">="&DATE(YEAR(C$5),MONTH(C$5),1),GCampaign,$A11,GDevice,$K$2),IF(SUMIFS(INDIRECT("G"&$G$2),GDate,"<="&C$5,GDate,">="&DATE(YEAR(C$5),MONTH(C$5),1),GCampaign,$A11,GDevice,$K$2)=0,0,SUMIFS(INDIRECT("G"&$F$2),GDate,"<="&C$5,GDate,">="&DATE(YEAR(C$5),MONTH(C$5),1),GCampaign,$A11,GDevice,$K$2)/SUMIFS(INDIRECT("G"&$G$2),GDate,"<="&C$5,GDate,">="&DATE(YEAR(C$5),MONTH(C$5),1),GCampaign,$A11,GDevice,$K$2))) -> 1899.14 | D11: =IF($G$2="None",SUMIFS(INDIRECT("G"&$F$2),GDate,"<="&D$5,GDate,">="&DATE(YEAR(D$5),MONTH(D$5),1),GCampaign,$A11,GDevice,$K$2),IF(SUMIFS(INDIRECT("G"&$G$2),GDate,"<="&D$5,GDate,">="&DATE(YEAR(D$5),MONTH(D$5),1),GCampaign,$A11,GDevice,$K$2)=0,0,SUMIFS(INDIRECT("G"&$F$2),GDate,"<="&D$5,GDate,">="&DATE(YEAR(D$5),MONTH(D$5),1),GCampaign,$A11,GDevice,$K$2)/SUMIFS(INDIRECT("G"&$G$2),GDate,"<="&D$5,GDate,">="&DATE(YEAR(D$5),MONTH(D$5),1),GCampaign,$A11,GDevice,$K$2))) -> 2510.58 | E11: =IF($G$2="None",SUMIFS(INDIRECT("G"&$F$2),GDate,"<="&E$5,GDate,">="&DATE(YEAR(E$5),MONTH(E$5),1),GCampaign,$A11,GDevice,$K$2),IF(SUMIFS(INDIRECT("G"&$G$2),GDate,"<="&E$5,GDate,">="&DATE(YEAR(E$5),MONTH(E$5),1),GCampaign,$A11,GDevice,$K$2)=0,0,SUMIFS(INDIRECT("G"&$F$2),GDate,"<="&E$5,GDate,">="&DATE(YEAR(E$5),MONTH(E$5),1),GCampaign,$A11,GDevice,$K$2)/SUMIFS(INDIRECT("G"&$G$2),GDate,"<="&E$5,GDate,">="&DATE(YEAR(E$5),MONTH(E$5),1),GCampaign,$A11,GDevice,$K$2))) -> 2418.58 | F11: =IF($G$2="None",SUMIFS(INDIRECT("G"&$F$2),GDate,"<="&F$5,GDate,">="&DATE(YEAR(F$5),MONTH(F$5),1),GCampaign,$A11,GDevice,$K$2),IF(SUMIFS(INDIRECT("G"&$G$2),GDate,"<="&F$5,GDate,">="&DATE(YEAR(F$5),MONTH(F$5),1),GCampaign,$A11,GDevice,$K$2)=0,0,SUMIFS(INDIRECT("G"&$F$2),GDate,"<="&F$5,GDate,">="&DATE(YEAR(F$5),MONTH(F$5),1),GCampaign,$A11,GDevice,$K$2)/SUMIFS(INDIRECT("G"&$G$2),GDate,"<="&F$5,GDate,">="&DATE(YEAR(F$5),MONTH(F$5),1),GCampaign,$A11,GDevice,$K$2))) -> 1583.21 | G11: =IF($G$2="None",SUMIFS(INDIRECT("G"&$F$2),GDate,"<="&G$5,GDate,">="&DATE(YEAR(G$5),MONTH(G$5),1),GCampaign,$A11,GDevice,$K$2),IF(SUMIFS(INDIRECT("G"&$G$2),GDate,"<="&G$5,GDate,">="&DATE(YEAR(G$5),MONTH(G$5),1),GCampaign,$A11,GDevice,$K$2)=0,0,SUMIFS(INDIRECT("G"&$F$2),GDate,"<="&G$5,GDate,">="&DATE(YEAR(G$5),MONTH(G$5),1),GCampaign,$A11,GDevice,$K$2)/SUMIFS(INDIRECT("G"&$G$2),GDate,"<="&G$5,GDate,">="&DATE(YEAR(G$5),MONTH(G$5),1),GCampaign,$A11,GDevice,$K$2))) -> 2834.15 | H11: =IF($G$2="None",SUMIFS(INDIRECT("G"&$F$2),GDate,"<="&H$5,GDate,">="&DATE(YEAR(H$5),MONTH(H$5),1),GCampaign,$A11,GDevice,$K$2),IF(SUMIFS(INDIRECT("G"&$G$2),GDate,"<="&H$5,GDate,">="&DATE(YEAR(H$5),MONTH(H$5),1),GCampaign,$A11,GDevice,$K$2)=0,0,SUMIFS(INDIRECT("G"&$F$2),GDate,"<="&H$5,GDate,">="&DATE(YEAR(H$5),MONTH(H$5),1),GCampaign,$A11,GDevice,$K$2)/SUMIFS(INDIRECT("G"&$G$2),GDate,"<="&H$5,GDate,">="&DATE(YEAR(H$5),MONTH(H$5),1),GCampaign,$A11,GDevice,$K$2))) -> 3364.51 | I11: =IF($G$2="None",SUMIFS(INDIRECT("G"&$F$2),GDate,"<="&I$5,GDate,">="&DATE(YEAR(I$5),MONTH(I$5),1),GCampaign,$A11,GDevice,$K$2),IF(SUMIFS(INDIRECT("G"&$G$2),GDate,"<="&I$5,GDate,">="&DATE(YEAR(I$5),MONTH(I$5),1),GCampaign,$A11,GDevice,$K$2)=0,0,SUMIFS(INDIRECT("G"&$F$2),GDate,"<="&I$5,GDate,">="&DATE(YEAR(I$5),MONTH(I$5),1),GCampaign,$A11,GDevice,$K$2)/SUMIFS(INDIRECT("G"&$G$2),GDate,"<="&I$5,GDate,">="&DATE(YEAR(I$5),MONTH(I$5),1),GCampaign,$A11,GDevice,$K$2))) -> 2926.12 | J11: =IF($G$2="None",SUMIFS(INDIRECT("G"&$F$2),GDate,"<="&J$5,GDate,">="&DATE(YEAR(J$5),MONTH(J$5),1),GCampaign,$A11,GDevice,$K$2),IF(SUMIFS(INDIRECT("G"&$G$2),GDate,"<="&J$5,GDate,">="&DATE(YEAR(J$5),MONTH(J$5),1),GCampaign,$A11,GDevice,$K$2)=0,0,SUMIFS(INDIRECT("G"&$F$2),GDate,"<="&J$5,GDate,">="&DATE(YEAR(J$5),MONTH(J$5),1),GCampaign,$A11,GDevice,$K$2)/SUMIFS(INDIRECT("G"&$G$2),GDate,"<="&J$5,GDate,">="&DATE(YEAR(J$5),MONTH(J$5),1),GCampaign,$A11,GDevice,$K$2))) -> 2602.76 | K11: =IF($G$2="None",SUMIFS(INDIRECT("G"&$F$2),GDate,"<="&K$5,GDate,">="&DATE(YEAR(K$5),MONTH(K$5),1),GCampaign,$A11,GDevice,$K$2),IF(SUMIFS(INDIRECT("G"&$G$2),GDate,"<="&K$5,GDate,">="&DATE(YEAR(K$5),MONTH(K$5),1),GCampaign,$A11,GDevice,$K$2)=0,0,SUMIFS(INDIRECT("G"&$F$2),GDate,"<="&K$5,GDate,">="&DATE(YEAR(K$5),MONTH(K$5),1),GCampaign,$A11,GDevice,$K$2)/SUMIFS(INDIRECT("G"&$G$2),GDate,"<="&K$5,GDate,">="&DATE(YEAR(K$5),MONTH(K$5),1),GCampaign,$A11,GDevice,$K$2))) -> 2681.94 | L11: =IF($G$2="None",SUMIFS(INDIRECT("G"&$F$2),GDate,"<="&L$5,GDate,">="&DATE(YEAR(L$5),MONTH(L$5),1),GCampaign,$A11,GDevice,$K$2),IF(SUMIFS(INDIRECT("G"&$G$2),GDate,"<="&L$5,GDate,">="&DATE(YEAR(L$5),MONTH(L$5),1),GCampaign,$A11,GDevice,$K$2)=0,0,SUMIFS(INDIRECT("G"&$F$2),GDate,"<="&L$5,GDate,">="&DATE(YEAR(L$5),MONTH(L$5),1),GCampaign,$A11,GDevice,$K$2)/SUMIFS(INDIRECT("G"&$G$2),GDate,"<="&L$5,GDate,">="&DATE(YEAR(L$5),MONTH(L$5),1),GCampaign,$A11,GDevice,$K$2))) -> 4702.35 | M11: =IF($G$2="None",SUMIFS(INDIRECT("G"&$F$2),GDate,"<="&M$5,GDate,">="&DATE(YEAR(M$5),MONTH(M$5),1),GCampaign,$A11,GDevice,$K$2),IF(SUMIFS(INDIRECT("G"&$G$2),GDate,"<="&M$5,GDate,">="&DATE(YEAR(M$5),MONTH(M$5),1),GCampaign,$A11,GDevice,$K$2)=0,0,SUMIFS(INDIRECT("G"&$F$2),GDate,"<="&M$5,GDate,">="&DATE(YEAR(M$5),MONTH(M$5),1),GCampaign,$A11,GDevice,$K$2)/SUMIFS(INDIRECT("G"&$G$2),GDate,"<="&M$5,GDate,">="&DATE(YEAR(M$5),MONTH(M$5),1),GCampaign,$A11,GDevice,$K$2))) -> 4113.8

Sheet AdGroups (hidden)
A1: Google Adwords - Monthly Statistics | I1: Device: | K1: Select values to display:
A2: Campaigns | B2: =IF(AND($K$2="Cost",$J$2="*"),IF(ROUND(SUM(OFFSET($C$6,1,0,AGCount,COLUMN($N$5)-2)),2)=ROUND(SUMIFS(GCost,GDate,"<="&$C$5,GDate,">="&DATE(YEAR($N$5),MONTH($N$5),1)),2),"ok","error!"),"ok") -> ok | C2: =IF(ISERROR(FIND("*",$F$2)),"error!",MID($F$2,FIND("*",$F$2)+1,LEN($F$2)-FIND("*",$F$2))) -> N0 | D2: =IF(ISERROR(FIND("-",$F$2)),"error!",MID($F$2,1,FIND("-",$F$2)-1)) -> Cost | E2: =IF(ISERROR(FIND("-",$F$2)),"error!",IF(ISERROR(FIND("*",$F$2)),"error!",MID($F$2,FIND("-",$F$2)+1,FIND("*",$F$2)-1-FIND("-",$F$2)))) -> None | F2: =IF(ISNA(MATCH($K$2,CTypeList,0)),"Cost-None*N0",OFFSET(CamCharts!$A$4,-1,MATCH($K$2,CTypeList,0),1,1)) -> Cost-None*N0 | J2: =IF(ISBLANK($I$2),"*",$I$2) -> * | K2: Cost
A3: © www.excel-skills.com
B4: =IF(ISBLANK($K$2),"Total Cost: ","Total "&$K$2&": ") -> Total Cost: | C4: =IF($E$2="None",SUMIFS(INDIRECT("G"&$D$2),GDate,"<="&C$5,GDate,">="&DATE(YEAR(C$5),MONTH(C$5),1),GDevice,$J$2),IF(SUMIFS(INDIRECT("G"&$E$2),GDate,"<="&C$5,GDate,">="&DATE(YEAR(C$5),MONTH(C$5),1),GDevice,$J$2)=0,0,SUMIFS(INDIRECT("G"&$D$2),GDate,"<="&C$5,GDate,">="&DATE(YEAR(C$5),MONTH(C$5),1),GDevice,$J$2)/SUMIFS(INDIRECT("G"&$E$2),GDate,"<="&C$5,GDate,">="&DATE(YEAR(C$5),MONTH(C$5),1),GDevice,$J$2))) -> 4545.26 | D4: =IF($E$2="None",SUMIFS(INDIRECT("G"&$D$2),GDate,"<="&D$5,GDate,">="&DATE(YEAR(D$5),MONTH(D$5),1),GDevice,$J$2),IF(SUMIFS(INDIRECT("G"&$E$2),GDate,"<="&D$5,GDate,">="&DATE(YEAR(D$5),MONTH(D$5),1),GDevice,$J$2)=0,0,SUMIFS(INDIRECT("G"&$D$2),GDate,"<="&D$5,GDate,">="&DATE(YEAR(D$5),MONTH(D$5),1),GDevice,$J$2)/SUMIFS(INDIRECT("G"&$E$2),GDate,"<="&D$5,GDate,">="&DATE(YEAR(D$5),MONTH(D$5),1),GDevice,$J$2))) -> 6045.99 | E4: =IF($E$2="None",SUMIFS(INDIRECT("G"&$D$2),GDate,"<="&E$5,GDate,">="&DATE(YEAR(E$5),MONTH(E$5),1),GDevice,$J$2),IF(SUMIFS(INDIRECT("G"&$E$2),GDate,"<="&E$5,GDate,">="&DATE(YEAR(E$5),MONTH(E$5),1),GDevice,$J$2)=0,0,SUMIFS(INDIRECT("G"&$D$2),GDate,"<="&E$5,GDate,">="&DATE(YEAR(E$5),MONTH(E$5),1),GDevice,$J$2)/SUMIFS(INDIRECT("G"&$E$2),GDate,"<="&E$5,GDate,">="&DATE(YEAR(E$5),MONTH(E$5),1),GDevice,$J$2))) -> 6306.68 | F4: =IF($E$2="None",SUMIFS(INDIRECT("G"&$D$2),GDate,"<="&F$5,GDate,">="&DATE(YEAR(F$5),MONTH(F$5),1),GDevice,$J$2),IF(SUMIFS(INDIRECT("G"&$E$2),GDate,"<="&F$5,GDate,">="&DATE(YEAR(F$5),MONTH(F$5),1),GDevice,$J$2)=0,0,SUMIFS(INDIRECT("G"&$D$2),GDate,"<="&F$5,GDate,">="&DATE(YEAR(F$5),MONTH(F$5),1),GDevice,$J$2)/SUMIFS(INDIRECT("G"&$E$2),GDate,"<="&F$5,GDate,">="&DATE(YEAR(F$5),MONTH(F$5),1),GDevice,$J$2))) -> 6638.18 | G4: =IF($E$2="None",SUMIFS(INDIRECT("G"&$D$2),GDate,"<="&G$5,GDate,">="&DATE(YEAR(G$5),MONTH(G$5),1),GDevice,$J$2),IF(SUMIFS(INDIRECT("G"&$E$2),GDate,"<="&G$5,GDate,">="&DATE(YEAR(G$5),MONTH(G$5),1),GDevice,$J$2)=0,0,SUMIFS(INDIRECT("G"&$D$2),GDate,"<="&G$5,GDate,">="&DATE(YEAR(G$5),MONTH(G$5),1),GDevice,$J$2)/SUMIFS(INDIRECT("G"&$E$2),GDate,"<="&G$5,GDate,">="&DATE(YEAR(G$5),MONTH(G$5),1),GDevice,$J$2))) -> 4116.46 | H4: =IF($E$2="None",SUMIFS(INDIRECT("G"&$D$2),GDate,"<="&H$5,GDate,">="&DATE(YEAR(H$5),MONTH(H$5),1),GDevice,$J$2),IF(SUMIFS(INDIRECT("G"&$E$2),GDate,"<="&H$5,GDate,">="&DATE(YEAR(H$5),MONTH(H$5),1),GDevice,$J$2)=0,0,SUMIFS(INDIRECT("G"&$D$2),GDate,"<="&H$5,GDate,">="&DATE(YEAR(H$5),MONTH(H$5),1),GDevice,$J$2)/SUMIFS(INDIRECT("G"&$E$2),GDate,"<="&H$5,GDate,">="&DATE(YEAR(H$5),MONTH(H$5),1),GDevice,$J$2))) -> 7953.91 | I4: =IF($E$2="None",SUMIFS(INDIRECT("G"&$D$2),GDate,"<="&I$5,GDate,">="&DATE(YEAR(I$5),MONTH(I$5),1),GDevice,$J$2),IF(SUMIFS(INDIRECT("G"&$E$2),GDate,"<="&I$5,GDate,">="&DATE(YEAR(I$5),MONTH(I$5),1),GDevice,$J$2)=0,0,SUMIFS(INDIRECT("G"&$D$2),GDate,"<="&I$5,GDate,">="&DATE(YEAR(I$5),MONTH(I$5),1),GDevice,$J$2)/SUMIFS(INDIRECT("G"&$E$2),GDate,"<="&I$5,GDate,">="&DATE(YEAR(I$5),MONTH(I$5),1),GDevice,$J$2))) -> 9987.42 | J4: =IF($E$2="None",SUMIFS(INDIRECT("G"&$D$2),GDate,"<="&J$5,GDate,">="&DATE(YEAR(J$5),MONTH(J$5),1),GDevice,$J$2),IF(SUMIFS(INDIRECT("G"&$E$2),GDate,"<="&J$5,GDate,">="&DATE(YEAR(J$5),MONTH(J$5),1),GDevice,$J$2)=0,0,SUMIFS(INDIRECT("G"&$D$2),GDate,"<="&J$5,GDate,">="&DATE(YEAR(J$5),MONTH(J$5),1),GDevice,$J$2)/SUMIFS(INDIRECT("G"&$E$2),GDate,"<="&J$5,GDate,">="&DATE(YEAR(J$5),MONTH(J$5),1),GDevice,$J$2))) -> 8527.4 | K4: =IF($E$2="None",SUMIFS(INDIRECT("G"&$D$2),GDate,"<="&K$5,GDate,">="&DATE(YEAR(K$5),MONTH(K$5),1),GDevice,$J$2),IF(SUMIFS(INDIRECT("G"&$E$2),GDate,"<="&K$5,GDate,">="&DATE(YEAR(K$5),MONTH(K$5),1),GDevice,$J$2)=0,0,SUMIFS(INDIRECT("G"&$D$2),GDate,"<="&K$5,GDate,">="&DATE(YEAR(K$5),MONTH(K$5),1),GDevice,$J$2)/SUMIFS(INDIRECT("G"&$E$2),GDate,"<="&K$5,GDate,">="&DATE(YEAR(K$5),MONTH(K$5),1),GDevice,$J$2))) -> 8309.03 | L4: =IF($E$2="None",SUMIFS(INDIRECT("G"&$D$2),GDate,"<="&L$5,GDate,">="&DATE(YEAR(L$5),MONTH(L$5),1),GDevice,$J$2),IF(SUMIFS(INDIRECT("G"&$E$2),GDate,"<="&L$5,GDate,">="&DATE(YEAR(L$5),MONTH(L$5),1),GDevice,$J$2)=0,0,SUMIFS(INDIRECT("G"&$D$2),GDate,"<="&L$5,GDate,">="&DATE(YEAR(L$5),MONTH(L$5),1),GDevice,$J$2)/SUMIFS(INDIRECT("G"&$E$2),GDate,"<="&L$5,GDate,">="&DATE(YEAR(L$5),MONTH(L$5),1),GDevice,$J$2))) -> 8025.64 | M4: =IF($E$2="None",SUMIFS(INDIRECT("G"&$D$2),GDate,"<="&M$5,GDate,">="&DATE(YEAR(M$5),MONTH(M$5),1),GDevice,$J$2),IF(SUMIFS(INDIRECT("G"&$E$2),GDate,"<="&M$5,GDate,">="&DATE(YEAR(M$5),MONTH(M$5),1),GDevice,$J$2)=0,0,SUMIFS(INDIRECT("G"&$D$2),GDate,"<="&M$5,GDate,">="&DATE(YEAR(M$5),MONTH(M$5),1),GDevice,$J$2)/SUMIFS(INDIRECT("G"&$E$2),GDate,"<="&M$5,GDate,">="&DATE(YEAR(M$5),MONTH(M$5),1),GDevice,$J$2))) -> 10720.08 | N4: =IF($E$2="None",SUMIFS(INDIRECT("G"&$D$2),GDate,"<="&N$5,GDate,">="&DATE(YEAR(N$5),MONTH(N$5),1),GDevice,$J$2),IF(SUMIFS(INDIRECT("G"&$E$2),GDate,"<="&N$5,GDate,">="&DATE(YEAR(N$5),MONTH(N$5),1),GDevice,$J$2)=0,0,SUMIFS(INDIRECT("G"&$D$2),GDate,"<="&N$5,GDate,">="&DATE(YEAR(N$5),MONTH(N$5),1),GDevice,$J$2)/SUMIFS(INDIRECT("G"&$E$2),GDate,"<="&N$5,GDate,">="&DATE(YEAR(N$5),MONTH(N$5),1),GDevice,$J$2))) -> 8134.96
B5: Month: | C5: =DATE(YEAR(Setup!$B$4),MONTH(Setup!$B$4)+1,0) -> 2021-04-30 | D5: =DATE(YEAR(C5),MONTH(C5),0) -> 2021-03-31 | E5: =DATE(YEAR(D5),MONTH(D5),0) -> 2021-02-28 | F5: 2021-01-31 | G5: 2020-12-31 | H5: 2020-11-30 | I5: 2020-10-31 | J5: 2020-09-30 | K5: 2020-08-31 | L5: 2020-07-31 | M5: 2020-06-30 | N5: 2020-05-31
A6: Ad Group Name | B6: Campaign Name | C6: Period1 | D6: Period2 | E6: Period3 | F6: Period4 | G6: Period5 | H6: Period6 | I6: Period7 | J6: Period8 | K6: Period9 | L6: Period10 | M6: Period11 | N6: Period12
A7: Ad Group 1.1 | B7: Campaign 1 | C7: =IF($E$2="None",SUMIFS(INDIRECT("G"&$D$2),GDate,"<="&C$5,GDate,">="&DATE(YEAR(C$5),MONTH(C$5),1),GCampaign,$B7,GAdgroup,$A7,GDevice,$J$2),IF(SUMIFS(INDIRECT("G"&$E$2),GDate,"<="&C$5,GDate,">="&DATE(YEAR(C$5),MONTH(C$5),1),GCampaign,$B7,GAdgroup,$A7,GDevice,$J$2)=0,0,SUMIFS(INDIRECT("G"&$D$2),GDate,"<="&C$5,GDate,">="&DATE(YEAR(C$5),MONTH(C$5),1),GCampaign,$B7,GAdgroup,$A7,GDevice,$J$2)/SUMIFS(INDIRECT("G"&$E$2),GDate,"<="&C$5,GDate,">="&DATE(YEAR(C$5),MONTH(C$5),1),GCampaign,$B7,GAdgroup,$A7,GDevice,$J$2))) -> 126.33 | D7: =IF($E$2="None",SUMIFS(INDIRECT("G"&$D$2),GDate,"<="&D$5,GDate,">="&DATE(YEAR(D$5),MONTH(D$5),1),GCampaign,$B7,GAdgroup,$A7,GDevice,$J$2),IF(SUMIFS(INDIRECT("G"&$E$2),GDate,"<="&D$5,GDate,">="&DATE(YEAR(D$5),MONTH(D$5),1),GCampaign,$B7,GAdgroup,$A7,GDevice,$J$2)=0,0,SUMIFS(INDIRECT("G"&$D$2),GDate,"<="&D$5,GDate,">="&DATE(YEAR(D$5),MONTH(D$5),1),GCampaign,$B7,GAdgroup,$A7,GDevice,$J$2)/SUMIFS(INDIRECT("G"&$E$2),GDate,"<="&D$5,GDate,">="&DATE(YEAR(D$5),MONTH(D$5),1),GCampaign,$B7,GAdgroup,$A7,GDevice,$J$2))) -> 456.06 | E7: =IF($E$2="None",SUMIFS(INDIRECT("G"&$D$2),GDate,"<="&E$5,GDate,">="&DATE(YEAR(E$5),MONTH(E$5),1),GCampaign,$B7,GAdgroup,$A7,GDevice,$J$2),IF(SUMIFS(INDIRECT("G"&$E$2),GDate,"<="&E$5,GDate,">="&DATE(YEAR(E$5),MONTH(E$5),1),GCampaign,$B7,GAdgroup,$A7,GDevice,$J$2)=0,0,SUMIFS(INDIRECT("G"&$D$2),GDate,"<="&E$5,GDate,">="&DATE(YEAR(E$5),MONTH(E$5),1),GCampaign,$B7,GAdgroup,$A7,GDevice,$J$2)/SUMIFS(INDIRECT("G"&$E$2),GDate,"<="&E$5,GDate,">="&DATE(YEAR(E$5),MONTH(E$5),1),GCampaign,$B7,GAdgroup,$A7,GDevice,$J$2))) -> 305.74 | F7: =IF($E$2="None",SUMIFS(INDIRECT("G"&$D$2),GDate,"<="&F$5,GDate,">="&DATE(YEAR(F$5),MONTH(F$5),1),GCampaign,$B7,GAdgroup,$A7,GDevice,$J$2),IF(SUMIFS(INDIRECT("G"&$E$2),GDate,"<="&F$5,GDate,">="&DATE(YEAR(F$5),MONTH(F$5),1),GCampaign,$B7,GAdgroup,$A7,GDevice,$J$2)=0,0,SUMIFS(INDIRECT("G"&$D$2),GDate,"<="&F$5,GDate,">="&DATE(YEAR(F$5),MONTH(F$5),1),GCampaign,$B7,GAdgroup,$A7,GDevice,$J$2)/SUMIFS(INDIRECT("G"&$E$2),GDate,"<="&F$5,GDate,">="&DATE(YEAR(F$5),MONTH(F$5),1),GCampaign,$B7,GAdgroup,$A7,GDevice,$J$2))) -> 473.3 | G7: =IF($E$2="None",SUMIFS(INDIRECT("G"&$D$2),GDate,"<="&G$5,GDate,">="&DATE(YEAR(G$5),MONTH(G$5),1),GCampaign,$B7,GAdgroup,$A7,GDevice,$J$2),IF(SUMIFS(INDIRECT("G"&$E$2),GDate,"<="&G$5,GDate,">="&DATE(YEAR(G$5),MONTH(G$5),1),GCampaign,$B7,GAdgroup,$A7,GDevice,$J$2)=0,0,SUMIFS(INDIRECT("G"&$D$2),GDate,"<="&G$5,GDate,">="&DATE(YEAR(G$5),MONTH(G$5),1),GCampaign,$B7,GAdgroup,$A7,GDevice,$J$2)/SUMIFS(INDIRECT("G"&$E$2),GDate,"<="&G$5,GDate,">="&DATE(YEAR(G$5),MONTH(G$5),1),GCampaign,$B7,GAdgroup,$A7,GDevice,$J$2))) -> 206.7 | H7: =IF($E$2="None",SUMIFS(INDIRECT("G"&$D$2),GDate,"<="&H$5,GDate,">="&DATE(YEAR(H$5),MONTH(H$5),1),GCampaign,$B7,GAdgroup,$A7,GDevice,$J$2),IF(SUMIFS(INDIRECT("G"&$E$2),GDate,"<="&H$5,GDate,">="&DATE(YEAR(H$5),MONTH(H$5),1),GCampaign,$B7,GAdgroup,$A7,GDevice,$J$2)=0,0,SUMIFS(INDIRECT("G"&$D$2),GDate,"<="&H$5,GDate,">="&DATE(YEAR(H$5),MONTH(H$5),1),GCampaign,$B7,GAdgroup,$A7,GDevice,$J$2)/SUMIFS(INDIRECT("G"&$E$2),GDate,"<="&H$5,GDate,">="&DATE(YEAR(H$5),MONTH(H$5),1),GCampaign,$B7,GAdgroup,$A7,GDevice,$J$2))) -> 457.04 | I7: =IF($E$2="None",SUMIFS(INDIRECT("G"&$D$2),GDate,"<="&I$5,GDate,">="&DATE(YEAR(I$5),MONTH(I$5),1),GCampaign,$B7,GAdgroup,$A7,GDevice,$J$2),IF(SUMIFS(INDIRECT("G"&$E$2),GDate,"<="&I$5,GDate,">="&DATE(YEAR(I$5),MONTH(I$5),1),GCampaign,$B7,GAdgroup,$A7,GDevice,$J$2)=0,0,SUMIFS(INDIRECT("G"&$D$2),GDate,"<="&I$5,GDate,">="&DATE(YEAR(I$5),MONTH(I$5),1),GCampaign,$B7,GAdgroup,$A7,GDevice,$J$2)/SUMIFS(INDIRECT("G"&$E$2),GDate,"<="&I$5,GDate,">="&DATE(YEAR(I$5),MONTH(I$5),1),GCampaign,$B7,GAdgroup,$A7,GDevice,$J$2))) -> 820.6 | J7: =IF($E$2="None",SUMIFS(INDIRECT("G"&$D$2),GDate,"<="&J$5,GDate,">="&DATE(YEAR(J$5),MONTH(J$5),1),GCampaign,$B7,GAdgroup,$A7,GDevice,$J$2),IF(SUMIFS(INDIRECT("G"&$E$2),GDate,"<="&J$5,GDate,">="&DATE(YEAR(J$5),MONTH(J$5),1),GCampaign,$B7,GAdgroup,$A7,GDevice,$J$2)=0,0,SUMIFS(INDIRECT("G"&$D$2),GDate,"<="&J$5,GDate,">="&DATE(YEAR(J$5),MONTH(J$5),1),GCampaign,$B7,GAdgroup,$A7,GDevice,$J$2)/SUMIFS(INDIRECT("G"&$E$2),GDate,"<="&J$5,GDate,">="&DATE(YEAR(J$5),MONTH(J$5),1),GCampaign,$B7,GAdgroup,$A7,GDevice,$J$2))) -> 559.77 | K7: =IF($E$2="None",SUMIFS(INDIRECT("G"&$D$2),GDate,"<="&K$5,GDate,">="&DATE(YEAR(K$5),MONTH(K$5),1),GCampaign,$B7,GAdgroup,$A7,GDevice,$J$2),IF(SUMIFS(INDIRECT("G"&$E$2),GDate,"<="&K$5,GDate,">="&DATE(YEAR(K$5),MONTH(K$5),1),GCampaign,$B7,GAdgroup,$A7,GDevice,$J$2)=0,0,SUMIFS(INDIRECT("G"&$D$2),GDate,"<="&K$5,GDate,">="&DATE(YEAR(K$5),MONTH(K$5),1),GCampaign,$B7,GAdgroup,$A7,GDevice,$J$2)/SUMIFS(INDIRECT("G"&$E$2),GDate,"<="&K$5,GDate,">="&DATE(YEAR(K$5),MONTH(K$5),1),GCampaign,$B7,GAdgroup,$A7,GDevice,$J$2))) -> 710.83 | L7: =IF($E$2="None",SUMIFS(INDIRECT("G"&$D$2),GDate,"<="&L$5,GDate,">="&DATE(YEAR(L$5),MONTH(L$5),1),GCampaign,$B7,GAdgroup,$A7,GDevice,$J$2),IF(SUMIFS(INDIRECT("G"&$E$2),GDate,"<="&L$5,GDate,">="&DATE(YEAR(L$5),MONTH(L$5),1),GCampaign,$B7,GAdgroup,$A7,GDevice,$J$2)=0,0,SUMIFS(INDIRECT("G"&$D$2),GDate,"<="&L$5,GDate,">="&DATE(YEAR(L$5),MONTH(L$5),1),GCampaign,$B7,GAdgroup,$A7,GDevice,$J$2)/SUMIFS(INDIRECT("G"&$E$2),GDate,"<="&L$5,GDate,">="&DATE(YEAR(L$5),MONTH(L$5),1),GCampaign,$B7,GAdgroup,$A7,GDevice,$J$2))) -> 536.34 | M7: =IF($E$2="None",SUMIFS(INDIRECT("G"&$D$2),GDate,"<="&M$5,GDate,">="&DATE(YEAR(M$5),MONTH(M$5),1),GCampaign,$B7,GAdgroup,$A7,GDevice,$J$2),IF(SUMIFS(INDIRECT("G"&$E$2),GDate,"<="&M$5,GDate,">="&DATE(YEAR(M$5),MONTH(M$5),1),GCampaign,$B7,GAdgroup,$A7,GDevice,$J$2)=0,0,SUMIFS(INDIRECT("G"&$D$2),GDate,"<="&M$5,GDate,">="&DATE(YEAR(M$5),MONTH(M$5),1),GCampaign,$B7,GAdgroup,$A7,GDevice,$J$2)/SUMIFS(INDIRECT("G"&$E$2),GDate,"<="&M$5,GDate,">="&DATE(YEAR(M$5),MONTH(M$5),1),GCampaign,$B7,GAdgroup,$A7,GDevice,$J$2))) -> 955.22 | N7: =IF($E$2="None",SUMIFS(INDIRECT("G"&$D$2),GDate,"<="&N$5,GDate,">="&DATE(YEAR(N$5),MONTH(N$5),1),GCampaign,$B7,GAdgroup,$A7,GDevice,$J$2),IF(SUMIFS(INDIRECT("G"&$E$2),GDate,"<="&N$5,GDate,">="&DATE(YEAR(N$5),MONTH(N$5),1),GCampaign,$B7,GAdgroup,$A7,GDevice,$J$2)=0,0,SUMIFS(INDIRECT("G"&$D$2),GDate,"<="&N$5,GDate,">="&DATE(YEAR(N$5),MONTH(N$5),1),GCampaign,$B7,GAdgroup,$A7,GDevice,$J$2)/SUMIFS(INDIRECT("G"&$E$2),GDate,"<="&N$5,GDate,">="&DATE(YEAR(N$5),MONTH(N$5),1),GCampaign,$B7,GAdgroup,$A7,GDevice,$J$2))) -> 559.57
A8: Ad Group 1.2 | B8: Campaign 1 | C8: =IF($E$2="None",SUMIFS(INDIRECT("G"&$D$2),GDate,"<="&C$5,GDate,">="&DATE(YEAR(C$5),MONTH(C$5),1),GCampaign,$B8,GAdgroup,$A8,GDevice,$J$2),IF(SUMIFS(INDIRECT("G"&$E$2),GDate,"<="&C$5,GDate,">="&DATE(YEAR(C$5),MONTH(C$5),1),GCampaign,$B8,GAdgroup,$A8,GDevice,$J$2)=0,0,SUMIFS(INDIRECT("G"&$D$2),GDate,"<="&C$5,GDate,">="&DATE(YEAR(C$5),MONTH(C$5),1),GCampaign,$B8,GAdgroup,$A8,GDevice,$J$2)/SUMIFS(INDIRECT("G"&$E$2),GDate,"<="&C$5,GDate,">="&DATE(YEAR(C$5),MONTH(C$5),1),GCampaign,$B8,GAdgroup,$A8,GDevice,$J$2))) -> 191.54 | D8: =IF($E$2="None",SUMIFS(INDIRECT("G"&$D$2),GDate,"<="&D$5,GDate,">="&DATE(YEAR(D$5),MONTH(D$5),1),GCampaign,$B8,GAdgroup,$A8,GDevice,$J$2),IF(SUMIFS(INDIRECT("G"&$E$2),GDate,"<="&D$5,GDate,">="&DATE(YEAR(D$5),MONTH(D$5),1),GCampaign,$B8,GAdgroup,$A8,GDevice,$J$2)=0,0,SUMIFS(INDIRECT("G"&$D$2),GDate,"<="&D$5,GDate,">="&DATE(YEAR(D$5),MONTH(D$5),1),GCampaign,$B8,GAdgroup,$A8,GDevice,$J$2)/SUMIFS(INDIRECT("G"&$E$2),GDate,"<="&D$5,GDate,">="&DATE(YEAR(D$5),MONTH(D$5),1),GCampaign,$B8,GAdgroup,$A8,GDevice,$J$2))) -> 68.38 | E8: =IF($E$2="None",SUMIFS(INDIRECT("G"&$D$2),GDate,"<="&E$5,GDate,">="&DATE(YEAR(E$5),MONTH(E$5),1),GCampaign,$B8,GAdgroup,$A8,GDevice,$J$2),IF(SUMIFS(INDIRECT("G"&$E$2),GDate,"<="&E$5,GDate,">="&DATE(YEAR(E$5),MONTH(E$5),1),GCampaign,$B8,GAdgroup,$A8,GDevice,$J$2)=0,0,SUMIFS(INDIRECT("G"&$D$2),GDate,"<="&E$5,GDate,">="&DATE(YEAR(E$5),MONTH(E$5),1),GCampaign,$B8,GAdgroup,$A8,GDevice,$J$2)/SUMIFS(INDIRECT("G"&$E$2),GDate,"<="&E$5,GDate,">="&DATE(YEAR(E$5),MONTH(E$5),1),GCampaign,$B8,GAdgroup,$A8,GDevice,$J$2))) -> 136.54 | F8: =IF($E$2="None",SUMIFS(INDIRECT("G"&$D$2),GDate,"<="&F$5,GDate,">="&DATE(YEAR(F$5),MONTH(F$5),1),GCampaign,$B8,GAdgroup,$A8,GDevice,$J$2),IF(SUMIFS(INDIRECT("G"&$E$2),GDate,"<="&F$5,GDate,">="&DATE(YEAR(F$5),MONTH(F$5),1),GCampaign,$B8,GAdgroup,$A8,GDevice,$J$2)=0,0,SUMIFS(INDIRECT("G"&$D$2),GDate,"<="&F$5,GDate,">="&DATE(YEAR(F$5),MONTH(F$5),1),GCampaign,$B8,GAdgroup,$A8,GDevice,$J$2)/SUMIFS(INDIRECT("G"&$E$2),GDate,"<="&F$5,GDate,">="&DATE(YEAR(F$5),MONTH(F$5),1),GCampaign,$B8,GAdgroup,$A8,GDevice,$J$2))) -> 33.2 | G8: =IF($E$2="None",SUMIFS(INDIRECT("G"&$D$2),GDate,"<="&G$5,GDate,">="&DATE(YEAR(G$5),MONTH(G$5),1),GCampaign,$B8,GAdgroup,$A8,GDevice,$J$2),IF(SUMIFS(INDIRECT("G"&$E$2),GDate,"<="&G$5,GDate,">="&DATE(YEAR(G$5),MONTH(G$5),1),GCampaign,$B8,GAdgroup,$A8,GDevice,$J$2)=0,0,SUMIFS(INDIRECT("G"&$D$2),GDate,"<="&G$5,GDate,">="&DATE(YEAR(G$5),MONTH(G$5),1),GCampaign,$B8,GAdgroup,$A8,GDevice,$J$2)/SUMIFS(INDIRECT("G"&$E$2),GDate,"<="&G$5,GDate,">="&DATE(YEAR(G$5),MONTH(G$5),1),GCampaign,$B8,GAdgroup,$A8,GDevice,$J$2))) -> 40.62 | H8: =IF($E$2="None",SUMIFS(INDIRECT("G"&$D$2),GDate,"<="&H$5,GDate,">="&DATE(YEAR(H$5),MONTH(H$5),1),GCampaign,$B8,GAdgroup,$A8,GDevice,$J$2),IF(SUMIFS(INDIRECT("G"&$E$2),GDate,"<="&H$5,GDate,">="&DATE(YEAR(H$5),MONTH(H$5),1),GCampaign,$B8,GAdgroup,$A8,GDevice,$J$2)=0,0,SUMIFS(INDIRECT("G"&$D$2),GDate,"<="&H$5,GDate,">="&DATE(YEAR(H$5),MONTH(H$5),1),GCampaign,$B8,GAdgroup,$A8,GDevice,$J$2)/SUMIFS(INDIRECT("G"&$E$2),GDate,"<="&H$5,GDate,">="&DATE(YEAR(H$5),MONTH(H$5),1),GCampaign,$B8,GAdgroup,$A8,GDevice,$J$2))) -> 48.55 | I8: =IF($E$2="None",SUMIFS(INDIRECT("G"&$D$2),GDate,"<="&I$5,GDate,">="&DATE(YEAR(I$5),MONTH(I$5),1),GCampaign,$B8,GAdgroup,$A8,GDevice,$J$2),IF(SUMIFS(INDIRECT("G"&$E$2),GDate,"<="&I$5,GDate,">="&DATE(YEAR(I$5),MONTH(I$5),1),GCampaign,$B8,GAdgroup,$A8,GDevice,$J$2)=0,0,SUMIFS(INDIRECT("G"&$D$2),GDate,"<="&I$5,GDate,">="&DATE(YEAR(I$5),MONTH(I$5),1),GCampaign,$B8,GAdgroup,$A8,GDevice,$J$2)/SUMIFS(INDIRECT("G"&$E$2),GDate,"<="&I$5,GDate,">="&DATE(YEAR(I$5),MONTH(I$5),1),GCampaign,$B8,GAdgroup,$A8,GDevice,$J$2))) -> 52.64 | J8: =IF($E$2="None",SUMIFS(INDIRECT("G"&$D$2),GDate,"<="&J$5,GDate,">="&DATE(YEAR(J$5),MONTH(J$5),1),GCampaign,$B8,GAdgroup,$A8,GDevice,$J$2),IF(SUMIFS(INDIRECT("G"&$E$2),GDate,"<="&J$5,GDate,">="&DATE(YEAR(J$5),MONTH(J$5),1),GCampaign,$B8,GAdgroup,$A8,GDevice,$J$2)=0,0,SUMIFS(INDIRECT("G"&$D$2),GDate,"<="&J$5,GDate,">="&DATE(YEAR(J$5),MONTH(J$5),1),GCampaign,$B8,GAdgroup,$A8,GDevice,$J$2)/SUMIFS(INDIRECT("G"&$E$2),GDate,"<="&J$5,GDate,">="&DATE(YEAR(J$5),MONTH(J$5),1),GCampaign,$B8,GAdgroup,$A8,GDevice,$J$2))) -> 39.12 | K8: =IF($E$2="None",SUMIFS(INDIRECT("G"&$D$2),GDate,"<="&K$5,GDate,">="&DATE(YEAR(K$5),MONTH(K$5),1),GCampaign,$B8,GAdgroup,$A8,GDevice,$J$2),IF(SUMIFS(INDIRECT("G"&$E$2),GDate,"<="&K$5,GDate,">="&DATE(YEAR(K$5),MONTH(K$5),1),GCampaign,$B8,GAdgroup,$A8,GDevice,$J$2)=0,0,SUMIFS(INDIRECT("G"&$D$2),GDate,"<="&K$5,GDate,">="&DATE(YEAR(K$5),MONTH(K$5),1),GCampaign,$B8,GAdgroup,$A8,GDevice,$J$2)/SUMIFS(INDIRECT("G"&$E$2),GDate,"<="&K$5,GDate,">="&DATE(YEAR(K$5),MONTH(K$5),1),GCampaign,$B8,GAdgroup,$A8,GDevice,$J$2))) -> 99.88 | L8: =IF($E$2="None",SUMIFS(INDIRECT("G"&$D$2),GDate,"<="&L$5,GDate,">="&DATE(YEAR(L$5),MONTH(L$5),1),GCampaign,$B8,GAdgroup,$A8,GDevice,$J$2),IF(SUMIFS(INDIRECT("G"&$E$2),GDate,"<="&L$5,GDate,">="&DATE(YEAR(L$5),MONTH(L$5),1),GCampaign,$B8,GAdgroup,$A8,GDevice,$J$2)=0,0,SUMIFS(INDIRECT("G"&$D$2),GDate,"<="&L$5,GDate,">="&DATE(YEAR(L$5),MONTH(L$5),1),GCampaign,$B8,GAdgroup,$A8,GDevice,$J$2)/SUMIFS(INDIRECT("G"&$E$2),GDate,"<="&L$5,GDate,">="&DATE(YEAR(L$5),MONTH(L$5),1),GCampaign,$B8,GAdgroup,$A8,GDevice,$J$2))) -> 57.72 | M8: =IF($E$2="None",SUMIFS(INDIRECT("G"&$D$2),GDate,"<="&M$5,GDate,">="&DATE(YEAR(M$5),MONTH(M$5),1),GCampaign,$B8,GAdgroup,$A8,GDevice,$J$2),IF(SUMIFS(INDIRECT("G"&$E$2),GDate,"<="&M$5,GDate,">="&DATE(YEAR(M$5),MONTH(M$5),1),GCampaign,$B8,GAdgroup,$A8,GDevice,$J$2)=0,0,SUMIFS(INDIRECT("G"&$D$2),GDate,"<="&M$5,GDate,">="&DATE(YEAR(M$5),MONTH(M$5),1),GCampaign,$B8,GAdgroup,$A8,GDevice,$J$2)/SUMIFS(INDIRECT("G"&$E$2),GDate,"<="&M$5,GDate,">="&DATE(YEAR(M$5),MONTH(M$5),1),GCampaign,$B8,GAdgroup,$A8,GDevice,$J$2))) -> 85.16 | N8: =IF($E$2="None",SUMIFS(INDIRECT("G"&$D$2),GDate,"<="&N$5,GDate,">="&DATE(YEAR(N$5),MONTH(N$5),1),GCampaign,$B8,GAdgroup,$A8,GDevice,$J$2),IF(SUMIFS(INDIRECT("G"&$E$2),GDate,"<="&N$5,GDate,">="&DATE(YEAR(N$5),MONTH(N$5),1),GCampaign,$B8,GAdgroup,$A8,GDevice,$J$2)=0,0,SUMIFS(INDIRECT("G"&$D$2),GDate,"<="&N$5,GDate,">="&DATE(YEAR(N$5),MONTH(N$5),1),GCampaign,$B8,GAdgroup,$A8,GDevice,$J$2)/SUMIFS(INDIRECT("G"&$E$2),GDate,"<="&N$5,GDate,">="&DATE(YEAR(N$5),MONTH(N$5),1),GCampaign,$B8,GAdgroup,$A8,GDevice,$J$2))) -> 119.57
A9: Ad Group 1.3 | B9: Campaign 1 | C9: =IF($E$2="None",SUMIFS(INDIRECT("G"&$D$2),GDate,"<="&C$5,GDate,">="&DATE(YEAR(C$5),MONTH(C$5),1),GCampaign,$B9,GAdgroup,$A9,GDevice,$J$2),IF(SUMIFS(INDIRECT("G"&$E$2),GDate,"<="&C$5,GDate,">="&DATE(YEAR(C$5),MONTH(C$5),1),GCampaign,$B9,GAdgroup,$A9,GDevice,$J$2)=0,0,SUMIFS(INDIRECT("G"&$D$2),GDate,"<="&C$5,GDate,">="&DATE(YEAR(C$5),MONTH(C$5),1),GCampaign,$B9,GAdgroup,$A9,GDevice,$J$2)/SUMIFS(INDIRECT("G"&$E$2),GDate,"<="&C$5,GDate,">="&DATE(YEAR(C$5),MONTH(C$5),1),GCampaign,$B9,GAdgroup,$A9,GDevice,$J$2))) -> 470.07 | D9: =IF($E$2="None",SUMIFS(INDIRECT("G"&$D$2),GDate,"<="&D$5,GDate,">="&DATE(YEAR(D$5),MONTH(D$5),1),GCampaign,$B9,GAdgroup,$A9,GDevice,$J$2),IF(SUMIFS(INDIRECT("G"&$E$2),GDate,"<="&D$5,GDate,">="&DATE(YEAR(D$5),MONTH(D$5),1),GCampaign,$B9,GAdgroup,$A9,GDevice,$J$2)=0,0,SUMIFS(INDIRECT("G"&$D$2),GDate,"<="&D$5,GDate,">="&DATE(YEAR(D$5),MONTH(D$5),1),GCampaign,$B9,GAdgroup,$A9,GDevice,$J$2)/SUMIFS(INDIRECT("G"&$E$2),GDate,"<="&D$5,GDate,">="&DATE(YEAR(D$5),MONTH(D$5),1),GCampaign,$B9,GAdgroup,$A9,GDevice,$J$2))) -> 570.15 | E9: =IF($E$2="None",SUMIFS(INDIRECT("G"&$D$2),GDate,"<="&E$5,GDate,">="&DATE(YEAR(E$5),MONTH(E$5),1),GCampaign,$B9,GAdgroup,$A9,GDevice,$J$2),IF(SUMIFS(INDIRECT("G"&$E$2),GDate,"<="&E$5,GDate,">="&DATE(YEAR(E$5),MONTH(E$5),1),GCampaign,$B9,GAdgroup,$A9,GDevice,$J$2)=0,0,SUMIFS(INDIRECT("G"&$D$2),GDate,"<="&E$5,GDate,">="&DATE(YEAR(E$5),MONTH(E$5),1),GCampaign,$B9,GAdgroup,$A9,GDevice,$J$2)/SUMIFS(INDIRECT("G"&$E$2),GDate,"<="&E$5,GDate,">="&DATE(YEAR(E$5),MONTH(E$5),1),GCampaign,$B9,GAdgroup,$A9,GDevice,$J$2))) -> 503.02 | F9: =IF($E$2="None",SUMIFS(INDIRECT("G"&$D$2),GDate,"<="&F$5,GDate,">="&DATE(YEAR(F$5),MONTH(F$5),1),GCampaign,$B9,GAdgroup,$A9,GDevice,$J$2),IF(SUMIFS(INDIRECT("G"&$E$2),GDate,"<="&F$5,GDate,">="&DATE(YEAR(F$5),MONTH(F$5),1),GCampaign,$B9,GAdgroup,$A9,GDevice,$J$2)=0,0,SUMIFS(INDIRECT("G"&$D$2),GDate,"<="&F$5,GDate,">="&DATE(YEAR(F$5),MONTH(F$5),1),GCampaign,$B9,GAdgroup,$A9,GDevice,$J$2)/SUMIFS(INDIRECT("G"&$E$2),GDate,"<="&F$5,GDate,">="&DATE(YEAR(F$5),MONTH(F$5),1),GCampaign,$B9,GAdgroup,$A9,GDevice,$J$2))) -> 670.12 | G9: =IF($E$2="None",SUMIFS(INDIRECT("G"&$D$2),GDate,"<="&G$5,GDate,">="&DATE(YEAR(G$5),MONTH(G$5),1),GCampaign,$B9,GAdgroup,$A9,GDevice,$J$2),IF(SUMIFS(INDIRECT("G"&$E$2),GDate,"<="&G$5,GDate,">="&DATE(YEAR(G$5),MONTH(G$5),1),GCampaign,$B9,GAdgroup,$A9,GDevice,$J$2)=0,0,SUMIFS(INDIRECT("G"&$D$2),GDate,"<="&G$5,GDate,">="&DATE(YEAR(G$5),MONTH(G$5),1),GCampaign,$B9,GAdgroup,$A9,GDevice,$J$2)/SUMIFS(INDIRECT("G"&$E$2),GDate,"<="&G$5,GDate,">="&DATE(YEAR(G$5),MONTH(G$5),1),GCampaign,$B9,GAdgroup,$A9,GDevice,$J$2))) -> 334.93 | H9: =IF($E$2="None",SUMIFS(INDIRECT("G"&$D$2),GDate,"<="&H$5,GDate,">="&DATE(YEAR(H$5),MONTH(H$5),1),GCampaign,$B9,GAdgroup,$A9,GDevice,$J$2),IF(SUMIFS(INDIRECT("G"&$E$2),GDate,"<="&H$5,GDate,">="&DATE(YEAR(H$5),MONTH(H$5),1),GCampaign,$B9,GAdgroup,$A9,GDevice,$J$2)=0,0,SUMIFS(INDIRECT("G"&$D$2),GDate,"<="&H$5,GDate,">="&DATE(YEAR(H$5),MONTH(H$5),1),GCampaign,$B9,GAdgroup,$A9,GDevice,$J$2)/SUMIFS(INDIRECT("G"&$E$2),GDate,"<="&H$5,GDate,">="&DATE(YEAR(H$5),MONTH(H$5),1),GCampaign,$B9,GAdgroup,$A9,GDevice,$J$2))) -> 937.38 | I9: =IF($E$2="None",SUMIFS(INDIRECT("G"&$D$2),GDate,"<="&I$5,GDate,">="&DATE(YEAR(I$5),MONTH(I$5),1),GCampaign,$B9,GAdgroup,$A9,GDevice,$J$2),IF(SUMIFS(INDIRECT("G"&$E$2),GDate,"<="&I$5,GDate,">="&DATE(YEAR(I$5),MONTH(I$5),1),GCampaign,$B9,GAdgroup,$A9,GDevice,$J$2)=0,0,SUMIFS(INDIRECT("G"&$D$2),GDate,"<="&I$5,GDate,">="&DATE(YEAR(I$5),MONTH(I$5),1),GCampaign,$B9,GAdgroup,$A9,GDevice,$J$2)/SUMIFS(INDIRECT("G"&$E$2),GDate,"<="&I$5,GDate,">="&DATE(YEAR(I$5),MONTH(I$5),1),GCampaign,$B9,GAdgroup,$A9,GDevice,$J$2))) -> 1684.94 | J9: =IF($E$2="None",SUMIFS(INDIRECT("G"&$D$2),GDate,"<="&J$5,GDate,">="&DATE(YEAR(J$5),MONTH(J$5),1),GCampaign,$B9,GAdgroup,$A9,GDevice,$J$2),IF(SUMIFS(INDIRECT("G"&$E$2),GDate,"<="&J$5,GDate,">="&DATE(YEAR(J$5),MONTH(J$5),1),GCampaign,$B9,GAdgroup,$A9,GDevice,$J$2)=0,0,SUMIFS(INDIRECT("G"&$D$2),GDate,"<="&J$5,GDate,">="&DATE(YEAR(J$5),MONTH(J$5),1),GCampaign,$B9,GAdgroup,$A9,GDevice,$J$2)/SUMIFS(INDIRECT("G"&$E$2),GDate,"<="&J$5,GDate,">="&DATE(YEAR(J$5),MONTH(J$5),1),GCampaign,$B9,GAdgroup,$A9,GDevice,$J$2))) -> 1317.26 | K9: =IF($E$2="None",SUMIFS(INDIRECT("G"&$D$2),GDate,"<="&K$5,GDate,">="&DATE(YEAR(K$5),MONTH(K$5),1),GCampaign,$B9,GAdgroup,$A9,GDevice,$J$2),IF(SUMIFS(INDIRECT("G"&$E$2),GDate,"<="&K$5,GDate,">="&DATE(YEAR(K$5),MONTH(K$5),1),GCampaign,$B9,GAdgroup,$A9,GDevice,$J$2)=0,0,SUMIFS(INDIRECT("G"&$D$2),GDate,"<="&K$5,GDate,">="&DATE(YEAR(K$5),MONTH(K$5),1),GCampaign,$B9,GAdgroup,$A9,GDevice,$J$2)/SUMIFS(INDIRECT("G"&$E$2),GDate,"<="&K$5,GDate,">="&DATE(YEAR(K$5),MONTH(K$5),1),GCampaign,$B9,GAdgroup,$A9,GDevice,$J$2))) -> 1057.62 | L9: =IF($E$2="None",SUMIFS(INDIRECT("G"&$D$2),GDate,"<="&L$5,GDate,">="&DATE(YEAR(L$5),MONTH(L$5),1),GCampaign,$B9,GAdgroup,$A9,GDevice,$J$2),IF(SUMIFS(INDIRECT("G"&$E$2),GDate,"<="&L$5,GDate,">="&DATE(YEAR(L$5),MONTH(L$5),1),GCampaign,$B9,GAdgroup,$A9,GDevice,$J$2)=0,0,SUMIFS(INDIRECT("G"&$D$2),GDate,"<="&L$5,GDate,">="&DATE(YEAR(L$5),MONTH(L$5),1),GCampaign,$B9,GAdgroup,$A9,GDevice,$J$2)/SUMIFS(INDIRECT("G"&$E$2),GDate,"<="&L$5,GDate,">="&DATE(YEAR(L$5),MONTH(L$5),1),GCampaign,$B9,GAdgroup,$A9,GDevice,$J$2))) -> 1279.5 | M9: =IF($E$2="None",SUMIFS(INDIRECT("G"&$D$2),GDate,"<="&M$5,GDate,">="&DATE(YEAR(M$5),MONTH(M$5),1),GCampaign,$B9,GAdgroup,$A9,GDevice,$J$2),IF(SUMIFS(INDIRECT("G"&$E$2),GDate,"<="&M$5,GDate,">="&DATE(YEAR(M$5),MONTH(M$5),1),GCampaign,$B9,GAdgroup,$A9,GDevice,$J$2)=0,0,SUMIFS(INDIRECT("G"&$D$2),GDate,"<="&M$5,GDate,">="&DATE(YEAR(M$5),MONTH(M$5),1),GCampaign,$B9,GAdgroup,$A9,GDevice,$J$2)/SUMIFS(INDIRECT("G"&$E$2),GDate,"<="&M$5,GDate,">="&DATE(YEAR(M$5),MONTH(M$5),1),GCampaign,$B9,GAdgroup,$A9,GDevice,$J$2))) -> 729.05 | N9: =IF($E$2="None",SUMIFS(INDIRECT("G"&$D$2),GDate,"<="&N$5,GDate,">="&DATE(YEAR(N$5),MONTH(N$5),1),GCampaign,$B9,GAdgroup,$A9,GDevice,$J$2),IF(SUMIFS(INDIRECT("G"&$E$2),GDate,"<="&N$5,GDate,">="&DATE(YEAR(N$5),MONTH(N$5),1),GCampaign,$B9,GAdgroup,$A9,GDevice,$J$2)=0,0,SUMIFS(INDIRECT("G"&$D$2),GDate,"<="&N$5,GDate,">="&DATE(YEAR(N$5),MONTH(N$5),1),GCampaign,$B9,GAdgroup,$A9,GDevice,$J$2)/SUMIFS(INDIRECT("G"&$E$2),GDate,"<="&N$5,GDate,">="&DATE(YEAR(N$5),MONTH(N$5),1),GCampaign,$B9,GAdgroup,$A9,GDevice,$J$2))) -> 465.59
A10: Ad Group 2.1 | B10: Campaign 2 | C10: =IF($E$2="None",SUMIFS(INDIRECT("G"&$D$2),GDate,"<="&C$5,GDate,">="&DATE(YEAR(C$5),MONTH(C$5),1),GCampaign,$B10,GAdgroup,$A10,GDevice,$J$2),IF(SUMIFS(INDIRECT("G"&$E$2),GDate,"<="&C$5,GDate,">="&DATE(YEAR(C$5),MONTH(C$5),1),GCampaign,$B10,GAdgroup,$A10,GDevice,$J$2)=0,0,SUMIFS(INDIRECT("G"&$D$2),GDate,"<="&C$5,GDate,">="&DATE(YEAR(C$5),MONTH(C$5),1),GCampaign,$B10,GAdgroup,$A10,GDevice,$J$2)/SUMIFS(INDIRECT("G"&$E$2),GDate,"<="&C$5,GDate,">="&DATE(YEAR(C$5),MONTH(C$5),1),GCampaign,$B10,GAdgroup,$A10,GDevice,$J$2))) -> 719.96 | D10: =IF($E$2="None",SUMIFS(INDIRECT("G"&$D$2),GDate,"<="&D$5,GDate,">="&DATE(YEAR(D$5),MONTH(D$5),1),GCampaign,$B10,GAdgroup,$A10,GDevice,$J$2),IF(SUMIFS(INDIRECT("G"&$E$2),GDate,"<="&D$5,GDate,">="&DATE(YEAR(D$5),MONTH(D$5),1),GCampaign,$B10,GAdgroup,$A10,GDevice,$J$2)=0,0,SUMIFS(INDIRECT("G"&$D$2),GDate,"<="&D$5,GDate,">="&DATE(YEAR(D$5),MONTH(D$5),1),GCampaign,$B10,GAdgroup,$A10,GDevice,$J$2)/SUMIFS(INDIRECT("G"&$E$2),GDate,"<="&D$5,GDate,">="&DATE(YEAR(D$5),MONTH(D$5),1),GCampaign,$B10,GAdgroup,$A10,GDevice,$J$2))) -> 618.68 | E10: =IF($E$2="None",SUMIFS(INDIRECT("G"&$D$2),GDate,"<="&E$5,GDate,">="&DATE(YEAR(E$5),MONTH(E$5),1),GCampaign,$B10,GAdgroup,$A10,GDevice,$J$2),IF(SUMIFS(INDIRECT("G"&$E$2),GDate,"<="&E$5,GDate,">="&DATE(YEAR(E$5),MONTH(E$5),1),GCampaign,$B10,GAdgroup,$A10,GDevice,$J$2)=0,0,SUMIFS(INDIRECT("G"&$D$2),GDate,"<="&E$5,GDate,">="&DATE(YEAR(E$5),MONTH(E$5),1),GCampaign,$B10,GAdgroup,$A10,GDevice,$J$2)/SUMIFS(INDIRECT("G"&$E$2),GDate,"<="&E$5,GDate,">="&DATE(YEAR(E$5),MONTH(E$5),1),GCampaign,$B10,GAdgroup,$A10,GDevice,$J$2))) -> 831.27 | F10: =IF($E$2="None",SUMIFS(INDIRECT("G"&$D$2),GDate,"<="&F$5,GDate,">="&DATE(YEAR(F$5),MONTH(F$5),1),GCampaign,$B10,GAdgroup,$A10,GDevice,$J$2),IF(SUMIFS(INDIRECT("G"&$E$2),GDate,"<="&F$5,GDate,">="&DATE(YEAR(F$5),MONTH(F$5),1),GCampaign,$B10,GAdgroup,$A10,GDevice,$J$2)=0,0,SUMIFS(INDIRECT("G"&$D$2),GDate,"<="&F$5,GDate,">="&DATE(YEAR(F$5),MONTH(F$5),1),GCampaign,$B10,GAdgroup,$A10,GDevice,$J$2)/SUMIFS(INDIRECT("G"&$E$2),GDate,"<="&F$5,GDate,">="&DATE(YEAR(F$5),MONTH(F$5),1),GCampaign,$B10,GAdgroup,$A10,GDevice,$J$2))) -> 685.11 | G10: =IF($E$2="None",SUMIFS(INDIRECT("G"&$D$2),GDate,"<="&G$5,GDate,">="&DATE(YEAR(G$5),MONTH(G$5),1),GCampaign,$B10,GAdgroup,$A10,GDevice,$J$2),IF(SUMIFS(INDIRECT("G"&$E$2),GDate,"<="&G$5,GDate,">="&DATE(YEAR(G$5),MONTH(G$5),1),GCampaign,$B10,GAdgroup,$A10,GDevice,$J$2)=0,0,SUMIFS(INDIRECT("G"&$D$2),GDate,"<="&G$5,GDate,">="&DATE(YEAR(G$5),MONTH(G$5),1),GCampaign,$B10,GAdgroup,$A10,GDevice,$J$2)/SUMIFS(INDIRECT("G"&$E$2),GDate,"<="&G$5,GDate,">="&DATE(YEAR(G$5),MONTH(G$5),1),GCampaign,$B10,GAdgroup,$A10,GDevice,$J$2))) -> 395.26 | H10: =IF($E$2="None",SUMIFS(INDIRECT("G"&$D$2),GDate,"<="&H$5,GDate,">="&DATE(YEAR(H$5),MONTH(H$5),1),GCampaign,$B10,GAdgroup,$A10,GDevice,$J$2),IF(SUMIFS(INDIRECT("G"&$E$2),GDate,"<="&H$5,GDate,">="&DATE(YEAR(H$5),MONTH(H$5),1),GCampaign,$B10,GAdgroup,$A10,GDevice,$J$2)=0,0,SUMIFS(INDIRECT("G"&$D$2),GDate,"<="&H$5,GDate,">="&DATE(YEAR(H$5),MONTH(H$5),1),GCampaign,$B10,GAdgroup,$A10,GDevice,$J$2)/SUMIFS(INDIRECT("G"&$E$2),GDate,"<="&H$5,GDate,">="&DATE(YEAR(H$5),MONTH(H$5),1),GCampaign,$B10,GAdgroup,$A10,GDevice,$J$2))) -> 942.55 | I10: =IF($E$2="None",SUMIFS(INDIRECT("G"&$D$2),GDate,"<="&I$5,GDate,">="&DATE(YEAR(I$5),MONTH(I$5),1),GCampaign,$B10,GAdgroup,$A10,GDevice,$J$2),IF(SUMIFS(INDIRECT("G"&$E$2),GDate,"<="&I$5,GDate,">="&DATE(YEAR(I$5),MONTH(I$5),1),GCampaign,$B10,GAdgroup,$A10,GDevice,$J$2)=0,0,SUMIFS(INDIRECT("G"&$D$2),GDate,"<="&I$5,GDate,">="&DATE(YEAR(I$5),MONTH(I$5),1),GCampaign,$B10,GAdgroup,$A10,GDevice,$J$2)/SUMIFS(INDIRECT("G"&$E$2),GDate,"<="&I$5,GDate,">="&DATE(YEAR(I$5),MONTH(I$5),1),GCampaign,$B10,GAdgroup,$A10,GDevice,$J$2))) -> 978.54 | J10: =IF($E$2="None",SUMIFS(INDIRECT("G"&$D$2),GDate,"<="&J$5,GDate,">="&DATE(YEAR(J$5),MONTH(J$5),1),GCampaign,$B10,GAdgroup,$A10,GDevice,$J$2),IF(SUMIFS(INDIRECT("G"&$E$2),GDate,"<="&J$5,GDate,">="&DATE(YEAR(J$5),MONTH(J$5),1),GCampaign,$B10,GAdgroup,$A10,GDevice,$J$2)=0,0,SUMIFS(INDIRECT("G"&$D$2),GDate,"<="&J$5,GDate,">="&DATE(YEAR(J$5),MONTH(J$5),1),GCampaign,$B10,GAdgroup,$A10,GDevice,$J$2)/SUMIFS(INDIRECT("G"&$E$2),GDate,"<="&J$5,GDate,">="&DATE(YEAR(J$5),MONTH(J$5),1),GCampaign,$B10,GAdgroup,$A10,GDevice,$J$2))) -> 643.94 | K10: =IF($E$2="None",SUMIFS(INDIRECT("G"&$D$2),GDate,"<="&K$5,GDate,">="&DATE(YEAR(K$5),MONTH(K$5),1),GCampaign,$B10,GAdgroup,$A10,GDevice,$J$2),IF(SUMIFS(INDIRECT("G"&$E$2),GDate,"<="&K$5,GDate,">="&DATE(YEAR(K$5),MONTH(K$5),1),GCampaign,$B10,GAdgroup,$A10,GDevice,$J$2)=0,0,SUMIFS(INDIRECT("G"&$D$2),GDate,"<="&K$5,GDate,">="&DATE(YEAR(K$5),MONTH(K$5),1),GCampaign,$B10,GAdgroup,$A10,GDevice,$J$2)/SUMIFS(INDIRECT("G"&$E$2),GDate,"<="&K$5,GDate,">="&DATE(YEAR(K$5),MONTH(K$5),1),GCampaign,$B10,GAdgroup,$A10,GDevice,$J$2))) -> 727.35 | L10: =IF($E$2="None",SUMIFS(INDIRECT("G"&$D$2),GDate,"<="&L$5,GDate,">="&DATE(YEAR(L$5),MONTH(L$5),1),GCampaign,$B10,GAdgroup,$A10,GDevice,$J$2),IF(SUMIFS(INDIRECT("G"&$E$2),GDate,"<="&L$5,GDate,">="&DATE(YEAR(L$5),MONTH(L$5),1),GCampaign,$B10,GAdgroup,$A10,GDevice,$J$2)=0,0,SUMIFS(INDIRECT("G"&$D$2),GDate,"<="&L$5,GDate,">="&DATE(YEAR(L$5),MONTH(L$5),1),GCampaign,$B10,GAdgroup,$A10,GDevice,$J$2)/SUMIFS(INDIRECT("G"&$E$2),GDate,"<="&L$5,GDate,">="&DATE(YEAR(L$5),MONTH(L$5),1),GCampaign,$B10,GAdgroup,$A10,GDevice,$J$2))) -> 453.14 | M10: =IF($E$2="None",SUMIFS(INDIRECT("G"&$D$2),GDate,"<="&M$5,GDate,">="&DATE(YEAR(M$5),MONTH(M$5),1),GCampaign,$B10,GAdgroup,$A10,GDevice,$J$2),IF(SUMIFS(INDIRECT("G"&$E$2),GDate,"<="&M$5,GDate,">="&DATE(YEAR(M$5),MONTH(M$5),1),GCampaign,$B10,GAdgroup,$A10,GDevice,$J$2)=0,0,SUMIFS(INDIRECT("G"&$D$2),GDate,"<="&M$5,GDate,">="&DATE(YEAR(M$5),MONTH(M$5),1),GCampaign,$B10,GAdgroup,$A10,GDevice,$J$2)/SUMIFS(INDIRECT("G"&$E$2),GDate,"<="&M$5,GDate,">="&DATE(YEAR(M$5),MONTH(M$5),1),GCampaign,$B10,GAdgroup,$A10,GDevice,$J$2))) -> 716.09 | N10: =IF($E$2="None",SUMIFS(INDIRECT("G"&$D$2),GDate,"<="&N$5,GDate,">="&DATE(YEAR(N$5),MONTH(N$5),1),GCampaign,$B10,GAdgroup,$A10,GDevice,$J$2),IF(SUMIFS(INDIRECT("G"&$E$2),GDate,"<="&N$5,GDate,">="&DATE(YEAR(N$5),MONTH(N$5),1),GCampaign,$B10,GAdgroup,$A10,GDevice,$J$2)=0,0,SUMIFS(INDIRECT("G"&$D$2),GDate,"<="&N$5,GDate,">="&DATE(YEAR(N$5),MONTH(N$5),1),GCampaign,$B10,GAdgroup,$A10,GDevice,$J$2)/SUMIFS(INDIRECT("G"&$E$2),GDate,"<="&N$5,GDate,">="&DATE(YEAR(N$5),MONTH(N$5),1),GCampaign,$B10,GAdgroup,$A10,GDevice,$J$2))) -> 600.34
A11: Ad Group 2.2 | B11: Campaign 2 | C11: =IF($E$2="None",SUMIFS(INDIRECT("G"&$D$2),GDate,"<="&C$5,GDate,">="&DATE(YEAR(C$5),MONTH(C$5),1),GCampaign,$B11,GAdgroup,$A11,GDevice,$J$2),IF(SUMIFS(INDIRECT("G"&$E$2),GDate,"<="&C$5,GDate,">="&DATE(YEAR(C$5),MONTH(C$5),1),GCampaign,$B11,GAdgroup,$A11,GDevice,$J$2)=0,0,SUMIFS(INDIRECT("G"&$D$2),GDate,"<="&C$5,GDate,">="&DATE(YEAR(C$5),MONTH(C$5),1),GCampaign,$B11,GAdgroup,$A11,GDevice,$J$2)/SUMIFS(INDIRECT("G"&$E$2),GDate,"<="&C$5,GDate,">="&DATE(YEAR(C$5),MONTH(C$5),1),GCampaign,$B11,GAdgroup,$A11,GDevice,$J$2))) -> 801.66 | D11: =IF($E$2="None",SUMIFS(INDIRECT("G"&$D$2),GDate,"<="&D$5,GDate,">="&DATE(YEAR(D$5),MONTH(D$5),1),GCampaign,$B11,GAdgroup,$A11,GDevice,$J$2),IF(SUMIFS(INDIRECT("G"&$E$2),GDate,"<="&D$5,GDate,">="&DATE(YEAR(D$5),MONTH(D$5),1),GCampaign,$B11,GAdgroup,$A11,GDevice,$J$2)=0,0,SUMIFS(INDIRECT("G"&$D$2),GDate,"<="&D$5,GDate,">="&DATE(YEAR(D$5),MONTH(D$5),1),GCampaign,$B11,GAdgroup,$A11,GDevice,$J$2)/SUMIFS(INDIRECT("G"&$E$2),GDate,"<="&D$5,GDate,">="&DATE(YEAR(D$5),MONTH(D$5),1),GCampaign,$B11,GAdgroup,$A11,GDevice,$J$2))) -> 1031.14 | E11: =IF($E$2="None",SUMIFS(INDIRECT("G"&$D$2),GDate,"<="&E$5,GDate,">="&DATE(YEAR(E$5),MONTH(E$5),1),GCampaign,$B11,GAdgroup,$A11,GDevice,$J$2),IF(SUMIFS(INDIRECT("G"&$E$2),GDate,"<="&E$5,GDate,">="&DATE(YEAR(E$5),MONTH(E$5),1),GCampaign,$B11,GAdgroup,$A11,GDevice,$J$2)=0,0,SUMIFS(INDIRECT("G"&$D$2),GDate,"<="&E$5,GDate,">="&DATE(YEAR(E$5),MONTH(E$5),1),GCampaign,$B11,GAdgroup,$A11,GDevice,$J$2)/SUMIFS(INDIRECT("G"&$E$2),GDate,"<="&E$5,GDate,">="&DATE(YEAR(E$5),MONTH(E$5),1),GCampaign,$B11,GAdgroup,$A11,GDevice,$J$2))) -> 625.42 | F11: =IF($E$2="None",SUMIFS(INDIRECT("G"&$D$2),GDate,"<="&F$5,GDate,">="&DATE(YEAR(F$5),MONTH(F$5),1),GCampaign,$B11,GAdgroup,$A11,GDevice,$J$2),IF(SUMIFS(INDIRECT("G"&$E$2),GDate,"<="&F$5,GDate,">="&DATE(YEAR(F$5),MONTH(F$5),1),GCampaign,$B11,GAdgroup,$A11,GDevice,$J$2)=0,0,SUMIFS(INDIRECT("G"&$D$2),GDate,"<="&F$5,GDate,">="&DATE(YEAR(F$5),MONTH(F$5),1),GCampaign,$B11,GAdgroup,$A11,GDevice,$J$2)/SUMIFS(INDIRECT("G"&$E$2),GDate,"<="&F$5,GDate,">="&DATE(YEAR(F$5),MONTH(F$5),1),GCampaign,$B11,GAdgroup,$A11,GDevice,$J$2))) -> 429.89 | G11: =IF($E$2="None",SUMIFS(INDIRECT("G"&$D$2),GDate,"<="&G$5,GDate,">="&DATE(YEAR(G$5),MONTH(G$5),1),GCampaign,$B11,GAdgroup,$A11,GDevice,$J$2),IF(SUMIFS(INDIRECT("G"&$E$2),GDate,"<="&G$5,GDate,">="&DATE(YEAR(G$5),MONTH(G$5),1),GCampaign,$B11,GAdgroup,$A11,GDevice,$J$2)=0,0,SUMIFS(INDIRECT("G"&$D$2),GDate,"<="&G$5,GDate,">="&DATE(YEAR(G$5),MONTH(G$5),1),GCampaign,$B11,GAdgroup,$A11,GDevice,$J$2)/SUMIFS(INDIRECT("G"&$E$2),GDate,"<="&G$5,GDate,">="&DATE(YEAR(G$5),MONTH(G$5),1),GCampaign,$B11,GAdgroup,$A11,GDevice,$J$2))) -> 255.73 | H11: =IF($E$2="None",SUMIFS(INDIRECT("G"&$D$2),GDate,"<="&H$5,GDate,">="&DATE(YEAR(H$5),MONTH(H$5),1),GCampaign,$B11,GAdgroup,$A11,GDevice,$J$2),IF(SUMIFS(INDIRECT("G"&$E$2),GDate,"<="&H$5,GDate,">="&DATE(YEAR(H$5),MONTH(H$5),1),GCampaign,$B11,GAdgroup,$A11,GDevice,$J$2)=0,0,SUMIFS(INDIRECT("G"&$D$2),GDate,"<="&H$5,GDate,">="&DATE(YEAR(H$5),MONTH(H$5),1),GCampaign,$B11,GAdgroup,$A11,GDevice,$J$2)/SUMIFS(INDIRECT("G"&$E$2),GDate,"<="&H$5,GDate,">="&DATE(YEAR(H$5),MONTH(H$5),1),GCampaign,$B11,GAdgroup,$A11,GDevice,$J$2))) -> 657.43 | I11: =IF($E$2="None",SUMIFS(INDIRECT("G"&$D$2),GDate,"<="&I$5,GDate,">="&DATE(YEAR(I$5),MONTH(I$5),1),GCampaign,$B11,GAdgroup,$A11,GDevice,$J$2),IF(SUMIFS(INDIRECT("G"&$E$2),GDate,"<="&I$5,GDate,">="&DATE(YEAR(I$5),MONTH(I$5),1),GCampaign,$B11,GAdgroup,$A11,GDevice,$J$2)=0,0,SUMIFS(INDIRECT("G"&$D$2),GDate,"<="&I$5,GDate,">="&DATE(YEAR(I$5),MONTH(I$5),1),GCampaign,$B11,GAdgroup,$A11,GDevice,$J$2)/SUMIFS(INDIRECT("G"&$E$2),GDate,"<="&I$5,GDate,">="&DATE(YEAR(I$5),MONTH(I$5),1),GCampaign,$B11,GAdgroup,$A11,GDevice,$J$2))) -> 741.6 | J11: =IF($E$2="None",SUMIFS(INDIRECT("G"&$D$2),GDate,"<="&J$5,GDate,">="&DATE(YEAR(J$5),MONTH(J$5),1),GCampaign,$B11,GAdgroup,$A11,GDevice,$J$2),IF(SUMIFS(INDIRECT("G"&$E$2),GDate,"<="&J$5,GDate,">="&DATE(YEAR(J$5),MONTH(J$5),1),GCampaign,$B11,GAdgroup,$A11,GDevice,$J$2)=0,0,SUMIFS(INDIRECT("G"&$D$2),GDate,"<="&J$5,GDate,">="&DATE(YEAR(J$5),MONTH(J$5),1),GCampaign,$B11,GAdgroup,$A11,GDevice,$J$2)/SUMIFS(INDIRECT("G"&$E$2),GDate,"<="&J$5,GDate,">="&DATE(YEAR(J$5),MONTH(J$5),1),GCampaign,$B11,GAdgroup,$A11,GDevice,$J$2))) -> 764.59 | K11: =IF($E$2="None",SUMIFS(INDIRECT("G"&$D$2),GDate,"<="&K$5,GDate,">="&DATE(YEAR(K$5),MONTH(K$5),1),GCampaign,$B11,GAdgroup,$A11,GDevice,$J$2),IF(SUMIFS(INDIRECT("G"&$E$2),GDate,"<="&K$5,GDate,">="&DATE(YEAR(K$5),MONTH(K$5),1),GCampaign,$B11,GAdgroup,$A11,GDevice,$J$2)=0,0,SUMIFS(INDIRECT("G"&$D$2),GDate,"<="&K$5,GDate,">="&DATE(YEAR(K$5),MONTH(K$5),1),GCampaign,$B11,GAdgroup,$A11,GDevice,$J$2)/SUMIFS(INDIRECT("G"&$E$2),GDate,"<="&K$5,GDate,">="&DATE(YEAR(K$5),MONTH(K$5),1),GCampaign,$B11,GAdgroup,$A11,GDevice,$J$2))) -> 1231.6 | L11: =IF($E$2="None",SUMIFS(INDIRECT("G"&$D$2),GDate,"<="&L$5,GDate,">="&DATE(YEAR(L$5),MONTH(L$5),1),GCampaign,$B11,GAdgroup,$A11,GDevice,$J$2),IF(SUMIFS(INDIRECT("G"&$E$2),GDate,"<="&L$5,GDate,">="&DATE(YEAR(L$5),MONTH(L$5),1),GCampaign,$B11,GAdgroup,$A11,GDevice,$J$2)=0,0,SUMIFS(INDIRECT("G"&$D$2),GDate,"<="&L$5,GDate,">="&DATE(YEAR(L$5),MONTH(L$5),1),GCampaign,$B11,GAdgroup,$A11,GDevice,$J$2)/SUMIFS(INDIRECT("G"&$E$2),GDate,"<="&L$5,GDate,">="&DATE(YEAR(L$5),MONTH(L$5),1),GCampaign,$B11,GAdgroup,$A11,GDevice,$J$2))) -> 967.54 | M11: =IF($E$2="None",SUMIFS(INDIRECT("G"&$D$2),GDate,"<="&M$5,GDate,">="&DATE(YEAR(M$5),MONTH(M$5),1),GCampaign,$B11,GAdgroup,$A11,GDevice,$J$2),IF(SUMIFS(INDIRECT("G"&$E$2),GDate,"<="&M$5,GDate,">="&DATE(YEAR(M$5),MONTH(M$5),1),GCampaign,$B11,GAdgroup,$A11,GDevice,$J$2)=0,0,SUMIFS(INDIRECT("G"&$D$2),GDate,"<="&M$5,GDate,">="&DATE(YEAR(M$5),MONTH(M$5),1),GCampaign,$B11,GAdgroup,$A11,GDevice,$J$2)/SUMIFS(INDIRECT("G"&$E$2),GDate,"<="&M$5,GDate,">="&DATE(YEAR(M$5),MONTH(M$5),1),GCampaign,$B11,GAdgroup,$A11,GDevice,$J$2))) -> 1551.69 | N11: =IF($E$2="None",SUMIFS(INDIRECT("G"&$D$2),GDate,"<="&N$5,GDate,">="&DATE(YEAR(N$5),MONTH(N$5),1),GCampaign,$B11,GAdgroup,$A11,GDevice,$J$2),IF(SUMIFS(INDIRECT("G"&$E$2),GDate,"<="&N$5,GDate,">="&DATE(YEAR(N$5),MONTH(N$5),1),GCampaign,$B11,GAdgroup,$A11,GDevice,$J$2)=0,0,SUMIFS(INDIRECT("G"&$D$2),GDate,"<="&N$5,GDate,">="&DATE(YEAR(N$5),MONTH(N$5),1),GCampaign,$B11,GAdgroup,$A11,GDevice,$J$2)/SUMIFS(INDIRECT("G"&$E$2),GDate,"<="&N$5,GDate,">="&DATE(YEAR(N$5),MONTH(N$5),1),GCampaign,$B11,GAdgroup,$A11,GDevice,$J$2))) -> 1220.38
A12: Ad Group 3.1 | B12: Campaign 3 | C12: =IF($E$2="None",SUMIFS(INDIRECT("G"&$D$2),GDate,"<="&C$5,GDate,">="&DATE(YEAR(C$5),MONTH(C$5),1),GCampaign,$B12,GAdgroup,$A12,GDevice,$J$2),IF(SUMIFS(INDIRECT("G"&$E$2),GDate,"<="&C$5,GDate,">="&DATE(YEAR(C$5),MONTH(C$5),1),GCampaign,$B12,GAdgroup,$A12,GDevice,$J$2)=0,0,SUMIFS(INDIRECT("G"&$D$2),GDate,"<="&C$5,GDate,">="&DATE(YEAR(C$5),MONTH(C$5),1),GCampaign,$B12,GAdgroup,$A12,GDevice,$J$2)/SUMIFS(INDIRECT("G"&$E$2),GDate,"<="&C$5,GDate,">="&DATE(YEAR(C$5),MONTH(C$5),1),GCampaign,$B12,GAdgroup,$A12,GDevice,$J$2))) -> 210.09 | D12: =IF($E$2="None",SUMIFS(INDIRECT("G"&$D$2),GDate,"<="&D$5,GDate,">="&DATE(YEAR(D$5),MONTH(D$5),1),GCampaign,$B12,GAdgroup,$A12,GDevice,$J$2),IF(SUMIFS(INDIRECT("G"&$E$2),GDate,"<="&D$5,GDate,">="&DATE(YEAR(D$5),MONTH(D$5),1),GCampaign,$B12,GAdgroup,$A12,GDevice,$J$2)=0,0,SUMIFS(INDIRECT("G"&$D$2),GDate,"<="&D$5,GDate,">="&DATE(YEAR(D$5),MONTH(D$5),1),GCampaign,$B12,GAdgroup,$A12,GDevice,$J$2)/SUMIFS(INDIRECT("G"&$E$2),GDate,"<="&D$5,GDate,">="&DATE(YEAR(D$5),MONTH(D$5),1),GCampaign,$B12,GAdgroup,$A12,GDevice,$J$2))) -> 232.38 | E12: =IF($E$2="None",SUMIFS(INDIRECT("G"&$D$2),GDate,"<="&E$5,GDate,">="&DATE(YEAR(E$5),MONTH(E$5),1),GCampaign,$B12,GAdgroup,$A12,GDevice,$J$2),IF(SUMIFS(INDIRECT("G"&$E$2),GDate,"<="&E$5,GDate,">="&DATE(YEAR(E$5),MONTH(E$5),1),GCampaign,$B12,GAdgroup,$A12,GDevice,$J$2)=0,0,SUMIFS(INDIRECT("G"&$D$2),GDate,"<="&E$5,GDate,">="&DATE(YEAR(E$5),MONTH(E$5),1),GCampaign,$B12,GAdgroup,$A12,GDevice,$J$2)/SUMIFS(INDIRECT("G"&$E$2),GDate,"<="&E$5,GDate,">="&DATE(YEAR(E$5),MONTH(E$5),1),GCampaign,$B12,GAdgroup,$A12,GDevice,$J$2))) -> 109.65 | F12: =IF($E$2="None",SUMIFS(INDIRECT("G"&$D$2),GDate,"<="&F$5,GDate,">="&DATE(YEAR(F$5),MONTH(F$5),1),GCampaign,$B12,GAdgroup,$A12,GDevice,$J$2),IF(SUMIFS(INDIRECT("G"&$E$2),GDate,"<="&F$5,GDate,">="&DATE(YEAR(F$5),MONTH(F$5),1),GCampaign,$B12,GAdgroup,$A12,GDevice,$J$2)=0,0,SUMIFS(INDIRECT("G"&$D$2),GDate,"<="&F$5,GDate,">="&DATE(YEAR(F$5),MONTH(F$5),1),GCampaign,$B12,GAdgroup,$A12,GDevice,$J$2)/SUMIFS(INDIRECT("G"&$E$2),GDate,"<="&F$5,GDate,">="&DATE(YEAR(F$5),MONTH(F$5),1),GCampaign,$B12,GAdgroup,$A12,GDevice,$J$2))) -> 308.88 | G12: =IF($E$2="None",SUMIFS(INDIRECT("G"&$D$2),GDate,"<="&G$5,GDate,">="&DATE(YEAR(G$5),MONTH(G$5),1),GCampaign,$B12,GAdgroup,$A12,GDevice,$J$2),IF(SUMIFS(INDIRECT("G"&$E$2),GDate,"<="&G$5,GDate,">="&DATE(YEAR(G$5),MONTH(G$5),1),GCampaign,$B12,GAdgroup,$A12,GDevice,$J$2)=0,0,SUMIFS(INDIRECT("G"&$D$2),GDate,"<="&G$5,GDate,">="&DATE(YEAR(G$5),MONTH(G$5),1),GCampaign,$B12,GAdgroup,$A12,GDevice,$J$2)/SUMIFS(INDIRECT("G"&$E$2),GDate,"<="&G$5,GDate,">="&DATE(YEAR(G$5),MONTH(G$5),1),GCampaign,$B12,GAdgroup,$A12,GDevice,$J$2))) -> 262.69 | H12: =IF($E$2="None",SUMIFS(INDIRECT("G"&$D$2),GDate,"<="&H$5,GDate,">="&DATE(YEAR(H$5),MONTH(H$5),1),GCampaign,$B12,GAdgroup,$A12,GDevice,$J$2),IF(SUMIFS(INDIRECT("G"&$E$2),GDate,"<="&H$5,GDate,">="&DATE(YEAR(H$5),MONTH(H$5),1),GCampaign,$B12,GAdgroup,$A12,GDevice,$J$2)=0,0,SUMIFS(INDIRECT("G"&$D$2),GDate,"<="&H$5,GDate,">="&DATE(YEAR(H$5),MONTH(H$5),1),GCampaign,$B12,GAdgroup,$A12,GDevice,$J$2)/SUMIFS(INDIRECT("G"&$E$2),GDate,"<="&H$5,GDate,">="&DATE(YEAR(H$5),MONTH(H$5),1),GCampaign,$B12,GAdgroup,$A12,GDevice,$J$2))) -> 420.17 | I12: =IF($E$2="None",SUMIFS(INDIRECT("G"&$D$2),GDate,"<="&I$5,GDate,">="&DATE(YEAR(I$5),MONTH(I$5),1),GCampaign,$B12,GAdgroup,$A12,GDevice,$J$2),IF(SUMIFS(INDIRECT("G"&$E$2),GDate,"<="&I$5,GDate,">="&DATE(YEAR(I$5),MONTH(I$5),1),GCampaign,$B12,GAdgroup,$A12,GDevice,$J$2)=0,0,SUMIFS(INDIRECT("G"&$D$2),GDate,"<="&I$5,GDate,">="&DATE(YEAR(I$5),MONTH(I$5),1),GCampaign,$B12,GAdgroup,$A12,GDevice,$J$2)/SUMIFS(INDIRECT("G"&$E$2),GDate,"<="&I$5,GDate,">="&DATE(YEAR(I$5),MONTH(I$5),1),GCampaign,$B12,GAdgroup,$A12,GDevice,$J$2))) -> 272.35 | J12: =IF($E$2="None",SUMIFS(INDIRECT("G"&$D$2),GDate,"<="&J$5,GDate,">="&DATE(YEAR(J$5),MONTH(J$5),1),GCampaign,$B12,GAdgroup,$A12,GDevice,$J$2),IF(SUMIFS(INDIRECT("G"&$E$2),GDate,"<="&J$5,GDate,">="&DATE(YEAR(J$5),MONTH(J$5),1),GCampaign,$B12,GAdgroup,$A12,GDevice,$J$2)=0,0,SUMIFS(INDIRECT("G"&$D$2),GDate,"<="&J$5,GDate,">="&DATE(YEAR(J$5),MONTH(J$5),1),GCampaign,$B12,GAdgroup,$A12,GDevice,$J$2)/SUMIFS(INDIRECT("G"&$E$2),GDate,"<="&J$5,GDate,">="&DATE(YEAR(J$5),MONTH(J$5),1),GCampaign,$B12,GAdgroup,$A12,GDevice,$J$2))) -> 406.38 | K12: =IF($E$2="None",SUMIFS(INDIRECT("G"&$D$2),GDate,"<="&K$5,GDate,">="&DATE(YEAR(K$5),MONTH(K$5),1),GCampaign,$B12,GAdgroup,$A12,GDevice,$J$2),IF(SUMIFS(INDIRECT("G"&$E$2),GDate,"<="&K$5,GDate,">="&DATE(YEAR(K$5),MONTH(K$5),1),GCampaign,$B12,GAdgroup,$A12,GDevice,$J$2)=0,0,SUMIFS(INDIRECT("G"&$D$2),GDate,"<="&K$5,GDate,">="&DATE(YEAR(K$5),MONTH(K$5),1),GCampaign,$B12,GAdgroup,$A12,GDevice,$J$2)/SUMIFS(INDIRECT("G"&$E$2),GDate,"<="&K$5,GDate,">="&DATE(YEAR(K$5),MONTH(K$5),1),GCampaign,$B12,GAdgroup,$A12,GDevice,$J$2))) -> 415.25 | L12: =IF($E$2="None",SUMIFS(INDIRECT("G"&$D$2),GDate,"<="&L$5,GDate,">="&DATE(YEAR(L$5),MONTH(L$5),1),GCampaign,$B12,GAdgroup,$A12,GDevice,$J$2),IF(SUMIFS(INDIRECT("G"&$E$2),GDate,"<="&L$5,GDate,">="&DATE(YEAR(L$5),MONTH(L$5),1),GCampaign,$B12,GAdgroup,$A12,GDevice,$J$2)=0,0,SUMIFS(INDIRECT("G"&$D$2),GDate,"<="&L$5,GDate,">="&DATE(YEAR(L$5),MONTH(L$5),1),GCampaign,$B12,GAdgroup,$A12,GDevice,$J$2)/SUMIFS(INDIRECT("G"&$E$2),GDate,"<="&L$5,GDate,">="&DATE(YEAR(L$5),MONTH(L$5),1),GCampaign,$B12,GAdgroup,$A12,GDevice,$J$2))) -> 478.04 | M12: =IF($E$2="None",SUMIFS(INDIRECT("G"&$D$2),GDate,"<="&M$5,GDate,">="&DATE(YEAR(M$5),MONTH(M$5),1),GCampaign,$B12,GAdgroup,$A12,GDevice,$J$2),IF(SUMIFS(INDIRECT("G"&$E$2),GDate,"<="&M$5,GDate,">="&DATE(YEAR(M$5),MONTH(M$5),1),GCampaign,$B12,GAdgroup,$A12,GDevice,$J$2)=0,0,SUMIFS(INDIRECT("G"&$D$2),GDate,"<="&M$5,GDate,">="&DATE(YEAR(M$5),MONTH(M$5),1),GCampaign,$B12,GAdgroup,$A12,GDevice,$J$2)/SUMIFS(INDIRECT("G"&$E$2),GDate,"<="&M$5,GDate,">="&DATE(YEAR(M$5),MONTH(M$5),1),GCampaign,$B12,GAdgroup,$A12,GDevice,$J$2))) -> 444.32 | N12: =IF($E$2="None",SUMIFS(INDIRECT("G"&$D$2),GDate,"<="&N$5,GDate,">="&DATE(YEAR(N$5),MONTH(N$5),1),GCampaign,$B12,GAdgroup,$A12,GDevice,$J$2),IF(SUMIFS(INDIRECT("G"&$E$2),GDate,"<="&N$5,GDate,">="&DATE(YEAR(N$5),MONTH(N$5),1),GCampaign,$B12,GAdgroup,$A12,GDevice,$J$2)=0,0,SUMIFS(INDIRECT("G"&$D$2),GDate,"<="&N$5,GDate,">="&DATE(YEAR(N$5),MONTH(N$5),1),GCampaign,$B12,GAdgroup,$A12,GDevice,$J$2)/SUMIFS(INDIRECT("G"&$E$2),GDate,"<="&N$5,GDate,">="&DATE(YEAR(N$5),MONTH(N$5),1),GCampaign,$B12,GAdgroup,$A12,GDevice,$J$2))) -> 310.65
A13: Ad Group 4.1 | B13: Campaign 4 | C13: =IF($E$2="None",SUMIFS(INDIRECT("G"&$D$2),GDate,"<="&C$5,GDate,">="&DATE(YEAR(C$5),MONTH(C$5),1),GCampaign,$B13,GAdgroup,$A13,GDevice,$J$2),IF(SUMIFS(INDIRECT("G"&$E$2),GDate,"<="&C$5,GDate,">="&DATE(YEAR(C$5),MONTH(C$5),1),GCampaign,$B13,GAdgroup,$A13,GDevice,$J$2)=0,0,SUMIFS(INDIRECT("G"&$D$2),GDate,"<="&C$5,GDate,">="&DATE(YEAR(C$5),MONTH(C$5),1),GCampaign,$B13,GAdgroup,$A13,GDevice,$J$2)/SUMIFS(INDIRECT("G"&$E$2),GDate,"<="&C$5,GDate,">="&DATE(YEAR(C$5),MONTH(C$5),1),GCampaign,$B13,GAdgroup,$A13,GDevice,$J$2))) -> 95.05 | D13: =IF($E$2="None",SUMIFS(INDIRECT("G"&$D$2),GDate,"<="&D$5,GDate,">="&DATE(YEAR(D$5),MONTH(D$5),1),GCampaign,$B13,GAdgroup,$A13,GDevice,$J$2),IF(SUMIFS(INDIRECT("G"&$E$2),GDate,"<="&D$5,GDate,">="&DATE(YEAR(D$5),MONTH(D$5),1),GCampaign,$B13,GAdgroup,$A13,GDevice,$J$2)=0,0,SUMIFS(INDIRECT("G"&$D$2),GDate,"<="&D$5,GDate,">="&DATE(YEAR(D$5),MONTH(D$5),1),GCampaign,$B13,GAdgroup,$A13,GDevice,$J$2)/SUMIFS(INDIRECT("G"&$E$2),GDate,"<="&D$5,GDate,">="&DATE(YEAR(D$5),MONTH(D$5),1),GCampaign,$B13,GAdgroup,$A13,GDevice,$J$2))) -> 507.3 | E13: =IF($E$2="None",SUMIFS(INDIRECT("G"&$D$2),GDate,"<="&E$5,GDate,">="&DATE(YEAR(E$5),MONTH(E$5),1),GCampaign,$B13,GAdgroup,$A13,GDevice,$J$2),IF(SUMIFS(INDIRECT("G"&$E$2),GDate,"<="&E$5,GDate,">="&DATE(YEAR(E$5),MONTH(E$5),1),GCampaign,$B13,GAdgroup,$A13,GDevice,$J$2)=0,0,SUMIFS(INDIRECT("G"&$D$2),GDate,"<="&E$5,GDate,">="&DATE(YEAR(E$5),MONTH(E$5),1),GCampaign,$B13,GAdgroup,$A13,GDevice,$J$2)/SUMIFS(INDIRECT("G"&$E$2),GDate,"<="&E$5,GDate,">="&DATE(YEAR(E$5),MONTH(E$5),1),GCampaign,$B13,GAdgroup,$A13,GDevice,$J$2))) -> 540.38 | F13: =IF($E$2="None",SUMIFS(INDIRECT("G"&$D$2),GDate,"<="&F$5,GDate,">="&DATE(YEAR(F$5),MONTH(F$5),1),GCampaign,$B13,GAdgroup,$A13,GDevice,$J$2),IF(SUMIFS(INDIRECT("G"&$E$2),GDate,"<="&F$5,GDate,">="&DATE(YEAR(F$5),MONTH(F$5),1),GCampaign,$B13,GAdgroup,$A13,GDevice,$J$2)=0,0,SUMIFS(INDIRECT("G"&$D$2),GDate,"<="&F$5,GDate,">="&DATE(YEAR(F$5),MONTH(F$5),1),GCampaign,$B13,GAdgroup,$A13,GDevice,$J$2)/SUMIFS(INDIRECT("G"&$E$2),GDate,"<="&F$5,GDate,">="&DATE(YEAR(F$5),MONTH(F$5),1),GCampaign,$B13,GAdgroup,$A13,GDevice,$J$2))) -> 801.94 | G13: =IF($E$2="None",SUMIFS(INDIRECT("G"&$D$2),GDate,"<="&G$5,GDate,">="&DATE(YEAR(G$5),MONTH(G$5),1),GCampaign,$B13,GAdgroup,$A13,GDevice,$J$2),IF(SUMIFS(INDIRECT("G"&$E$2),GDate,"<="&G$5,GDate,">="&DATE(YEAR(G$5),MONTH(G$5),1),GCampaign,$B13,GAdgroup,$A13,GDevice,$J$2)=0,0,SUMIFS(INDIRECT("G"&$D$2),GDate,"<="&G$5,GDate,">="&DATE(YEAR(G$5),MONTH(G$5),1),GCampaign,$B13,GAdgroup,$A13,GDevice,$J$2)/SUMIFS(INDIRECT("G"&$E$2),GDate,"<="&G$5,GDate,">="&DATE(YEAR(G$5),MONTH(G$5),1),GCampaign,$B13,GAdgroup,$A13,GDevice,$J$2))) -> 488.26 | H13: =IF($E$2="None",SUMIFS(INDIRECT("G"&$D$2),GDate,"<="&H$5,GDate,">="&DATE(YEAR(H$5),MONTH(H$5),1),GCampaign,$B13,GAdgroup,$A13,GDevice,$J$2),IF(SUMIFS(INDIRECT("G"&$E$2),GDate,"<="&H$5,GDate,">="&DATE(YEAR(H$5),MONTH(H$5),1),GCampaign,$B13,GAdgroup,$A13,GDevice,$J$2)=0,0,SUMIFS(INDIRECT("G"&$D$2),GDate,"<="&H$5,GDate,">="&DATE(YEAR(H$5),MONTH(H$5),1),GCampaign,$B13,GAdgroup,$A13,GDevice,$J$2)/SUMIFS(INDIRECT("G"&$E$2),GDate,"<="&H$5,GDate,">="&DATE(YEAR(H$5),MONTH(H$5),1),GCampaign,$B13,GAdgroup,$A13,GDevice,$J$2))) -> 582.36 | I13: =IF($E$2="None",SUMIFS(INDIRECT("G"&$D$2),GDate,"<="&I$5,GDate,">="&DATE(YEAR(I$5),MONTH(I$5),1),GCampaign,$B13,GAdgroup,$A13,GDevice,$J$2),IF(SUMIFS(INDIRECT("G"&$E$2),GDate,"<="&I$5,GDate,">="&DATE(YEAR(I$5),MONTH(I$5),1),GCampaign,$B13,GAdgroup,$A13,GDevice,$J$2)=0,0,SUMIFS(INDIRECT("G"&$D$2),GDate,"<="&I$5,GDate,">="&DATE(YEAR(I$5),MONTH(I$5),1),GCampaign,$B13,GAdgroup,$A13,GDevice,$J$2)/SUMIFS(INDIRECT("G"&$E$2),GDate,"<="&I$5,GDate,">="&DATE(YEAR(I$5),MONTH(I$5),1),GCampaign,$B13,GAdgroup,$A13,GDevice,$J$2))) -> 877.36 | J13: =IF($E$2="None",SUMIFS(INDIRECT("G"&$D$2),GDate,"<="&J$5,GDate,">="&DATE(YEAR(J$5),MONTH(J$5),1),GCampaign,$B13,GAdgroup,$A13,GDevice,$J$2),IF(SUMIFS(INDIRECT("G"&$E$2),GDate,"<="&J$5,GDate,">="&DATE(YEAR(J$5),MONTH(J$5),1),GCampaign,$B13,GAdgroup,$A13,GDevice,$J$2)=0,0,SUMIFS(INDIRECT("G"&$D$2),GDate,"<="&J$5,GDate,">="&DATE(YEAR(J$5),MONTH(J$5),1),GCampaign,$B13,GAdgroup,$A13,GDevice,$J$2)/SUMIFS(INDIRECT("G"&$E$2),GDate,"<="&J$5,GDate,">="&DATE(YEAR(J$5),MONTH(J$5),1),GCampaign,$B13,GAdgroup,$A13,GDevice,$J$2))) -> 798.12 | K13: =IF($E$2="None",SUMIFS(INDIRECT("G"&$D$2),GDate,"<="&K$5,GDate,">="&DATE(YEAR(K$5),MONTH(K$5),1),GCampaign,$B13,GAdgroup,$A13,GDevice,$J$2),IF(SUMIFS(INDIRECT("G"&$E$2),GDate,"<="&K$5,GDate,">="&DATE(YEAR(K$5),MONTH(K$5),1),GCampaign,$B13,GAdgroup,$A13,GDevice,$J$2)=0,0,SUMIFS(INDIRECT("G"&$D$2),GDate,"<="&K$5,GDate,">="&DATE(YEAR(K$5),MONTH(K$5),1),GCampaign,$B13,GAdgroup,$A13,GDevice,$J$2)/SUMIFS(INDIRECT("G"&$E$2),GDate,"<="&K$5,GDate,">="&DATE(YEAR(K$5),MONTH(K$5),1),GCampaign,$B13,GAdgroup,$A13,GDevice,$J$2))) -> 578.88 | L13: =IF($E$2="None",SUMIFS(INDIRECT("G"&$D$2),GDate,"<="&L$5,GDate,">="&DATE(YEAR(L$5),MONTH(L$5),1),GCampaign,$B13,GAdgroup,$A13,GDevice,$J$2),IF(SUMIFS(INDIRECT("G"&$E$2),GDate,"<="&L$5,GDate,">="&DATE(YEAR(L$5),MONTH(L$5),1),GCampaign,$B13,GAdgroup,$A13,GDevice,$J$2)=0,0,SUMIFS(INDIRECT("G"&$D$2),GDate,"<="&L$5,GDate,">="&DATE(YEAR(L$5),MONTH(L$5),1),GCampaign,$B13,GAdgroup,$A13,GDevice,$J$2)/SUMIFS(INDIRECT("G"&$E$2),GDate,"<="&L$5,GDate,">="&DATE(YEAR(L$5),MONTH(L$5),1),GCampaign,$B13,GAdgroup,$A13,GDevice,$J$2))) -> 579.82 | M13: =IF($E$2="None",SUMIFS(INDIRECT("G"&$D$2),GDate,"<="&M$5,GDate,">="&DATE(YEAR(M$5),MONTH(M$5),1),GCampaign,$B13,GAdgroup,$A13,GDevice,$J$2),IF(SUMIFS(INDIRECT("G"&$E$2),GDate,"<="&M$5,GDate,">="&DATE(YEAR(M$5),MONTH(M$5),1),GCampaign,$B13,GAdgroup,$A13,GDevice,$J$2)=0,0,SUMIFS(INDIRECT("G"&$D$2),GDate,"<="&M$5,GDate,">="&DATE(YEAR(M$5),MONTH(M$5),1),GCampaign,$B13,GAdgroup,$A13,GDevice,$J$2)/SUMIFS(INDIRECT("G"&$E$2),GDate,"<="&M$5,GDate,">="&DATE(YEAR(M$5),MONTH(M$5),1),GCampaign,$B13,GAdgroup,$A13,GDevice,$J$2))) -> 315.16 | N13: =IF($E$2="None",SUMIFS(INDIRECT("G"&$D$2),GDate,"<="&N$5,GDate,">="&DATE(YEAR(N$5),MONTH(N$5),1),GCampaign,$B13,GAdgroup,$A13,GDevice,$J$2),IF(SUMIFS(INDIRECT("G"&$E$2),GDate,"<="&N$5,GDate,">="&DATE(YEAR(N$5),MONTH(N$5),1),GCampaign,$B13,GAdgroup,$A13,GDevice,$J$2)=0,0,SUMIFS(INDIRECT("G"&$D$2),GDate,"<="&N$5,GDate,">="&DATE(YEAR(N$5),MONTH(N$5),1),GCampaign,$B13,GAdgroup,$A13,GDevice,$J$2)/SUMIFS(INDIRECT("G"&$E$2),GDate,"<="&N$5,GDate,">="&DATE(YEAR(N$5),MONTH(N$5),1),GCampaign,$B13,GAdgroup,$A13,GDevice,$J$2))) -> 164.46
A14: Ad Group 4.2 | B14: Campaign 4 | C14: =IF($E$2="None",SUMIFS(INDIRECT("G"&$D$2),GDate,"<="&C$5,GDate,">="&DATE(YEAR(C$5),MONTH(C$5),1),GCampaign,$B14,GAdgroup,$A14,GDevice,$J$2),IF(SUMIFS(INDIRECT("G"&$E$2),GDate,"<="&C$5,GDate,">="&DATE(YEAR(C$5),MONTH(C$5),1),GCampaign,$B14,GAdgroup,$A14,GDevice,$J$2)=0,0,SUMIFS(INDIRECT("G"&$D$2),GDate,"<="&C$5,GDate,">="&DATE(YEAR(C$5),MONTH(C$5),1),GCampaign,$B14,GAdgroup,$A14,GDevice,$J$2)/SUMIFS(INDIRECT("G"&$E$2),GDate,"<="&C$5,GDate,">="&DATE(YEAR(C$5),MONTH(C$5),1),GCampaign,$B14,GAdgroup,$A14,GDevice,$J$2))) -> 289.15 | D14: =IF($E$2="None",SUMIFS(INDIRECT("G"&$D$2),GDate,"<="&D$5,GDate,">="&DATE(YEAR(D$5),MONTH(D$5),1),GCampaign,$B14,GAdgroup,$A14,GDevice,$J$2),IF(SUMIFS(INDIRECT("G"&$E$2),GDate,"<="&D$5,GDate,">="&DATE(YEAR(D$5),MONTH(D$5),1),GCampaign,$B14,GAdgroup,$A14,GDevice,$J$2)=0,0,SUMIFS(INDIRECT("G"&$D$2),GDate,"<="&D$5,GDate,">="&DATE(YEAR(D$5),MONTH(D$5),1),GCampaign,$B14,GAdgroup,$A14,GDevice,$J$2)/SUMIFS(INDIRECT("G"&$E$2),GDate,"<="&D$5,GDate,">="&DATE(YEAR(D$5),MONTH(D$5),1),GCampaign,$B14,GAdgroup,$A14,GDevice,$J$2))) -> 337.76 | E14: =IF($E$2="None",SUMIFS(INDIRECT("G"&$D$2),GDate,"<="&E$5,GDate,">="&DATE(YEAR(E$5),MONTH(E$5),1),GCampaign,$B14,GAdgroup,$A14,GDevice,$J$2),IF(SUMIFS(INDIRECT("G"&$E$2),GDate,"<="&E$5,GDate,">="&DATE(YEAR(E$5),MONTH(E$5),1),GCampaign,$B14,GAdgroup,$A14,GDevice,$J$2)=0,0,SUMIFS(INDIRECT("G"&$D$2),GDate,"<="&E$5,GDate,">="&DATE(YEAR(E$5),MONTH(E$5),1),GCampaign,$B14,GAdgroup,$A14,GDevice,$J$2)/SUMIFS(INDIRECT("G"&$E$2),GDate,"<="&E$5,GDate,">="&DATE(YEAR(E$5),MONTH(E$5),1),GCampaign,$B14,GAdgroup,$A14,GDevice,$J$2))) -> 250.68 | F14: =IF($E$2="None",SUMIFS(INDIRECT("G"&$D$2),GDate,"<="&F$5,GDate,">="&DATE(YEAR(F$5),MONTH(F$5),1),GCampaign,$B14,GAdgroup,$A14,GDevice,$J$2),IF(SUMIFS(INDIRECT("G"&$E$2),GDate,"<="&F$5,GDate,">="&DATE(YEAR(F$5),MONTH(F$5),1),GCampaign,$B14,GAdgroup,$A14,GDevice,$J$2)=0,0,SUMIFS(INDIRECT("G"&$D$2),GDate,"<="&F$5,GDate,">="&DATE(YEAR(F$5),MONTH(F$5),1),GCampaign,$B14,GAdgroup,$A14,GDevice,$J$2)/SUMIFS(INDIRECT("G"&$E$2),GDate,"<="&F$5,GDate,">="&DATE(YEAR(F$5),MONTH(F$5),1),GCampaign,$B14,GAdgroup,$A14,GDevice,$J$2))) -> 162.92 | G14: =IF($E$2="None",SUMIFS(INDIRECT("G"&$D$2),GDate,"<="&G$5,GDate,">="&DATE(YEAR(G$5),MONTH(G$5),1),GCampaign,$B14,GAdgroup,$A14,GDevice,$J$2),IF(SUMIFS(INDIRECT("G"&$E$2),GDate,"<="&G$5,GDate,">="&DATE(YEAR(G$5),MONTH(G$5),1),GCampaign,$B14,GAdgroup,$A14,GDevice,$J$2)=0,0,SUMIFS(INDIRECT("G"&$D$2),GDate,"<="&G$5,GDate,">="&DATE(YEAR(G$5),MONTH(G$5),1),GCampaign,$B14,GAdgroup,$A14,GDevice,$J$2)/SUMIFS(INDIRECT("G"&$E$2),GDate,"<="&G$5,GDate,">="&DATE(YEAR(G$5),MONTH(G$5),1),GCampaign,$B14,GAdgroup,$A14,GDevice,$J$2))) -> 66.94 | H14: =IF($E$2="None",SUMIFS(INDIRECT("G"&$D$2),GDate,"<="&H$5,GDate,">="&DATE(YEAR(H$5),MONTH(H$5),1),GCampaign,$B14,GAdgroup,$A14,GDevice,$J$2),IF(SUMIFS(INDIRECT("G"&$E$2),GDate,"<="&H$5,GDate,">="&DATE(YEAR(H$5),MONTH(H$5),1),GCampaign,$B14,GAdgroup,$A14,GDevice,$J$2)=0,0,SUMIFS(INDIRECT("G"&$D$2),GDate,"<="&H$5,GDate,">="&DATE(YEAR(H$5),MONTH(H$5),1),GCampaign,$B14,GAdgroup,$A14,GDevice,$J$2)/SUMIFS(INDIRECT("G"&$E$2),GDate,"<="&H$5,GDate,">="&DATE(YEAR(H$5),MONTH(H$5),1),GCampaign,$B14,GAdgroup,$A14,GDevice,$J$2))) -> 417.92 | I14: =IF($E$2="None",SUMIFS(INDIRECT("G"&$D$2),GDate,"<="&I$5,GDate,">="&DATE(YEAR(I$5),MONTH(I$5),1),GCampaign,$B14,GAdgroup,$A14,GDevice,$J$2),IF(SUMIFS(INDIRECT("G"&$E$2),GDate,"<="&I$5,GDate,">="&DATE(YEAR(I$5),MONTH(I$5),1),GCampaign,$B14,GAdgroup,$A14,GDevice,$J$2)=0,0,SUMIFS(INDIRECT("G"&$D$2),GDate,"<="&I$5,GDate,">="&DATE(YEAR(I$5),MONTH(I$5),1),GCampaign,$B14,GAdgroup,$A14,GDevice,$J$2)/SUMIFS(INDIRECT("G"&$E$2),GDate,"<="&I$5,GDate,">="&DATE(YEAR(I$5),MONTH(I$5),1),GCampaign,$B14,GAdgroup,$A14,GDevice,$J$2))) -> 495.74 | J14: =IF($E$2="None",SUMIFS(INDIRECT("G"&$D$2),GDate,"<="&J$5,GDate,">="&DATE(YEAR(J$5),MONTH(J$5),1),GCampaign,$B14,GAdgroup,$A14,GDevice,$J$2),IF(SUMIFS(INDIRECT("G"&$E$2),GDate,"<="&J$5,GDate,">="&DATE(YEAR(J$5),MONTH(J$5),1),GCampaign,$B14,GAdgroup,$A14,GDevice,$J$2)=0,0,SUMIFS(INDIRECT("G"&$D$2),GDate,"<="&J$5,GDate,">="&DATE(YEAR(J$5),MONTH(J$5),1),GCampaign,$B14,GAdgroup,$A14,GDevice,$J$2)/SUMIFS(INDIRECT("G"&$E$2),GDate,"<="&J$5,GDate,">="&DATE(YEAR(J$5),MONTH(J$5),1),GCampaign,$B14,GAdgroup,$A14,GDevice,$J$2))) -> 448.98 | K14: =IF($E$2="None",SUMIFS(INDIRECT("G"&$D$2),GDate,"<="&K$5,GDate,">="&DATE(YEAR(K$5),MONTH(K$5),1),GCampaign,$B14,GAdgroup,$A14,GDevice,$J$2),IF(SUMIFS(INDIRECT("G"&$E$2),GDate,"<="&K$5,GDate,">="&DATE(YEAR(K$5),MONTH(K$5),1),GCampaign,$B14,GAdgroup,$A14,GDevice,$J$2)=0,0,SUMIFS(INDIRECT("G"&$D$2),GDate,"<="&K$5,GDate,">="&DATE(YEAR(K$5),MONTH(K$5),1),GCampaign,$B14,GAdgroup,$A14,GDevice,$J$2)/SUMIFS(INDIRECT("G"&$E$2),GDate,"<="&K$5,GDate,">="&DATE(YEAR(K$5),MONTH(K$5),1),GCampaign,$B14,GAdgroup,$A14,GDevice,$J$2))) -> 136.36 | L14: =IF($E$2="None",SUMIFS(INDIRECT("G"&$D$2),GDate,"<="&L$5,GDate,">="&DATE(YEAR(L$5),MONTH(L$5),1),GCampaign,$B14,GAdgroup,$A14,GDevice,$J$2),IF(SUMIFS(INDIRECT("G"&$E$2),GDate,"<="&L$5,GDate,">="&DATE(YEAR(L$5),MONTH(L$5),1),GCampaign,$B14,GAdgroup,$A14,GDevice,$J$2)=0,0,SUMIFS(INDIRECT("G"&$D$2),GDate,"<="&L$5,GDate,">="&DATE(YEAR(L$5),MONTH(L$5),1),GCampaign,$B14,GAdgroup,$A14,GDevice,$J$2)/SUMIFS(INDIRECT("G"&$E$2),GDate,"<="&L$5,GDate,">="&DATE(YEAR(L$5),MONTH(L$5),1),GCampaign,$B14,GAdgroup,$A14,GDevice,$J$2))) -> 287.98 | M14: =IF($E$2="None",SUMIFS(INDIRECT("G"&$D$2),GDate,"<="&M$5,GDate,">="&DATE(YEAR(M$5),MONTH(M$5),1),GCampaign,$B14,GAdgroup,$A14,GDevice,$J$2),IF(SUMIFS(INDIRECT("G"&$E$2),GDate,"<="&M$5,GDate,">="&DATE(YEAR(M$5),MONTH(M$5),1),GCampaign,$B14,GAdgroup,$A14,GDevice,$J$2)=0,0,SUMIFS(INDIRECT("G"&$D$2),GDate,"<="&M$5,GDate,">="&DATE(YEAR(M$5),MONTH(M$5),1),GCampaign,$B14,GAdgroup,$A14,GDevice,$J$2)/SUMIFS(INDIRECT("G"&$E$2),GDate,"<="&M$5,GDate,">="&DATE(YEAR(M$5),MONTH(M$5),1),GCampaign,$B14,GAdgroup,$A14,GDevice,$J$2))) -> 271.3 | N14: =IF($E$2="None",SUMIFS(INDIRECT("G"&$D$2),GDate,"<="&N$5,GDate,">="&DATE(YEAR(N$5),MONTH(N$5),1),GCampaign,$B14,GAdgroup,$A14,GDevice,$J$2),IF(SUMIFS(INDIRECT("G"&$E$2),GDate,"<="&N$5,GDate,">="&DATE(YEAR(N$5),MONTH(N$5),1),GCampaign,$B14,GAdgroup,$A14,GDevice,$J$2)=0,0,SUMIFS(INDIRECT("G"&$D$2),GDate,"<="&N$5,GDate,">="&DATE(YEAR(N$5),MONTH(N$5),1),GCampaign,$B14,GAdgroup,$A14,GDevice,$J$2)/SUMIFS(INDIRECT("G"&$E$2),GDate,"<="&N$5,GDate,">="&DATE(YEAR(N$5),MONTH(N$5),1),GCampaign,$B14,GAdgroup,$A14,GDevice,$J$2))) -> 229.84
A15: Ad Group 4.3 | B15: Campaign 4 | C15: =IF($E$2="None",SUMIFS(INDIRECT("G"&$D$2),GDate,"<="&C$5,GDate,">="&DATE(YEAR(C$5),MONTH(C$5),1),GCampaign,$B15,GAdgroup,$A15,GDevice,$J$2),IF(SUMIFS(INDIRECT("G"&$E$2),GDate,"<="&C$5,GDate,">="&DATE(YEAR(C$5),MONTH(C$5),1),GCampaign,$B15,GAdgroup,$A15,GDevice,$J$2)=0,0,SUMIFS(INDIRECT("G"&$D$2),GDate,"<="&C$5,GDate,">="&DATE(YEAR(C$5),MONTH(C$5),1),GCampaign,$B15,GAdgroup,$A15,GDevice,$J$2)/SUMIFS(INDIRECT("G"&$E$2),GDate,"<="&C$5,GDate,">="&DATE(YEAR(C$5),MONTH(C$5),1),GCampaign,$B15,GAdgroup,$A15,GDevice,$J$2))) -> 43.6 | D15: =IF($E$2="None",SUMIFS(INDIRECT("G"&$D$2),GDate,"<="&D$5,GDate,">="&DATE(YEAR(D$5),MONTH(D$5),1),GCampaign,$B15,GAdgroup,$A15,GDevice,$J$2),IF(SUMIFS(INDIRECT("G"&$E$2),GDate,"<="&D$5,GDate,">="&DATE(YEAR(D$5),MONTH(D$5),1),GCampaign,$B15,GAdgroup,$A15,GDevice,$J$2)=0,0,SUMIFS(INDIRECT("G"&$D$2),GDate,"<="&D$5,GDate,">="&DATE(YEAR(D$5),MONTH(D$5),1),GCampaign,$B15,GAdgroup,$A15,GDevice,$J$2)/SUMIFS(INDIRECT("G"&$E$2),GDate,"<="&D$5,GDate,">="&DATE(YEAR(D$5),MONTH(D$5),1),GCampaign,$B15,GAdgroup,$A15,GDevice,$J$2))) -> 325 | E15: =IF($E$2="None",SUMIFS(INDIRECT("G"&$D$2),GDate,"<="&E$5,GDate,">="&DATE(YEAR(E$5),MONTH(E$5),1),GCampaign,$B15,GAdgroup,$A15,GDevice,$J$2),IF(SUMIFS(INDIRECT("G"&$E$2),GDate,"<="&E$5,GDate,">="&DATE(YEAR(E$5),MONTH(E$5),1),GCampaign,$B15,GAdgroup,$A15,GDevice,$J$2)=0,0,SUMIFS(INDIRECT("G"&$D$2),GDate,"<="&E$5,GDate,">="&DATE(YEAR(E$5),MONTH(E$5),1),GCampaign,$B15,GAdgroup,$A15,GDevice,$J$2)/SUMIFS(INDIRECT("G"&$E$2),GDate,"<="&E$5,GDate,">="&DATE(YEAR(E$5),MONTH(E$5),1),GCampaign,$B15,GAdgroup,$A15,GDevice,$J$2))) -> 493.4 | F15: =IF($E$2="None",SUMIFS(INDIRECT("G"&$D$2),GDate,"<="&F$5,GDate,">="&DATE(YEAR(F$5),MONTH(F$5),1),GCampaign,$B15,GAdgroup,$A15,GDevice,$J$2),IF(SUMIFS(INDIRECT("G"&$E$2),GDate,"<="&F$5,GDate,">="&DATE(YEAR(F$5),MONTH(F$5),1),GCampaign,$B15,GAdgroup,$A15,GDevice,$J$2)=0,0,SUMIFS(INDIRECT("G"&$D$2),GDate,"<="&F$5,GDate,">="&DATE(YEAR(F$5),MONTH(F$5),1),GCampaign,$B15,GAdgroup,$A15,GDevice,$J$2)/SUMIFS(INDIRECT("G"&$E$2),GDate,"<="&F$5,GDate,">="&DATE(YEAR(F$5),MONTH(F$5),1),GCampaign,$B15,GAdgroup,$A15,GDevice,$J$2))) -> 654.24 | G15: =IF($E$2="None",SUMIFS(INDIRECT("G"&$D$2),GDate,"<="&G$5,GDate,">="&DATE(YEAR(G$5),MONTH(G$5),1),GCampaign,$B15,GAdgroup,$A15,GDevice,$J$2),IF(SUMIFS(INDIRECT("G"&$E$2),GDate,"<="&G$5,GDate,">="&DATE(YEAR(G$5),MONTH(G$5),1),GCampaign,$B15,GAdgroup,$A15,GDevice,$J$2)=0,0,SUMIFS(INDIRECT("G"&$D$2),GDate,"<="&G$5,GDate,">="&DATE(YEAR(G$5),MONTH(G$5),1),GCampaign,$B15,GAdgroup,$A15,GDevice,$J$2)/SUMIFS(INDIRECT("G"&$E$2),GDate,"<="&G$5,GDate,">="&DATE(YEAR(G$5),MONTH(G$5),1),GCampaign,$B15,GAdgroup,$A15,GDevice,$J$2))) -> 482.12 | H15: =IF($E$2="None",SUMIFS(INDIRECT("G"&$D$2),GDate,"<="&H$5,GDate,">="&DATE(YEAR(H$5),MONTH(H$5),1),GCampaign,$B15,GAdgroup,$A15,GDevice,$J$2),IF(SUMIFS(INDIRECT("G"&$E$2),GDate,"<="&H$5,GDate,">="&DATE(YEAR(H$5),MONTH(H$5),1),GCampaign,$B15,GAdgroup,$A15,GDevice,$J$2)=0,0,SUMIFS(INDIRECT("G"&$D$2),GDate,"<="&H$5,GDate,">="&DATE(YEAR(H$5),MONTH(H$5),1),GCampaign,$B15,GAdgroup,$A15,GDevice,$J$2)/SUMIFS(INDIRECT("G"&$E$2),GDate,"<="&H$5,GDate,">="&DATE(YEAR(H$5),MONTH(H$5),1),GCampaign,$B15,GAdgroup,$A15,GDevice,$J$2))) -> 656.36 | I15: =IF($E$2="None",SUMIFS(INDIRECT("G"&$D$2),GDate,"<="&I$5,GDate,">="&DATE(YEAR(I$5),MONTH(I$5),1),GCampaign,$B15,GAdgroup,$A15,GDevice,$J$2),IF(SUMIFS(INDIRECT("G"&$E$2),GDate,"<="&I$5,GDate,">="&DATE(YEAR(I$5),MONTH(I$5),1),GCampaign,$B15,GAdgroup,$A15,GDevice,$J$2)=0,0,SUMIFS(INDIRECT("G"&$D$2),GDate,"<="&I$5,GDate,">="&DATE(YEAR(I$5),MONTH(I$5),1),GCampaign,$B15,GAdgroup,$A15,GDevice,$J$2)/SUMIFS(INDIRECT("G"&$E$2),GDate,"<="&I$5,GDate,">="&DATE(YEAR(I$5),MONTH(I$5),1),GCampaign,$B15,GAdgroup,$A15,GDevice,$J$2))) -> 699.14 | J15: =IF($E$2="None",SUMIFS(INDIRECT("G"&$D$2),GDate,"<="&J$5,GDate,">="&DATE(YEAR(J$5),MONTH(J$5),1),GCampaign,$B15,GAdgroup,$A15,GDevice,$J$2),IF(SUMIFS(INDIRECT("G"&$E$2),GDate,"<="&J$5,GDate,">="&DATE(YEAR(J$5),MONTH(J$5),1),GCampaign,$B15,GAdgroup,$A15,GDevice,$J$2)=0,0,SUMIFS(INDIRECT("G"&$D$2),GDate,"<="&J$5,GDate,">="&DATE(YEAR(J$5),MONTH(J$5),1),GCampaign,$B15,GAdgroup,$A15,GDevice,$J$2)/SUMIFS(INDIRECT("G"&$E$2),GDate,"<="&J$5,GDate,">="&DATE(YEAR(J$5),MONTH(J$5),1),GCampaign,$B15,GAdgroup,$A15,GDevice,$J$2))) -> 623.12 | K15: =IF($E$2="None",SUMIFS(INDIRECT("G"&$D$2),GDate,"<="&K$5,GDate,">="&DATE(YEAR(K$5),MONTH(K$5),1),GCampaign,$B15,GAdgroup,$A15,GDevice,$J$2),IF(SUMIFS(INDIRECT("G"&$E$2),GDate,"<="&K$5,GDate,">="&DATE(YEAR(K$5),MONTH(K$5),1),GCampaign,$B15,GAdgroup,$A15,GDevice,$J$2)=0,0,SUMIFS(INDIRECT("G"&$D$2),GDate,"<="&K$5,GDate,">="&DATE(YEAR(K$5),MONTH(K$5),1),GCampaign,$B15,GAdgroup,$A15,GDevice,$J$2)/SUMIFS(INDIRECT("G"&$E$2),GDate,"<="&K$5,GDate,">="&DATE(YEAR(K$5),MONTH(K$5),1),GCampaign,$B15,GAdgroup,$A15,GDevice,$J$2))) -> 748.5 | L15: =IF($E$2="None",SUMIFS(INDIRECT("G"&$D$2),GDate,"<="&L$5,GDate,">="&DATE(YEAR(L$5),MONTH(L$5),1),GCampaign,$B15,GAdgroup,$A15,GDevice,$J$2),IF(SUMIFS(INDIRECT("G"&$E$2),GDate,"<="&L$5,GDate,">="&DATE(YEAR(L$5),MONTH(L$5),1),GCampaign,$B15,GAdgroup,$A15,GDevice,$J$2)=0,0,SUMIFS(INDIRECT("G"&$D$2),GDate,"<="&L$5,GDate,">="&DATE(YEAR(L$5),MONTH(L$5),1),GCampaign,$B15,GAdgroup,$A15,GDevice,$J$2)/SUMIFS(INDIRECT("G"&$E$2),GDate,"<="&L$5,GDate,">="&DATE(YEAR(L$5),MONTH(L$5),1),GCampaign,$B15,GAdgroup,$A15,GDevice,$J$2))) -> 703.62 | M15: =IF($E$2="None",SUMIFS(INDIRECT("G"&$D$2),GDate,"<="&M$5,GDate,">="&DATE(YEAR(M$5),MONTH(M$5),1),GCampaign,$B15,GAdgroup,$A15,GDevice,$J$2),IF(SUMIFS(INDIRECT("G"&$E$2),GDate,"<="&M$5,GDate,">="&DATE(YEAR(M$5),MONTH(M$5),1),GCampaign,$B15,GAdgroup,$A15,GDevice,$J$2)=0,0,SUMIFS(INDIRECT("G"&$D$2),GDate,"<="&M$5,GDate,">="&DATE(YEAR(M$5),MONTH(M$5),1),GCampaign,$B15,GAdgroup,$A15,GDevice,$J$2)/SUMIFS(INDIRECT("G"&$E$2),GDate,"<="&M$5,GDate,">="&DATE(YEAR(M$5),MONTH(M$5),1),GCampaign,$B15,GAdgroup,$A15,GDevice,$J$2))) -> 949.74 | N15: =IF($E$2="None",SUMIFS(INDIRECT("G"&$D$2),GDate,"<="&N$5,GDate,">="&DATE(YEAR(N$5),MONTH(N$5),1),GCampaign,$B15,GAdgroup,$A15,GDevice,$J$2),IF(SUMIFS(INDIRECT("G"&$E$2),GDate,"<="&N$5,GDate,">="&DATE(YEAR(N$5),MONTH(N$5),1),GCampaign,$B15,GAdgroup,$A15,GDevice,$J$2)=0,0,SUMIFS(INDIRECT("G"&$D$2),GDate,"<="&N$5,GDate,">="&DATE(YEAR(N$5),MONTH(N$5),1),GCampaign,$B15,GAdgroup,$A15,GDevice,$J$2)/SUMIFS(INDIRECT("G"&$E$2),GDate,"<="&N$5,GDate,">="&DATE(YEAR(N$5),MONTH(N$5),1),GCampaign,$B15,GAdgroup,$A15,GDevice,$J$2))) -> 350.76
A16: Ad Group 5.1 | B16: Campaign 5 | C16: =IF($E$2="None",SUMIFS(INDIRECT("G"&$D$2),GDate,"<="&C$5,GDate,">="&DATE(YEAR(C$5),MONTH(C$5),1),GCampaign,$B16,GAdgroup,$A16,GDevice,$J$2),IF(SUMIFS(INDIRECT("G"&$E$2),GDate,"<="&C$5,GDate,">="&DATE(YEAR(C$5),MONTH(C$5),1),GCampaign,$B16,GAdgroup,$A16,GDevice,$J$2)=0,0,SUMIFS(INDIRECT("G"&$D$2),GDate,"<="&C$5,GDate,">="&DATE(YEAR(C$5),MONTH(C$5),1),GCampaign,$B16,GAdgroup,$A16,GDevice,$J$2)/SUMIFS(INDIRECT("G"&$E$2),GDate,"<="&C$5,GDate,">="&DATE(YEAR(C$5),MONTH(C$5),1),GCampaign,$B16,GAdgroup,$A16,GDevice,$J$2))) -> 192.07 | D16: =IF($E$2="None",SUMIFS(INDIRECT("G"&$D$2),GDate,"<="&D$5,GDate,">="&DATE(YEAR(D$5),MONTH(D$5),1),GCampaign,$B16,GAdgroup,$A16,GDevice,$J$2),IF(SUMIFS(INDIRECT("G"&$E$2),GDate,"<="&D$5,GDate,">="&DATE(YEAR(D$5),MONTH(D$5),1),GCampaign,$B16,GAdgroup,$A16,GDevice,$J$2)=0,0,SUMIFS(INDIRECT("G"&$D$2),GDate,"<="&D$5,GDate,">="&DATE(YEAR(D$5),MONTH(D$5),1),GCampaign,$B16,GAdgroup,$A16,GDevice,$J$2)/SUMIFS(INDIRECT("G"&$E$2),GDate,"<="&D$5,GDate,">="&DATE(YEAR(D$5),MONTH(D$5),1),GCampaign,$B16,GAdgroup,$A16,GDevice,$J$2))) -> 237.56 | E16: =IF($E$2="None",SUMIFS(INDIRECT("G"&$D$2),GDate,"<="&E$5,GDate,">="&DATE(YEAR(E$5),MONTH(E$5),1),GCampaign,$B16,GAdgroup,$A16,GDevice,$J$2),IF(SUMIFS(INDIRECT("G"&$E$2),GDate,"<="&E$5,GDate,">="&DATE(YEAR(E$5),MONTH(E$5),1),GCampaign,$B16,GAdgroup,$A16,GDevice,$J$2)=0,0,SUMIFS(INDIRECT("G"&$D$2),GDate,"<="&E$5,GDate,">="&DATE(YEAR(E$5),MONTH(E$5),1),GCampaign,$B16,GAdgroup,$A16,GDevice,$J$2)/SUMIFS(INDIRECT("G"&$E$2),GDate,"<="&E$5,GDate,">="&DATE(YEAR(E$5),MONTH(E$5),1),GCampaign,$B16,GAdgroup,$A16,GDevice,$J$2))) -> 569.59 | F16: =IF($E$2="None",SUMIFS(INDIRECT("G"&$D$2),GDate,"<="&F$5,GDate,">="&DATE(YEAR(F$5),MONTH(F$5),1),GCampaign,$B16,GAdgroup,$A16,GDevice,$J$2),IF(SUMIFS(INDIRECT("G"&$E$2),GDate,"<="&F$5,GDate,">="&DATE(YEAR(F$5),MONTH(F$5),1),GCampaign,$B16,GAdgroup,$A16,GDevice,$J$2)=0,0,SUMIFS(INDIRECT("G"&$D$2),GDate,"<="&F$5,GDate,">="&DATE(YEAR(F$5),MONTH(F$5),1),GCampaign,$B16,GAdgroup,$A16,GDevice,$J$2)/SUMIFS(INDIRECT("G"&$E$2),GDate,"<="&F$5,GDate,">="&DATE(YEAR(F$5),MONTH(F$5),1),GCampaign,$B16,GAdgroup,$A16,GDevice,$J$2))) -> 695.03 | G16: =IF($E$2="None",SUMIFS(INDIRECT("G"&$D$2),GDate,"<="&G$5,GDate,">="&DATE(YEAR(G$5),MONTH(G$5),1),GCampaign,$B16,GAdgroup,$A16,GDevice,$J$2),IF(SUMIFS(INDIRECT("G"&$E$2),GDate,"<="&G$5,GDate,">="&DATE(YEAR(G$5),MONTH(G$5),1),GCampaign,$B16,GAdgroup,$A16,GDevice,$J$2)=0,0,SUMIFS(INDIRECT("G"&$D$2),GDate,"<="&G$5,GDate,">="&DATE(YEAR(G$5),MONTH(G$5),1),GCampaign,$B16,GAdgroup,$A16,GDevice,$J$2)/SUMIFS(INDIRECT("G"&$E$2),GDate,"<="&G$5,GDate,">="&DATE(YEAR(G$5),MONTH(G$5),1),GCampaign,$B16,GAdgroup,$A16,GDevice,$J$2))) -> 147.57 | H16: =IF($E$2="None",SUMIFS(INDIRECT("G"&$D$2),GDate,"<="&H$5,GDate,">="&DATE(YEAR(H$5),MONTH(H$5),1),GCampaign,$B16,GAdgroup,$A16,GDevice,$J$2),IF(SUMIFS(INDIRECT("G"&$E$2),GDate,"<="&H$5,GDate,">="&DATE(YEAR(H$5),MONTH(H$5),1),GCampaign,$B16,GAdgroup,$A16,GDevice,$J$2)=0,0,SUMIFS(INDIRECT("G"&$D$2),GDate,"<="&H$5,GDate,">="&DATE(YEAR(H$5),MONTH(H$5),1),GCampaign,$B16,GAdgroup,$A16,GDevice,$J$2)/SUMIFS(INDIRECT("G"&$E$2),GDate,"<="&H$5,GDate,">="&DATE(YEAR(H$5),MONTH(H$5),1),GCampaign,$B16,GAdgroup,$A16,GDevice,$J$2))) -> 767.37 | I16: =IF($E$2="None",SUMIFS(INDIRECT("G"&$D$2),GDate,"<="&I$5,GDate,">="&DATE(YEAR(I$5),MONTH(I$5),1),GCampaign,$B16,GAdgroup,$A16,GDevice,$J$2),IF(SUMIFS(INDIRECT("G"&$E$2),GDate,"<="&I$5,GDate,">="&DATE(YEAR(I$5),MONTH(I$5),1),GCampaign,$B16,GAdgroup,$A16,GDevice,$J$2)=0,0,SUMIFS(INDIRECT("G"&$D$2),GDate,"<="&I$5,GDate,">="&DATE(YEAR(I$5),MONTH(I$5),1),GCampaign,$B16,GAdgroup,$A16,GDevice,$J$2)/SUMIFS(INDIRECT("G"&$E$2),GDate,"<="&I$5,GDate,">="&DATE(YEAR(I$5),MONTH(I$5),1),GCampaign,$B16,GAdgroup,$A16,GDevice,$J$2))) -> 573.05 | J16: =IF($E$2="None",SUMIFS(INDIRECT("G"&$D$2),GDate,"<="&J$5,GDate,">="&DATE(YEAR(J$5),MONTH(J$5),1),GCampaign,$B16,GAdgroup,$A16,GDevice,$J$2),IF(SUMIFS(INDIRECT("G"&$E$2),GDate,"<="&J$5,GDate,">="&DATE(YEAR(J$5),MONTH(J$5),1),GCampaign,$B16,GAdgroup,$A16,GDevice,$J$2)=0,0,SUMIFS(INDIRECT("G"&$D$2),GDate,"<="&J$5,GDate,">="&DATE(YEAR(J$5),MONTH(J$5),1),GCampaign,$B16,GAdgroup,$A16,GDevice,$J$2)/SUMIFS(INDIRECT("G"&$E$2),GDate,"<="&J$5,GDate,">="&DATE(YEAR(J$5),MONTH(J$5),1),GCampaign,$B16,GAdgroup,$A16,GDevice,$J$2))) -> 604.38 | K16: =IF($E$2="None",SUMIFS(INDIRECT("G"&$D$2),GDate,"<="&K$5,GDate,">="&DATE(YEAR(K$5),MONTH(K$5),1),GCampaign,$B16,GAdgroup,$A16,GDevice,$J$2),IF(SUMIFS(INDIRECT("G"&$E$2),GDate,"<="&K$5,GDate,">="&DATE(YEAR(K$5),MONTH(K$5),1),GCampaign,$B16,GAdgroup,$A16,GDevice,$J$2)=0,0,SUMIFS(INDIRECT("G"&$D$2),GDate,"<="&K$5,GDate,">="&DATE(YEAR(K$5),MONTH(K$5),1),GCampaign,$B16,GAdgroup,$A16,GDevice,$J$2)/SUMIFS(INDIRECT("G"&$E$2),GDate,"<="&K$5,GDate,">="&DATE(YEAR(K$5),MONTH(K$5),1),GCampaign,$B16,GAdgroup,$A16,GDevice,$J$2))) -> 1268.2 | L16: =IF($E$2="None",SUMIFS(INDIRECT("G"&$D$2),GDate,"<="&L$5,GDate,">="&DATE(YEAR(L$5),MONTH(L$5),1),GCampaign,$B16,GAdgroup,$A16,GDevice,$J$2),IF(SUMIFS(INDIRECT("G"&$E$2),GDate,"<="&L$5,GDate,">="&DATE(YEAR(L$5),MONTH(L$5),1),GCampaign,$B16,GAdgroup,$A16,GDevice,$J$2)=0,0,SUMIFS(INDIRECT("G"&$D$2),GDate,"<="&L$5,GDate,">="&DATE(YEAR(L$5),MONTH(L$5),1),GCampaign,$B16,GAdgroup,$A16,GDevice,$J$2)/SUMIFS(INDIRECT("G"&$E$2),GDate,"<="&L$5,GDate,">="&DATE(YEAR(L$5),MONTH(L$5),1),GCampaign,$B16,GAdgroup,$A16,GDevice,$J$2))) -> 983.61 | M16: =IF($E$2="None",SUMIFS(INDIRECT("G"&$D$2),GDate,"<="&M$5,GDate,">="&DATE(YEAR(M$5),MONTH(M$5),1),GCampaign,$B16,GAdgroup,$A16,GDevice,$J$2),IF(SUMIFS(INDIRECT("G"&$E$2),GDate,"<="&M$5,GDate,">="&DATE(YEAR(M$5),MONTH(M$5),1),GCampaign,$B16,GAdgroup,$A16,GDevice,$J$2)=0,0,SUMIFS(INDIRECT("G"&$D$2),GDate,"<="&M$5,GDate,">="&DATE(YEAR(M$5),MONTH(M$5),1),GCampaign,$B16,GAdgroup,$A16,GDevice,$J$2)/SUMIFS(INDIRECT("G"&$E$2),GDate,"<="&M$5,GDate,">="&DATE(YEAR(M$5),MONTH(M$5),1),GCampaign,$B16,GAdgroup,$A16,GDevice,$J$2))) -> 2622.72 | N16: =IF($E$2="None",SUMIFS(INDIRECT("G"&$D$2),GDate,"<="&N$5,GDate,">="&DATE(YEAR(N$5),MONTH(N$5),1),GCampaign,$B16,GAdgroup,$A16,GDevice,$J$2),IF(SUMIFS(INDIRECT("G"&$E$2),GDate,"<="&N$5,GDate,">="&DATE(YEAR(N$5),MONTH(N$5),1),GCampaign,$B16,GAdgroup,$A16,GDevice,$J$2)=0,0,SUMIFS(INDIRECT("G"&$D$2),GDate,"<="&N$5,GDate,">="&DATE(YEAR(N$5),MONTH(N$5),1),GCampaign,$B16,GAdgroup,$A16,GDevice,$J$2)/SUMIFS(INDIRECT("G"&$E$2),GDate,"<="&N$5,GDate,">="&DATE(YEAR(N$5),MONTH(N$5),1),GCampaign,$B16,GAdgroup,$A16,GDevice,$J$2))) -> 2088.77
A17: Ad Group 5.2 | B17: Campaign 5 | C17: =IF($E$2="None",SUMIFS(INDIRECT("G"&$D$2),GDate,"<="&C$5,GDate,">="&DATE(YEAR(C$5),MONTH(C$5),1),GCampaign,$B17,GAdgroup,$A17,GDevice,$J$2),IF(SUMIFS(INDIRECT("G"&$E$2),GDate,"<="&C$5,GDate,">="&DATE(YEAR(C$5),MONTH(C$5),1),GCampaign,$B17,GAdgroup,$A17,GDevice,$J$2)=0,0,SUMIFS(INDIRECT("G"&$D$2),GDate,"<="&C$5,GDate,">="&DATE(YEAR(C$5),MONTH(C$5),1),GCampaign,$B17,GAdgroup,$A17,GDevice,$J$2)/SUMIFS(INDIRECT("G"&$E$2),GDate,"<="&C$5,GDate,">="&DATE(YEAR(C$5),MONTH(C$5),1),GCampaign,$B17,GAdgroup,$A17,GDevice,$J$2))) -> 725.01 | D17: =IF($E$2="None",SUMIFS(INDIRECT("G"&$D$2),GDate,"<="&D$5,GDate,">="&DATE(YEAR(D$5),MONTH(D$5),1),GCampaign,$B17,GAdgroup,$A17,GDevice,$J$2),IF(SUMIFS(INDIRECT("G"&$E$2),GDate,"<="&D$5,GDate,">="&DATE(YEAR(D$5),MONTH(D$5),1),GCampaign,$B17,GAdgroup,$A17,GDevice,$J$2)=0,0,SUMIFS(INDIRECT("G"&$D$2),GDate,"<="&D$5,GDate,">="&DATE(YEAR(D$5),MONTH(D$5),1),GCampaign,$B17,GAdgroup,$A17,GDevice,$J$2)/SUMIFS(INDIRECT("G"&$E$2),GDate,"<="&D$5,GDate,">="&DATE(YEAR(D$5),MONTH(D$5),1),GCampaign,$B17,GAdgroup,$A17,GDevice,$J$2))) -> 432.73 | E17: =IF($E$2="None",SUMIFS(INDIRECT("G"&$D$2),GDate,"<="&E$5,GDate,">="&DATE(YEAR(E$5),MONTH(E$5),1),GCampaign,$B17,GAdgroup,$A17,GDevice,$J$2),IF(SUMIFS(INDIRECT("G"&$E$2),GDate,"<="&E$5,GDate,">="&DATE(YEAR(E$5),MONTH(E$5),1),GCampaign,$B17,GAdgroup,$A17,GDevice,$J$2)=0,0,SUMIFS(INDIRECT("G"&$D$2),GDate,"<="&E$5,GDate,">="&DATE(YEAR(E$5),MONTH(E$5),1),GCampaign,$B17,GAdgroup,$A17,GDevice,$J$2)/SUMIFS(INDIRECT("G"&$E$2),GDate,"<="&E$5,GDate,">="&DATE(YEAR(E$5),MONTH(E$5),1),GCampaign,$B17,GAdgroup,$A17,GDevice,$J$2))) -> 503.78 | F17: =IF($E$2="None",SUMIFS(INDIRECT("G"&$D$2),GDate,"<="&F$5,GDate,">="&DATE(YEAR(F$5),MONTH(F$5),1),GCampaign,$B17,GAdgroup,$A17,GDevice,$J$2),IF(SUMIFS(INDIRECT("G"&$E$2),GDate,"<="&F$5,GDate,">="&DATE(YEAR(F$5),MONTH(F$5),1),GCampaign,$B17,GAdgroup,$A17,GDevice,$J$2)=0,0,SUMIFS(INDIRECT("G"&$D$2),GDate,"<="&F$5,GDate,">="&DATE(YEAR(F$5),MONTH(F$5),1),GCampaign,$B17,GAdgroup,$A17,GDevice,$J$2)/SUMIFS(INDIRECT("G"&$E$2),GDate,"<="&F$5,GDate,">="&DATE(YEAR(F$5),MONTH(F$5),1),GCampaign,$B17,GAdgroup,$A17,GDevice,$J$2))) -> 431.07 | G17: =IF($E$2="None",SUMIFS(INDIRECT("G"&$D$2),GDate,"<="&G$5,GDate,">="&DATE(YEAR(G$5),MONTH(G$5),1),GCampaign,$B17,GAdgroup,$A17,GDevice,$J$2),IF(SUMIFS(INDIRECT("G"&$E$2),GDate,"<="&G$5,GDate,">="&DATE(YEAR(G$5),MONTH(G$5),1),GCampaign,$B17,GAdgroup,$A17,GDevice,$J$2)=0,0,SUMIFS(INDIRECT("G"&$D$2),GDate,"<="&G$5,GDate,">="&DATE(YEAR(G$5),MONTH(G$5),1),GCampaign,$B17,GAdgroup,$A17,GDevice,$J$2)/SUMIFS(INDIRECT("G"&$E$2),GDate,"<="&G$5,GDate,">="&DATE(YEAR(G$5),MONTH(G$5),1),GCampaign,$B17,GAdgroup,$A17,GDevice,$J$2))) -> 712.09 | H17: =IF($E$2="None",SUMIFS(INDIRECT("G"&$D$2),GDate,"<="&H$5,GDate,">="&DATE(YEAR(H$5),MONTH(H$5),1),GCampaign,$B17,GAdgroup,$A17,GDevice,$J$2),IF(SUMIFS(INDIRECT("G"&$E$2),GDate,"<="&H$5,GDate,">="&DATE(YEAR(H$5),MONTH(H$5),1),GCampaign,$B17,GAdgroup,$A17,GDevice,$J$2)=0,0,SUMIFS(INDIRECT("G"&$D$2),GDate,"<="&H$5,GDate,">="&DATE(YEAR(H$5),MONTH(H$5),1),GCampaign,$B17,GAdgroup,$A17,GDevice,$J$2)/SUMIFS(INDIRECT("G"&$E$2),GDate,"<="&H$5,GDate,">="&DATE(YEAR(H$5),MONTH(H$5),1),GCampaign,$B17,GAdgroup,$A17,GDevice,$J$2))) -> 1275.1 | I17: =IF($E$2="None",SUMIFS(INDIRECT("G"&$D$2),GDate,"<="&I$5,GDate,">="&DATE(YEAR(I$5),MONTH(I$5),1),GCampaign,$B17,GAdgroup,$A17,GDevice,$J$2),IF(SUMIFS(INDIRECT("G"&$E$2),GDate,"<="&I$5,GDate,">="&DATE(YEAR(I$5),MONTH(I$5),1),GCampaign,$B17,GAdgroup,$A17,GDevice,$J$2)=0,0,SUMIFS(INDIRECT("G"&$D$2),GDate,"<="&I$5,GDate,">="&DATE(YEAR(I$5),MONTH(I$5),1),GCampaign,$B17,GAdgroup,$A17,GDevice,$J$2)/SUMIFS(INDIRECT("G"&$E$2),GDate,"<="&I$5,GDate,">="&DATE(YEAR(I$5),MONTH(I$5),1),GCampaign,$B17,GAdgroup,$A17,GDevice,$J$2))) -> 1987.57 | J17: =IF($E$2="None",SUMIFS(INDIRECT("G"&$D$2),GDate,"<="&J$5,GDate,">="&DATE(YEAR(J$5),MONTH(J$5),1),GCampaign,$B17,GAdgroup,$A17,GDevice,$J$2),IF(SUMIFS(INDIRECT("G"&$E$2),GDate,"<="&J$5,GDate,">="&DATE(YEAR(J$5),MONTH(J$5),1),GCampaign,$B17,GAdgroup,$A17,GDevice,$J$2)=0,0,SUMIFS(INDIRECT("G"&$D$2),GDate,"<="&J$5,GDate,">="&DATE(YEAR(J$5),MONTH(J$5),1),GCampaign,$B17,GAdgroup,$A17,GDevice,$J$2)/SUMIFS(INDIRECT("G"&$E$2),GDate,"<="&J$5,GDate,">="&DATE(YEAR(J$5),MONTH(J$5),1),GCampaign,$B17,GAdgroup,$A17,GDevice,$J$2))) -> 1477.67 | K17: =IF($E$2="None",SUMIFS(INDIRECT("G"&$D$2),GDate,"<="&K$5,GDate,">="&DATE(YEAR(K$5),MONTH(K$5),1),GCampaign,$B17,GAdgroup,$A17,GDevice,$J$2),IF(SUMIFS(INDIRECT("G"&$E$2),GDate,"<="&K$5,GDate,">="&DATE(YEAR(K$5),MONTH(K$5),1),GCampaign,$B17,GAdgroup,$A17,GDevice,$J$2)=0,0,SUMIFS(INDIRECT("G"&$D$2),GDate,"<="&K$5,GDate,">="&DATE(YEAR(K$5),MONTH(K$5),1),GCampaign,$B17,GAdgroup,$A17,GDevice,$J$2)/SUMIFS(INDIRECT("G"&$E$2),GDate,"<="&K$5,GDate,">="&DATE(YEAR(K$5),MONTH(K$5),1),GCampaign,$B17,GAdgroup,$A17,GDevice,$J$2))) -> 766.23 | L17: =IF($E$2="None",SUMIFS(INDIRECT("G"&$D$2),GDate,"<="&L$5,GDate,">="&DATE(YEAR(L$5),MONTH(L$5),1),GCampaign,$B17,GAdgroup,$A17,GDevice,$J$2),IF(SUMIFS(INDIRECT("G"&$E$2),GDate,"<="&L$5,GDate,">="&DATE(YEAR(L$5),MONTH(L$5),1),GCampaign,$B17,GAdgroup,$A17,GDevice,$J$2)=0,0,SUMIFS(INDIRECT("G"&$D$2),GDate,"<="&L$5,GDate,">="&DATE(YEAR(L$5),MONTH(L$5),1),GCampaign,$B17,GAdgroup,$A17,GDevice,$J$2)/SUMIFS(INDIRECT("G"&$E$2),GDate,"<="&L$5,GDate,">="&DATE(YEAR(L$5),MONTH(L$5),1),GCampaign,$B17,GAdgroup,$A17,GDevice,$J$2))) -> 1140.92 | M17: =IF($E$2="None",SUMIFS(INDIRECT("G"&$D$2),GDate,"<="&M$5,GDate,">="&DATE(YEAR(M$5),MONTH(M$5),1),GCampaign,$B17,GAdgroup,$A17,GDevice,$J$2),IF(SUMIFS(INDIRECT("G"&$E$2),GDate,"<="&M$5,GDate,">="&DATE(YEAR(M$5),MONTH(M$5),1),GCampaign,$B17,GAdgroup,$A17,GDevice,$J$2)=0,0,SUMIFS(INDIRECT("G"&$D$2),GDate,"<="&M$5,GDate,">="&DATE(YEAR(M$5),MONTH(M$5),1),GCampaign,$B17,GAdgroup,$A17,GDevice,$J$2)/SUMIFS(INDIRECT("G"&$E$2),GDate,"<="&M$5,GDate,">="&DATE(YEAR(M$5),MONTH(M$5),1),GCampaign,$B17,GAdgroup,$A17,GDevice,$J$2))) -> 962.42 | N17: =IF($E$2="None",SUMIFS(INDIRECT("G"&$D$2),GDate,"<="&N$5,GDate,">="&DATE(YEAR(N$5),MONTH(N$5),1),GCampaign,$B17,GAdgroup,$A17,GDevice,$J$2),IF(SUMIFS(INDIRECT("G"&$E$2),GDate,"<="&N$5,GDate,">="&DATE(YEAR(N$5),MONTH(N$5),1),GCampaign,$B17,GAdgroup,$A17,GDevice,$J$2)=0,0,SUMIFS(INDIRECT("G"&$D$2),GDate,"<="&N$5,GDate,">="&DATE(YEAR(N$5),MONTH(N$5),1),GCampaign,$B17,GAdgroup,$A17,GDevice,$J$2)/SUMIFS(INDIRECT("G"&$E$2),GDate,"<="&N$5,GDate,">="&DATE(YEAR(N$5),MONTH(N$5),1),GCampaign,$B17,GAdgroup,$A17,GDevice,$J$2))) -> 1083.68
A18: Ad Group 5.3 | B18: Campaign 5 | C18: =IF($E$2="None",SUMIFS(INDIRECT("G"&$D$2),GDate,"<="&C$5,GDate,">="&DATE(YEAR(C$5),MONTH(C$5),1),GCampaign,$B18,GAdgroup,$A18,GDevice,$J$2),IF(SUMIFS(INDIRECT("G"&$E$2),GDate,"<="&C$5,GDate,">="&DATE(YEAR(C$5),MONTH(C$5),1),GCampaign,$B18,GAdgroup,$A18,GDevice,$J$2)=0,0,SUMIFS(INDIRECT("G"&$D$2),GDate,"<="&C$5,GDate,">="&DATE(YEAR(C$5),MONTH(C$5),1),GCampaign,$B18,GAdgroup,$A18,GDevice,$J$2)/SUMIFS(INDIRECT("G"&$E$2),GDate,"<="&C$5,GDate,">="&DATE(YEAR(C$5),MONTH(C$5),1),GCampaign,$B18,GAdgroup,$A18,GDevice,$J$2))) -> 680.73 | D18: =IF($E$2="None",SUMIFS(INDIRECT("G"&$D$2),GDate,"<="&D$5,GDate,">="&DATE(YEAR(D$5),MONTH(D$5),1),GCampaign,$B18,GAdgroup,$A18,GDevice,$J$2),IF(SUMIFS(INDIRECT("G"&$E$2),GDate,"<="&D$5,GDate,">="&DATE(YEAR(D$5),MONTH(D$5),1),GCampaign,$B18,GAdgroup,$A18,GDevice,$J$2)=0,0,SUMIFS(INDIRECT("G"&$D$2),GDate,"<="&D$5,GDate,">="&DATE(YEAR(D$5),MONTH(D$5),1),GCampaign,$B18,GAdgroup,$A18,GDevice,$J$2)/SUMIFS(INDIRECT("G"&$E$2),GDate,"<="&D$5,GDate,">="&DATE(YEAR(D$5),MONTH(D$5),1),GCampaign,$B18,GAdgroup,$A18,GDevice,$J$2))) -> 1228.85 | E18: =IF($E$2="None",SUMIFS(INDIRECT("G"&$D$2),GDate,"<="&E$5,GDate,">="&DATE(YEAR(E$5),MONTH(E$5),1),GCampaign,$B18,GAdgroup,$A18,GDevice,$J$2),IF(SUMIFS(INDIRECT("G"&$E$2),GDate,"<="&E$5,GDate,">="&DATE(YEAR(E$5),MONTH(E$5),1),GCampaign,$B18,GAdgroup,$A18,GDevice,$J$2)=0,0,SUMIFS(INDIRECT("G"&$D$2),GDate,"<="&E$5,GDate,">="&DATE(YEAR(E$5),MONTH(E$5),1),GCampaign,$B18,GAdgroup,$A18,GDevice,$J$2)/SUMIFS(INDIRECT("G"&$E$2),GDate,"<="&E$5,GDate,">="&DATE(YEAR(E$5),MONTH(E$5),1),GCampaign,$B18,GAdgroup,$A18,GDevice,$J$2))) -> 1437.21 | F18: =IF($E$2="None",SUMIFS(INDIRECT("G"&$D$2),GDate,"<="&F$5,GDate,">="&DATE(YEAR(F$5),MONTH(F$5),1),GCampaign,$B18,GAdgroup,$A18,GDevice,$J$2),IF(SUMIFS(INDIRECT("G"&$E$2),GDate,"<="&F$5,GDate,">="&DATE(YEAR(F$5),MONTH(F$5),1),GCampaign,$B18,GAdgroup,$A18,GDevice,$J$2)=0,0,SUMIFS(INDIRECT("G"&$D$2),GDate,"<="&F$5,GDate,">="&DATE(YEAR(F$5),MONTH(F$5),1),GCampaign,$B18,GAdgroup,$A18,GDevice,$J$2)/SUMIFS(INDIRECT("G"&$E$2),GDate,"<="&F$5,GDate,">="&DATE(YEAR(F$5),MONTH(F$5),1),GCampaign,$B18,GAdgroup,$A18,GDevice,$J$2))) -> 1292.48 | G18: =IF($E$2="None",SUMIFS(INDIRECT("G"&$D$2),GDate,"<="&G$5,GDate,">="&DATE(YEAR(G$5),MONTH(G$5),1),GCampaign,$B18,GAdgroup,$A18,GDevice,$J$2),IF(SUMIFS(INDIRECT("G"&$E$2),GDate,"<="&G$5,GDate,">="&DATE(YEAR(G$5),MONTH(G$5),1),GCampaign,$B18,GAdgroup,$A18,GDevice,$J$2)=0,0,SUMIFS(INDIRECT("G"&$D$2),GDate,"<="&G$5,GDate,">="&DATE(YEAR(G$5),MONTH(G$5),1),GCampaign,$B18,GAdgroup,$A18,GDevice,$J$2)/SUMIFS(INDIRECT("G"&$E$2),GDate,"<="&G$5,GDate,">="&DATE(YEAR(G$5),MONTH(G$5),1),GCampaign,$B18,GAdgroup,$A18,GDevice,$J$2))) -> 723.55 | H18: =IF($E$2="None",SUMIFS(INDIRECT("G"&$D$2),GDate,"<="&H$5,GDate,">="&DATE(YEAR(H$5),MONTH(H$5),1),GCampaign,$B18,GAdgroup,$A18,GDevice,$J$2),IF(SUMIFS(INDIRECT("G"&$E$2),GDate,"<="&H$5,GDate,">="&DATE(YEAR(H$5),MONTH(H$5),1),GCampaign,$B18,GAdgroup,$A18,GDevice,$J$2)=0,0,SUMIFS(INDIRECT("G"&$D$2),GDate,"<="&H$5,GDate,">="&DATE(YEAR(H$5),MONTH(H$5),1),GCampaign,$B18,GAdgroup,$A18,GDevice,$J$2)/SUMIFS(INDIRECT("G"&$E$2),GDate,"<="&H$5,GDate,">="&DATE(YEAR(H$5),MONTH(H$5),1),GCampaign,$B18,GAdgroup,$A18,GDevice,$J$2))) -> 791.68 | I18: =IF($E$2="None",SUMIFS(INDIRECT("G"&$D$2),GDate,"<="&I$5,GDate,">="&DATE(YEAR(I$5),MONTH(I$5),1),GCampaign,$B18,GAdgroup,$A18,GDevice,$J$2),IF(SUMIFS(INDIRECT("G"&$E$2),GDate,"<="&I$5,GDate,">="&DATE(YEAR(I$5),MONTH(I$5),1),GCampaign,$B18,GAdgroup,$A18,GDevice,$J$2)=0,0,SUMIFS(INDIRECT("G"&$D$2),GDate,"<="&I$5,GDate,">="&DATE(YEAR(I$5),MONTH(I$5),1),GCampaign,$B18,GAdgroup,$A18,GDevice,$J$2)/SUMIFS(INDIRECT("G"&$E$2),GDate,"<="&I$5,GDate,">="&DATE(YEAR(I$5),MONTH(I$5),1),GCampaign,$B18,GAdgroup,$A18,GDevice,$J$2))) -> 803.89 | J18: =IF($E$2="None",SUMIFS(INDIRECT("G"&$D$2),GDate,"<="&J$5,GDate,">="&DATE(YEAR(J$5),MONTH(J$5),1),GCampaign,$B18,GAdgroup,$A18,GDevice,$J$2),IF(SUMIFS(INDIRECT("G"&$E$2),GDate,"<="&J$5,GDate,">="&DATE(YEAR(J$5),MONTH(J$5),1),GCampaign,$B18,GAdgroup,$A18,GDevice,$J$2)=0,0,SUMIFS(INDIRECT("G"&$D$2),GDate,"<="&J$5,GDate,">="&DATE(YEAR(J$5),MONTH(J$5),1),GCampaign,$B18,GAdgroup,$A18,GDevice,$J$2)/SUMIFS(INDIRECT("G"&$E$2),GDate,"<="&J$5,GDate,">="&DATE(YEAR(J$5),MONTH(J$5),1),GCampaign,$B18,GAdgroup,$A18,GDevice,$J$2))) -> 844.07 | K18: =IF($E$2="None",SUMIFS(INDIRECT("G"&$D$2),GDate,"<="&K$5,GDate,">="&DATE(YEAR(K$5),MONTH(K$5),1),GCampaign,$B18,GAdgroup,$A18,GDevice,$J$2),IF(SUMIFS(INDIRECT("G"&$E$2),GDate,"<="&K$5,GDate,">="&DATE(YEAR(K$5),MONTH(K$5),1),GCampaign,$B18,GAdgroup,$A18,GDevice,$J$2)=0,0,SUMIFS(INDIRECT("G"&$D$2),GDate,"<="&K$5,GDate,">="&DATE(YEAR(K$5),MONTH(K$5),1),GCampaign,$B18,GAdgroup,$A18,GDevice,$J$2)/SUMIFS(INDIRECT("G"&$E$2),GDate,"<="&K$5,GDate,">="&DATE(YEAR(K$5),MONTH(K$5),1),GCampaign,$B18,GAdgroup,$A18,GDevice,$J$2))) -> 568.33 | L18: =IF($E$2="None",SUMIFS(INDIRECT("G"&$D$2),GDate,"<="&L$5,GDate,">="&DATE(YEAR(L$5),MONTH(L$5),1),GCampaign,$B18,GAdgroup,$A18,GDevice,$J$2),IF(SUMIFS(INDIRECT("G"&$E$2),GDate,"<="&L$5,GDate,">="&DATE(YEAR(L$5),MONTH(L$5),1),GCampaign,$B18,GAdgroup,$A18,GDevice,$J$2)=0,0,SUMIFS(INDIRECT("G"&$D$2),GDate,"<="&L$5,GDate,">="&DATE(YEAR(L$5),MONTH(L$5),1),GCampaign,$B18,GAdgroup,$A18,GDevice,$J$2)/SUMIFS(INDIRECT("G"&$E$2),GDate,"<="&L$5,GDate,">="&DATE(YEAR(L$5),MONTH(L$5),1),GCampaign,$B18,GAdgroup,$A18,GDevice,$J$2))) -> 557.41 | M18: =IF($E$2="None",SUMIFS(INDIRECT("G"&$D$2),GDate,"<="&M$5,GDate,">="&DATE(YEAR(M$5),MONTH(M$5),1),GCampaign,$B18,GAdgroup,$A18,GDevice,$J$2),IF(SUMIFS(INDIRECT("G"&$E$2),GDate,"<="&M$5,GDate,">="&DATE(YEAR(M$5),MONTH(M$5),1),GCampaign,$B18,GAdgroup,$A18,GDevice,$J$2)=0,0,SUMIFS(INDIRECT("G"&$D$2),GDate,"<="&M$5,GDate,">="&DATE(YEAR(M$5),MONTH(M$5),1),GCampaign,$B18,GAdgroup,$A18,GDevice,$J$2)/SUMIFS(INDIRECT("G"&$E$2),GDate,"<="&M$5,GDate,">="&DATE(YEAR(M$5),MONTH(M$5),1),GCampaign,$B18,GAdgroup,$A18,GDevice,$J$2))) -> 1117.21 | N18: =IF($E$2="None",SUMIFS(INDIRECT("G"&$D$2),GDate,"<="&N$5,GDate,">="&DATE(YEAR(N$5),MONTH(N$5),1),GCampaign,$B18,GAdgroup,$A18,GDevice,$J$2),IF(SUMIFS(INDIRECT("G"&$E$2),GDate,"<="&N$5,GDate,">="&DATE(YEAR(N$5),MONTH(N$5),1),GCampaign,$B18,GAdgroup,$A18,GDevice,$J$2)=0,0,SUMIFS(INDIRECT("G"&$D$2),GDate,"<="&N$5,GDate,">="&DATE(YEAR(N$5),MONTH(N$5),1),GCampaign,$B18,GAdgroup,$A18,GDevice,$J$2)/SUMIFS(INDIRECT("G"&$E$2),GDate,"<="&N$5,GDate,">="&DATE(YEAR(N$5),MONTH(N$5),1),GCampaign,$B18,GAdgroup,$A18,GDevice,$J$2))) -> 941.35

Sheet CamCharts (hidden)
A1: Google Adwords - Monthly Statistics | H1: Device: | J1: Select a campaign:
A2: Campaign Summary | I2: =IF(ISBLANK($H$2),"*",$H$2) -> * | L2: =IF(ISBLANK($J$2),"*",$J$2) -> *
A3: © www.excel-skills.com | B3: =B4&"-None"&"*N0" -> Impressions-None*N0 | C3: =C4&"-None"&"*N0" -> Clicks-None*N0 | D3: =$C$4&"-"&$B$4&"*P1" -> Clicks-Impressions*P1 | E3: =E4&"-None"&"*N0" -> Cost-None*N0 | F3: =$E$4&"-"&$C$4&"*N2" -> Cost-Clicks*N2 | G3: =G4&"-None"&"*N0" -> Conversions-None*N0 | H3: =H4&"-None"&"*N0" -> Revenue-None*N0 | I3: =$E$4&"-"&$G$4&"*N2" -> Cost-Conversions*N2 | J3: =$G$4&"-"&$C$4&"*P1" -> Conversions-Clicks*P1 | K3: =$H$4&"-"&$E$4&"*N2" -> Revenue-Cost*N2
A4: Month | B4: Impressions | C4: Clicks | D4: CTR | E4: Cost | F4: CPC | G4: Conversions | H4: Revenue | I4: Cost / Conv | J4: Conv Rate | K4: ROI
A5: =DATE(YEAR(Setup!$B$4),MONTH(Setup!$B$4)+1,0) -> 2021-04-30 | B5: =SUMIFS(GImpressions,GDate,"<="&$A5,GDate,">="&DATE(YEAR($A5),MONTH($A5),1),GCampaign,$L$2,GDevice,$I$2) -> 29144 | C5: =SUMIFS(GClicks,GDate,"<="&$A5,GDate,">="&DATE(YEAR($A5),MONTH($A5),1),GCampaign,$L$2,GDevice,$I$2) -> 2695 | D5: =IF(B5=0,0,C5/B5) -> 0.09247186385 | E5: =SUMIFS(GCost,GDate,"<="&$A5,GDate,">="&DATE(YEAR($A5),MONTH($A5),1),GCampaign,$L$2,GDevice,$I$2) -> 4545.26 | F5: =IF(C5=0,0,E5/C5) -> 1.686552876 | G5: =SUMIFS(GConversions,GDate,"<="&$A5,GDate,">="&DATE(YEAR($A5),MONTH($A5),1),GCampaign,$L$2,GDevice,$I$2) -> 285 | H5: =SUMIFS(GRevenue,GDate,"<="&$A5,GDate,">="&DATE(YEAR($A5),MONTH($A5),1),GCampaign,$L$2,GDevice,$I$2) -> 10211 | I5: =IF(G5=0,0,E5/G5) -> 15.9482807 | J5: =IF(C5=0,0,G5/C5) -> 0.1057513915 | K5: =IF(E5=0,0,H5/E5) -> 2.246516151
A6: =DATE(YEAR(A5),MONTH(A5),0) -> 2021-03-31 | B6: 65942 | C6: 4153 | D6: =IF(B6=0,0,C6/B6) -> 0.06297958812 | E6: 6045.99 | F6: =IF(C6=0,0,E6/C6) -> 1.455812666 | G6: 480 | H6: 17445 | I6: 12.5958125 | J6: 0.1155790994 | K6: 2.885383535
A7: =DATE(YEAR(A6),MONTH(A6),0) -> 2021-02-28 | B7: 75921 | C7: 3502 | D7: 0.04612689506 | E7: 6306.68 | F7: 1.800879497 | G7: 431 | H7: 15750 | I7: 14.63266821 | J7: 0.12307253 | K7: 2.497352014
A8: 2021-01-31 | B8: 126491 | C8: 4187 | D8: 0.03310116925 | E8: 6638.18 | F8: 1.58542632 | G8: 503 | H8: 18233 | I8: 13.19717694 | J8: 0.1201337473 | K8: 2.746686592
A9: 2020-12-31 | B9: 90999 | C9: 2729 | D9: 0.02998934054 | E9: 4116.46 | F9: 1.508413338 | G9: 335 | H9: 12032 | I9: 12.2879403 | J9: 0.1227555881 | K9: 2.922899773
A10: 2020-11-30 | B10: 170267 | C10: 5170 | D10: 0.03036407525 | E10: 7953.91 | F10: 1.538473888 | G10: 624 | H10: 22734 | I10: 12.74665064 | J10: 0.120696325 | K10: 2.858216902
A11: 2020-10-31 | B11: 226854 | C11: 6746 | D11: 0.02973718779 | E11: 9987.42 | F11: 1.480495108 | G11: 805 | H11: 29071 | I11: 12.40673292 | J11: 0.1193299733 | K11: 2.910761738
A12: 2020-09-30 | B12: 191212 | C12: 5701 | D12: 0.02981507437 | E12: 8527.4 | F12: 1.495772671 | G12: 698 | H12: 25187 | I12: 12.21690544 | J12: 0.1224346606 | K12: 2.953655276
A13: 2020-08-31 | B13: 192091 | C13: 6167 | D13: 0.03210457544 | E13: 8309.03 | F13: 1.347337441 | G13: 766 | H13: 27853 | I13: 10.84729765 | J13: 0.1242095022 | K13: 3.35213617
A14: 2020-07-31 | B14: 177311 | C14: 5623 | D14: 0.0317126405 | E14: 8025.64 | F14: 1.427287925 | G14: 696 | H14: 25331 | I14: 11.53109195 | J14: 0.1237773431 | K14: 3.156259189
A15: 2020-06-30 | B15: 170065 | C15: 5969 | D15: 0.03509834475 | E15: 10720.08 | F15: 1.795959122 | G15: 772 | H15: 28658 | I15: 13.88611399 | J15: 0.129334897 | K15: 2.673300946
A16: 2020-05-31 | B16: 123750 | C16: 3625 | D16: 0.02929292929 | E16: 8134.96 | F16: 2.244126897 | G16: 499 | H16: 18796 | I16: 16.30252505 | J16: 0.1376551724 | K16: 2.310521502
A17: 2020-04-30 | B17: 87532 | C17: 2700 | D17: =IF(B17=0,0,C17/B17) -> 0.03084586208 | E17: 4679.42 | F17: =IF(C17=0,0,E17/C17) -> 1.733118519 | G17: 355 | H17: 13266 | I17: 13.18146479 | J17: 0.1314814815 | K17: 2.834966727
A18: 2020-03-31 | B18: 76600 | C18: 2063 | D18: 0.02693211488 | E18: 3129.75 | F18: 1.517086767 | G18: 252 | H18: 9063 | I18: 12.41964286 | J18: 0.1221522055 | K18: 2.895758447
A19: Total | B19: =SUM(B5:B18) -> 1804179 | C19: =SUM(C5:C18) -> 61030 | D19: 0.03382702049 | E19: 97120.18 | F19: 1.591351466 | G19: 7501 | H19: 273630 | I19: 12.94763098 | J19: 0.1229067672 | K19: 2.817437118

Sheet AgCharts (hidden)
A1: Google Adwords - Monthly Statistics | E1: Campaign: | H1: Device: | J1: Select Ad Group:
A2: Campaign Summary | E2: =CamCharts!$L$2 -> * | I2: =IF(ISBLANK($H$2),"*",$H$2) -> * | L2: =IF(ISBLANK($J$2),"*",$J$2) -> *
A3: © www.excel-skills.com
A4: Month | B4: Impressions | C4: Clicks | D4: CTR | E4: Cost | F4: CPC | G4: Conversions | H4: Revenue | I4: Cost / Conv | J4: Conv Rate | K4: ROI
A5: =DATE(YEAR(Setup!$B$4),MONTH(Setup!$B$4)+1,0) -> 2021-04-30 | B5: =SUMIFS(GImpressions,GDate,"<="&$A5,GDate,">="&DATE(YEAR($A5),MONTH($A5),1),GCampaign,$E$2,GAdgroup,$L$2,GDevice,$I$2) -> 29144 | C5: =SUMIFS(GClicks,GDate,"<="&$A5,GDate,">="&DATE(YEAR($A5),MONTH($A5),1),GCampaign,$E$2,GAdgroup,$L$2,GDevice,$I$2) -> 2695 | D5: =IF(B5=0,0,C5/B5) -> 0.09247186385 | E5: =SUMIFS(GCost,GDate,"<="&$A5,GDate,">="&DATE(YEAR($A5),MONTH($A5),1),GCampaign,$E$2,GAdgroup,$L$2,GDevice,$I$2) -> 4545.26 | F5: =IF(C5=0,0,E5/C5) -> 1.686552876 | G5: =SUMIFS(GConversions,GDate,"<="&$A5,GDate,">="&DATE(YEAR($A5),MONTH($A5),1),GCampaign,$E$2,GAdgroup,$L$2,GDevice,$I$2) -> 285 | H5: =SUMIFS(GRevenue,GDate,"<="&$A5,GDate,">="&DATE(YEAR($A5),MONTH($A5),1),GCampaign,$E$2,GAdgroup,$L$2,GDevice,$I$2) -> 10211 | I5: =IF(G5=0,0,E5/G5) -> 15.9482807 | J5: =IF(C5=0,0,G5/C5) -> 0.1057513915 | K5: =IF(E5=0,0,H5/E5) -> 2.246516151
A6: =DATE(YEAR(A5),MONTH(A5),0) -> 2021-03-31 | B6: 65942 | C6: 4153 | D6: =IF(B6=0,0,C6/B6) -> 0.06297958812 | E6: 6045.99 | F6: =IF(C6=0,0,E6/C6) -> 1.455812666 | G6: 480 | H6: 17445 | I6: 12.5958125 | J6: 0.1155790994 | K6: 2.885383535
A7: =DATE(YEAR(A6),MONTH(A6),0) -> 2021-02-28 | B7: 75921 | C7: 3502 | D7: 0.04612689506 | E7: 6306.68 | F7: 1.800879497 | G7: 431 | H7: 15750 | I7: 14.63266821 | J7: 0.12307253 | K7: 2.497352014
A8: 2021-01-31 | B8: 126491 | C8: 4187 | D8: 0.03310116925 | E8: 6638.18 | F8: 1.58542632 | G8: 503 | H8: 18233 | I8: 13.19717694 | J8: 0.1201337473 | K8: 2.746686592
A9: 2020-12-31 | B9: 90999 | C9: 2729 | D9: 0.02998934054 | E9: 4116.46 | F9: 1.508413338 | G9: 335 | H9: 12032 | I9: 12.2879403 | J9: 0.1227555881 | K9: 2.922899773
A10: 2020-11-30 | B10: 170267 | C10: 5170 | D10: 0.03036407525 | E10: 7953.91 | F10: 1.538473888 | G10: 624 | H10: 22734 | I10: 12.74665064 | J10: 0.120696325 | K10: 2.858216902
A11: 2020-10-31 | B11: 226854 | C11: 6746 | D11: 0.02973718779 | E11: 9987.42 | F11: 1.480495108 | G11: 805 | H11: 29071 | I11: 12.40673292 | J11: 0.1193299733 | K11: 2.910761738
A12: 2020-09-30 | B12: 191212 | C12: 5701 | D12: 0.02981507437 | E12: 8527.4 | F12: 1.495772671 | G12: 698 | H12: 25187 | I12: 12.21690544 | J12: 0.1224346606 | K12: 2.953655276
A13: 2020-08-31 | B13: 192091 | C13: 6167 | D13: 0.03210457544 | E13: 8309.03 | F13: 1.347337441 | G13: 766 | H13: 27853 | I13: 10.84729765 | J13: 0.1242095022 | K13: 3.35213617
A14: 2020-07-31 | B14: 177311 | C14: 5623 | D14: 0.0317126405 | E14: 8025.64 | F14: 1.427287925 | G14: 696 | H14: 25331 | I14: 11.53109195 | J14: 0.1237773431 | K14: 3.156259189
A15: 2020-06-30 | B15: 170065 | C15: 5969 | D15: 0.03509834475 | E15: 10720.08 | F15: 1.795959122 | G15: 772 | H15: 28658 | I15: 13.88611399 | J15: 0.129334897 | K15: 2.673300946
A16: 2020-05-31 | B16: 123750 | C16: 3625 | D16: 0.02929292929 | E16: 8134.96 | F16: 2.244126897 | G16: 499 | H16: 18796 | I16: 16.30252505 | J16: 0.1376551724 | K16: 2.310521502
A17: 2020-04-30 | B17: 87532 | C17: 2700 | D17: 0.03084586208 | E17: 4679.42 | F17: 1.733118519 | G17: 355 | H17: 13266 | I17: 13.18146479 | J17: 0.1314814815 | K17: 2.834966727
A18: 2020-03-31 | B18: 76600 | C18: 2063 | D18: 0.02693211488 | E18: 3129.75 | F18: 1.517086767 | G18: 252 | H18: 9063 | I18: 12.41964286 | J18: 0.1221522055 | K18: 2.895758447
A19: Total | B19: =SUM(B5:B18) -> 1804179 | C19: =SUM(C5:C18) -> 61030 | D19: =IF(B19=0,0,C19/B19) -> 0.03382702049 | E19: 97120.18 | F19: =IF(C19=0,0,E19/C19) -> 1.591351466 | G19: 7501 | H19: 273630 | I19: 12.94763098 | J19: 0.1229067672 | K19: 2.817437118
